Workbook

Sheet IRR Model (hidden)
B2: NYSERDA - NYS Property Tax Model
B3: Operating Model
A5: x | B5: Project Assumptions - YELLOW REQUIRES INPUT
B7: Region Specific Assumptions | H7: PILOT Calculation | P7: PILOT Sensitivity Analysis | V7: MW Block Assumption
B8: Active Utility Region | F8: RG&E | H8: Investor NPV Pre-PILOT | K8: [$] | L8: =NPV($F$16,F94:AE94)*1000 -> -160908.1236 | V8: Block | W8: PBI Rate | Y8: Locational Adder Logic Table | AB8: Pilot Rate
B9: CDG? | F9: Yes | H9: Investor target Pre-tax IRR | K9: [%] | L9: =$F$16 -> 0.0325 | P9: PILOT Sensitivity ($/MWh) / (% of Retail Rate) | V9: Block 1 ConEd | W9: 0.179 | Y9: Yes | Z9: 1.2 | AB9: 0.01
B10: Year-1 Solar Net Metering Credit Value | E10: [$/kWh] | F10: =VLOOKUP($F$8,$H$20:$L$27,COLUMNS($H$21:$I$21),0) -> 0.095 | H10: Annual PILOT Budget @ Target IRR | K10: [$] | L10: =-PMT($F$16,$F$106,L8) -> -13723.62533 | V10: Block 2 ConEd | W10: 0.173 | Y10: No | Z10: 1 | AB10: 0.015
B11: System Build Cost | E11: [$/W] | F11: =VLOOKUP($F$8,$H$20:$L$27,COLUMNS($H$21:$L$21),0)+AA26 -> 1.5 | H11: Average PILOT (% of Retail Rate) | K11: [%] | L11: 0.02 | P11: Build Cost | Q11: Customer Energy Discount | V11: Block 3 ConEd | W11: 0.168 | AB11: 0.02
B12: Site Lease Payment | E12: [$/MW] | F12: =VLOOKUP($F$8,$H$20:$L$27,COLUMNS($H$21:$J$21),0) -> 3000 | H12: Annual Pilot Cap Based on % of Retail Rate | K12: [$] | L12: =F10*L11*G52*1000 -> 6612 | P12: ($/W) Delta | Q12: (%) | V12: Block 4 ConEd | W12: 0.162 | AB12: 0.025
B13: Year 1 Specific Yield Forecast | E13: [kWh/kW] | F13: =VLOOKUP($F$8,$H$20:$L$27,COLUMNS($H$21:$K$21),0) -> 1200 | H13: Recommended Annual PILOT | K13: [$] | L13: =IF(L10>=L12,L12,L10) -> -13723.62533 | P13: =L16 -> -3.943570497 | Q13: 0.2 | R13: 0.15 | S13: 0.1 | V13: Block 5 ConEd | W13: 0.156 | AB13: 0.03
H14: AC System Size | K14: [MW] | L14: =F29 -> 2 | P14: 0.1 | Q14: -24.55119665 | R14: -17.8980671 | S14: -11.24493755 | V14: Block 6 ConEd | W14: 0.145
B15: Key Non-Regional Variables | H15: Implied Annual PILOT ($/MW AC) | K15: [$/MW] | L15: =L13/$L$14 -> -6861.812665 | P15: 0 | Q15: -17.2498296 | R15: -10.59670005 | S15: -3.943570497 | V15: Block 7 ConEd | W15: 0.131
B16: Target Pre-Tax Investor IRR | E16: [%] | F16: 0.0325 | H16: Implied Annual PILOT ($/MWh) | K16: [$/MWh] | L16: =L13/G68 -> -3.943570497 | P16: -0.1 | Q16: -9.94846255 | R16: -3.295332998 | S16: 1.9 | V16: Block 8 ConEd | W16: 0.111 | Y16: VDER Status
H17: Check - Post PILOT Pre-Tax IRR | K17: [%] | L17: =IRR(F96:AO96) -> 0.03234986306 | V17: Block 9 ConEd | W17: 0.094 | Y17: Tranche | Z17: Rate Credit
B18: Energy Discount Required to Incentivize Customer | E18: [%] | F18: 0.1 | V18: Block 10 ConEd | W18: 0.074 | Y18: Tranche 0 | Z18: 1
B19: VDER Tranche | F19: Tranche 2 | H19: Regional Inputs | V19: Block 11 ConEd | W19: 0.057 | Y19: Tranche 1 | Z19: 1
B20: Implied Year 1 PPA Rate | E20: [$/kWh] | F20: =F10*(1-F18)*Z24 -> 0.081225 | I20: Electric Rate | J20: Lease Cost | K20: Average yield | L20: All-in Cost | M20: O&M Cost | N20: Insurance | O20: CDG Annual | V20: Block 12 ConEd | W20: 0.037 | Y20: Tranche 2 | Z20: 0.95
B21: PPA Term | E21: [years] | F21: =IF(F19="Tranche 0",20,25) -> 25 | H21: Utility | I21: ($/kWh) | J21: ($/MW) | K21: (kWh/kWdc) | L21: ($/W) | M21: ($/kW), 2% escalator | N21: ($/kW) | O21: ($/kW) | V21: Block 13 ConEd | W21: 0.02 | Y21: Tranche 3 | Z21: 0.9
B22: PPA or Utility Rate Annual Escalator | E22: [%] | F22: 0.01 | H22: CHG&E | I22: 0.134 | J22: 7000 | K22: 1300 | L22: 1.9 | M22: 12 | N22: 2 | O22: 7 | V22: Block 1 ROS | W22: 0.114
B23: NYSERDA Volumetric MW Block | F23: Block 4 ROS | H23: O&R | I23: 0.167 | J23: 10000 | K23: 1300 | L23: 2.2 | M23: =M22 -> 12 | N23: 2 | O23: 7 | V23: Block 2 ROS | W23: 0.114
B24: NYSERDA MW Block Rate | E24: [$/kWh] | F24: =VLOOKUP(F23,V9:W32,2,0) -> 0.111 | H24: NGRID | I24: 0.0937 | J24: 5000 | K24: 1240 | L24: 1.5 | M24: 12 | N24: 2 | O24: 7 | V24: Block 3 ROS | W24: 0.111 | Y24: =F19 -> Tranche 2 | Z24: =VLOOKUP(Y24,$Y$17:$Z$22,COLUMNS($Y$17:$Z$17),0) -> 0.95
B25: NY-Sun Locatioal Adder? | F25: No | H25: NYSEG | I25: 0.094 | J25: 3000 | K25: 1200 | L25: 1.5 | M25: 12 | N25: 2 | O25: 7 | V25: Block 4 ROS | W25: 0.111
B26: Multiplier for Locational Adder | F26: =IF(F25="Yes",1.2,1) -> 1 | H26: ConEd | I26: 0.203 | J26: 20000 | K26: 1250 | L26: 2.5 | M26: 12 | N26: 2 | O26: 7 | V26: Block 5 ROS | W26: 0.105 | Y26: Active EPC Cost Adder | AA26: =IF(F9="No",-0.2,0) -> 0
B27: Total NYSERDA Grant | E27: [$] | F27: =+F24*F30*0.134*8.76*3*1000000*F26 -> 1133577.288 | H27: RG&E | I27: 0.095 | J27: 3000 | K27: 1200 | L27: 1.5 | M27: 12 | N27: 2 | O27: 7 | V27: Block 6 ROS | W27: 0.099 | Y27: (EPC $0.20/Watt lower for non-CDG)
B28: General Project Assumptions | V28: Block 7 ROS | W28: 0.094
B29: AC System Size (Alternating Current) | E29: [MWAC] | F29: 2 | H29: PILOT Results | V29: Block 8 ROS | W29: 0.08
B30: DC System Size (Alternating Current) | E30: [MWDC] | F30: =F29*1.45 -> 2.9 | I30: IRR Based | J30: IRR Based | K30: PILOT as % | L30: PILOT as % | V30: Block 9 ROS | W30: 0.062
I31: PILOT Rate | J31: PILOT Rate | K31: of Retail Rate | L31: of PPA Rate | V31: Block 10 ROS | W31: 0.045
B32: Production Degradation | E32: [%] | F32: 0.005 | H32: Utility | I32: ($/MW) | J32: ($/MWh) | K32: (%) | L32: (%) | V32: Block 11 ROS | W32: 0.026
B33: Inflation | E33: [%] | F33: 0.02 | H33: CHG&E | I33: =IF($H33=$F$8,IF($L$15<0,"n/a",$L$15),I33) -> 5051.8 | J33: =IF($H33=$F$8,IF($L$16<0,"n/a",$L$16),J33) -> 2.68 | K33: =IFERROR(J33/(I22*1000),"n/a") -> 0.02 | L33: =IFERROR(J33/(I22*$Z$24*(1-$F$18)*1000),"n/a") -> 0.02339181287
B34: Site Lease Pmt Escalator | E34: [%] | F34: 0 | H34: O&R | I34: 6295.9 | J34: 3.34 | K34: 0.02 | L34: 0.02339181287
B35: Other Annual Operating Expense | E35: [$/kW] | F35: 0 | H35: NGRID | I35: n/a | J35: n/a | K35: n/a | L35: n/a
H36: NYSEG | I36: n/a | J36: n/a | K36: n/a | L36: n/a
H37: ConEd | I37: 7358.75 | J37: 4.06 | K37: 0.02 | L37: 0.02339181287
H38: RG&E | I38: n/a | J38: n/a | K38: n/a | L38: n/a
A40: x | B40: Generation Profile & Flags
B41: Date | F41: 2016-12-31 | G41: =EOMONTH(F41,12) -> 2017-12-31 | H41: =EOMONTH(G41,12) -> 2018-12-31 | I41: =EOMONTH(H41,12) -> 2019-12-31 | J41: 2020-12-31 | K41: 2021-12-31 | L41: 2022-12-31 | M41: 2023-12-31 | N41: =EOMONTH(M41,12) -> 2024-12-31 | O41: =EOMONTH(N41,12) -> 2025-12-31 | P41: 2026-12-31 | Q41: 2027-12-31 | R41: =EOMONTH(Q41,12) -> 2028-12-31 | S41: 2029-12-31 | T41: 2030-12-31 | U41: 2031-12-31 | V41: =EOMONTH(U41,12) -> 2032-12-31 | W41: 2033-12-31 | X41: =EOMONTH(W41,12) -> 2034-12-31 | Y41: 2035-12-31 | Z41: 2036-12-31 | AA41: 2037-12-31 | AB41: =EOMONTH(AA41,12) -> 2038-12-31 | AC41: 2039-12-31 | AD41: 2040-12-31 | AE41: 2041-12-31
B43: Flags
B44: Construction Active | F44: =-(0-G45) -> 0 | G44: =-(0-H45) -> 0 | H44: =-(0-I45) -> 0 | I44: 0 | J44: 0 | K44: 0 | L44: 0 | M44: =-(0-N45) -> 0 | N44: =-(0-O45) -> 0 | O44: 0 | P44: 0 | Q44: =-(0-R45) -> 0 | R44: 0 | S44: 0 | T44: 0 | U44: =-(0-V45) -> 0 | V44: 0 | W44: =-(0-X45) -> 0 | X44: 0 | Y44: 0 | Z44: 0 | AA44: =-(0-AB45) -> 0 | AB44: 0 | AC44: 0 | AD44: 0 | AE44: =-(0-AF45) -> 0
B45: COD Year | F45: 1 | G45: 0 | H45: 0 | I45: 0 | J45: 0 | K45: 0 | L45: 0 | M45: 0 | N45: 0 | O45: 0 | P45: 0 | Q45: 0 | R45: 0 | S45: 0 | T45: 0 | U45: 0 | V45: 0 | W45: 0 | X45: 0 | Y45: 0 | Z45: 0 | AA45: 0 | AB45: 0 | AC45: 0 | AD45: 0 | AE45: 0
B46: Project Year | F46: =IF(F48<=YEAR($F$41),0,E46+1) -> 0 | G46: 1 | H46: 2 | I46: 3 | J46: 4 | K46: 5 | L46: 6 | M46: 7 | N46: =IF(N48<=YEAR($F$41),0,M46+1) -> 8 | O46: =IF(O48<=YEAR($F$41),0,N46+1) -> 9 | P46: 10 | Q46: 11 | R46: 12 | S46: 13 | T46: 14 | U46: 15 | V46: 16 | W46: 17 | X46: 18 | Y46: 19 | Z46: 20 | AA46: 21 | AB46: 22 | AC46: 23 | AD46: 24 | AE46: 25
B47: Days in Year | F47: =(F41-E41)*F51 -> 0 | G47: =(G41-F41)*G51 -> 365 | H47: =(H41-G41)*H51 -> 365 | I47: =(I41-H41)*I51 -> 365 | J47: 366 | K47: 365 | L47: 365 | M47: 365 | N47: =(N41-M41)*N51 -> 366 | O47: =(O41-N41)*O51 -> 365 | P47: 365 | Q47: 365 | R47: =(R41-Q41)*R51 -> 366 | S47: 365 | T47: 365 | U47: 365 | V47: =(V41-U41)*V51 -> 366 | W47: 365 | X47: =(X41-W41)*X51 -> 365 | Y47: 365 | Z47: 366 | AA47: 365 | AB47: =(AB41-AA41)*AB51 -> 365 | AC47: 365 | AD47: 366 | AE47: 365
B48: Year | F48: =+YEAR(F41) -> 2016 | G48: 2017 | H48: 2018 | I48: 2019 | J48: 2020 | K48: 2021 | L48: 2022 | M48: 2023 | N48: 2024 | O48: 2025 | P48: 2026 | Q48: 2027 | R48: 2028 | S48: 2029 | T48: 2030 | U48: 2031 | V48: 2032 | W48: 2033 | X48: 2034 | Y48: 2035 | Z48: 2036 | AA48: 2037 | AB48: 2038 | AC48: 2039 | AD48: 2040 | AE48: 2041
B49: Hours in Year | F49: =+F47*24 -> 0 | G49: 8760 | H49: 8760 | I49: 8760 | J49: 8784 | K49: 8760 | L49: 8760 | M49: 8760 | N49: 8784 | O49: 8760 | P49: 8760 | Q49: 8760 | R49: 8784 | S49: 8760 | T49: 8760 | U49: 8760 | V49: 8784 | W49: 8760 | X49: 8760 | Y49: 8760 | Z49: 8784 | AA49: 8760 | AB49: 8760 | AC49: 8760 | AD49: 8784 | AE49: 8760
B51: Operational | E51: =SUM(F51:AO51) -> 25 | F51: =IF(AND(F46<=$F$21,F46>0),1,0) -> 0 | G51: 1 | H51: 1 | I51: 1 | J51: 1 | K51: 1 | L51: 1 | M51: 1 | N51: 1 | O51: 1 | P51: 1 | Q51: 1 | R51: 1 | S51: 1 | T51: 1 | U51: 1 | V51: 1 | W51: 1 | X51: 1 | Y51: 1 | Z51: 1 | AA51: 1 | AB51: 1 | AC51: 1 | AD51: 1 | AE51: 1
B52: Total Production (MWh) | E52: =SUM(F52:AO52) -> 82028.33899 | F52: =+$F$13/8760*F49*F59*$F$30 -> 0 | G52: 3480 | H52: 3462.6 | I52: 3445.287 | J52: 3437.452512 | K52: 3410.920262 | L52: 3393.865661 | M52: 3376.896333 | N52: 3369.217363 | O52: 3343.211792 | P52: 3326.495733 | Q52: 3309.863254 | R52: 3302.336716 | S52: 3276.847368 | T52: 3260.463131 | U52: 3244.160816 | V52: 3236.783683 | W52: 3211.800311 | X52: 3195.74131 | Y52: 3179.762603 | Z52: 3172.53191 | AA52: 3148.044471 | AB52: 3132.304249 | AC52: 3116.642728 | AD52: 3109.555568 | AE52: 3085.554217
B54: NYSERDA Payment Period | E54: =SUM(F54:AO54) -> 3 | F54: =IF(F46<=3,1,0)*F51 -> 0 | G54: 1 | H54: 1 | I54: 1 | J54: 0 | K54: 0 | L54: 0 | M54: 0 | N54: 0 | O54: 0 | P54: 0 | Q54: 0 | R54: 0 | S54: 0 | T54: 0 | U54: 0 | V54: 0 | W54: 0 | X54: 0 | Y54: 0 | Z54: 0 | AA54: 0 | AB54: 0 | AC54: 0 | AD54: 0 | AE54: 0
B55: NYSERDA Eligible Production | E55: =SUM(F55:AO55) -> 10387.887 | F55: =+F52*F54 -> 0 | G55: 3480 | H55: 3462.6 | I55: 3445.287 | J55: 0 | K55: 0 | L55: 0 | M55: 0 | N55: 0 | O55: 0 | P55: 0 | Q55: 0 | R55: 0 | S55: 0 | T55: 0 | U55: 0 | V55: 0 | W55: 0 | X55: 0 | Y55: 0 | Z55: 0 | AA55: 0 | AB55: 0 | AC55: 0 | AD55: 0 | AE55: 0
B57: Inflation Index | F57: =(1+$F$33)^(F$46-1)*F$51 -> 0 | G57: 1 | H57: 1.02 | I57: 1.0404 | J57: 1.061208 | K57: 1.08243216 | L57: 1.104080803 | M57: 1.126162419 | N57: =(1+$F$33)^(N$46-1)*N$51 -> 1.148685668 | O57: 1.171659381 | P57: 1.195092569 | Q57: 1.21899442 | R57: 1.243374308 | S57: 1.268241795 | T57: 1.29360663 | U57: 1.319478763 | V57: 1.345868338 | W57: 1.372785705 | X57: 1.400241419 | Y57: 1.428246248 | Z57: 1.456811173 | AA57: 1.485947396 | AB57: 1.515666344 | AC57: 1.545979671 | AD57: 1.576899264 | AE57: 1.608437249
B58: PPA Index | F58: =(1+$F$22)^(F46-1) -> 0.9900990099 | G58: 1 | H58: 1.01 | I58: 1.0201 | J58: 1.030301 | K58: 1.04060401 | L58: 1.05101005 | M58: 1.061520151 | N58: 1.072135352 | O58: 1.082856706 | P58: 1.093685273 | Q58: 1.104622125 | R58: 1.115668347 | S58: 1.12682503 | T58: 1.13809328 | U58: 1.149474213 | V58: 1.160968955 | W58: 1.172578645 | X58: 1.184304431 | Y58: 1.196147476 | Z58: 1.20810895 | AA58: 1.22019004 | AB58: 1.23239194 | AC58: 1.24471586 | AD58: 1.257163018 | AE58: 1.269734649
B59: Degradation Index | F59: =(1-$F$32)^(F46-1)*F51 -> 0 | G59: 1 | H59: 0.995 | I59: 0.990025 | J59: 0.985074875 | K59: 0.9801495006 | L59: 0.9752487531 | M59: 0.9703725094 | N59: 0.9655206468 | O59: 0.9606930436 | P59: 0.9558895784 | Q59: 0.9511101305 | R59: 0.9463545798 | S59: 0.9416228069 | T59: 0.9369146929 | U59: 0.9322301194 | V59: 0.9275689688 | W59: 0.922931124 | X59: 0.9183164684 | Y59: 0.913724886 | Z59: 0.9091562616 | AA59: 0.9046104803 | AB59: 0.9000874279 | AC59: 0.8955869907 | AD59: 0.8911090558 | AE59: 0.8866535105
B60: Land Lease Index | F60: =(1+$F$34)^(F$46-1)*F$51 -> 0 | G60: 1 | H60: 1 | I60: 1 | J60: 1 | K60: 1 | L60: 1 | M60: 1 | N60: =(1+$F$34)^(N$46-1)*N$51 -> 1 | O60: 1 | P60: 1 | Q60: 1 | R60: 1 | S60: 1 | T60: 1 | U60: 1 | V60: 1 | W60: 1 | X60: 1 | Y60: 1 | Z60: 1 | AA60: 1 | AB60: 1 | AC60: 1 | AD60: 1 | AE60: 1
B62: State Incentive Collected | F62: 0 | G62: =SUM($F76:F$76,$F74:F$74) -> 283.394322 | H62: =SUM($F76:G$76,$F74:G$74) -> 573.104322 | I62: =SUM($F76:H$76,$F74:H$74) -> 861.365772 | J62: =SUM($F76:I$76,$F74:I$74) -> 1133.577288 | K62: =SUM($F76:J$76,$F74:J$74) -> 1133.577288 | L62: =SUM($F76:K$76,$F74:K$74) -> 1133.577288 | M62: =SUM($F76:L$76,$F74:L$74) -> 1133.577288 | N62: =SUM($F76:M$76,$F74:M$74) -> 1133.577288 | O62: =SUM($F76:N$76,$F74:N$74) -> 1133.577288 | P62: =SUM($F76:O$76,$F74:O$74) -> 1133.577288 | Q62: =SUM($F76:P$76,$F74:P$74) -> 1133.577288 | R62: =SUM($F76:Q$76,$F74:Q$74) -> 1133.577288 | S62: =SUM($F76:R$76,$F74:R$74) -> 1133.577288 | T62: =SUM($F76:S$76,$F74:S$74) -> 1133.577288 | U62: =SUM($F76:T$76,$F74:T$74) -> 1133.577288 | V62: =SUM($F76:U$76,$F74:U$74) -> 1133.577288 | W62: =SUM($F76:V$76,$F74:V$74) -> 1133.577288 | X62: =SUM($F76:W$76,$F74:W$74) -> 1133.577288 | Y62: =SUM($F76:X$76,$F74:X$74) -> 1133.577288 | Z62: =SUM($F76:Y$76,$F74:Y$74) -> 1133.577288 | AA62: =SUM($F76:Z$76,$F74:Z$74) -> 1133.577288 | AB62: =SUM($F76:AA$76,$F74:AA$74) -> 1133.577288 | AC62: =SUM($F76:AB$76,$F74:AB$74) -> 1133.577288 | AD62: =SUM($F76:AC$76,$F74:AC$74) -> 1133.577288 | AE62: =SUM($F76:AD$76,$F74:AD$74) -> 1133.577288
B63: State Incentive Remaining | F63: 0 | G63: =($F$27/1000-G62) -> 850.182966 | H63: 560.472966 | I63: 272.211516 | J63: 0 | K63: 0 | L63: 0 | M63: 0 | N63: 0 | O63: 0 | P63: 0 | Q63: 0 | R63: 0 | S63: 0 | T63: 0 | U63: 0 | V63: 0 | W63: 0 | X63: 0 | Y63: 0 | Z63: 0 | AA63: 0 | AB63: 0 | AC63: 0 | AD63: 0 | AE63: 0
A65: x | B65: Unlevered Operating Cash Flow Build
B66: ($000s) | E66: Total | F66: =F$41 -> 2016-12-31 | G66: =G$41 -> 2017-12-31 | H66: 2018-12-31 | I66: 2019-12-31 | J66: 2020-12-31 | K66: 2021-12-31 | L66: 2022-12-31 | M66: 2023-12-31 | N66: =N$41 -> 2024-12-31 | O66: 2025-12-31 | P66: 2026-12-31 | Q66: 2027-12-31 | R66: =R$41 -> 2028-12-31 | S66: 2029-12-31 | T66: 2030-12-31 | U66: 2031-12-31 | V66: =V$41 -> 2032-12-31 | W66: =W$41 -> 2033-12-31 | X66: 2034-12-31 | Y66: 2035-12-31 | Z66: 2036-12-31 | AA66: 2037-12-31 | AB66: 2038-12-31 | AC66: 2039-12-31 | AD66: 2040-12-31 | AE66: 2041-12-31
B68: Contracted Production (MWh) | E68: =SUM(F68:AO68) -> 82028.33899 | F68: =+F$52 -> 0 | G68: =+G$52 -> 3480 | H68: 3462.6 | I68: 3445.287 | J68: 3437.452512 | K68: 3410.920262 | L68: 3393.865661 | M68: 3376.896333 | N68: =+N$52 -> 3369.217363 | O68: 3343.211792 | P68: 3326.495733 | Q68: 3309.863254 | R68: 3302.336716 | S68: 3276.847368 | T68: 3260.463131 | U68: 3244.160816 | V68: =+V$52 -> 3236.783683 | W68: =+W$52 -> 3211.800311 | X68: 3195.74131 | Y68: 3179.762603 | Z68: 3172.53191 | AA68: 3148.044471 | AB68: 3132.304249 | AC68: 3116.642728 | AD68: 3109.555568 | AE68: 3085.554217
B69: PPA Price ($/kWh) | F69: =+$F$20*F58*(F68>0) -> 0 | G69: 0.081225 | H69: 0.08203725 | I69: 0.0828576225 | J69: 0.08368619872 | K69: 0.08452306071 | L69: 0.08536829132 | M69: 0.08622197423 | N69: 0.08708419397 | O69: 0.08795503591 | P69: 0.08883458627 | Q69: 0.08972293214 | R69: 0.09062016146 | S69: 0.09152636307 | T69: 0.0924416267 | U69: 0.09336604297 | V69: 0.0942997034 | W69: 0.09524270043 | X69: 0.09619512744 | Y69: 0.09715707871 | Z69: 0.0981286495 | AA69: 0.09910993599 | AB69: 0.1001010354 | AC69: 0.1011020457 | AD69: 0.1021130662 | AE69: 0.1031341968
B70: Contracted Energy Revenues (PPA) | E70: =SUM(F70:AO70) -> 7507.659474 | F70: =+F69*F68 -> 0 | G70: 282.663 | H70: 284.0621819 | I70: 285.4682897 | J70: 287.667334 | K70: 288.3014204 | L70: 289.7285124 | M70: 291.1626686 | N70: 293.4055784 | O70: 294.0523132 | P70: 295.5078722 | Q70: 296.9706361 | R70: 299.2582864 | S70: 299.9179219 | T70: 301.4025157 | U70: 302.8944581 | V70: 305.2277413 | W70: 305.9005349 | X70: 307.4147426 | Y70: 308.9364455 | Z70: 311.3162719 | AA70: 312.0024861 | AB70: 313.5468984 | AC70: 315.0989555 | AD70: 317.5262534 | AE70: 318.2261559
F71: `
B72: NYSERDA Sales (MWh) | E72: =SUM(F72:AO72) -> 7790.91525 | F72: =+F55*0.75 -> 0 | G72: 2610 | H72: 2596.95 | I72: 2583.96525 | J72: 0 | K72: 0 | L72: 0 | M72: 0 | N72: 0 | O72: 0 | P72: 0 | Q72: 0 | R72: 0 | S72: 0 | T72: 0 | U72: 0 | V72: 0 | W72: 0 | X72: 0 | Y72: 0 | Z72: 0 | AA72: 0 | AB72: 0 | AC72: 0 | AD72: 0 | AE72: 0
B73: NYSERDA Price ($/MWh) | F73: =$F$24*(F72>0)*1000 -> 0 | G73: 111 | H73: 111 | I73: 111 | J73: 0 | K73: 0 | L73: 0 | M73: 0 | N73: 0 | O73: 0 | P73: 0 | Q73: 0 | R73: 0 | S73: 0 | T73: 0 | U73: 0 | V73: 0 | W73: 0 | X73: 0 | Y73: 0 | Z73: 0 | AA73: 0 | AB73: 0 | AC73: 0 | AD73: 0 | AE73: 0
B74: NYSERDA Revenue | E74: =SUM(F74:AO74) -> 850.182966 | F74: =MIN(F72*F73/1000,F63) -> 0 | G74: =MIN(G72*G73/1000,G63) -> 289.71 | H74: 288.26145 | I74: 272.211516 | J74: 0 | K74: 0 | L74: 0 | M74: 0 | N74: 0 | O74: 0 | P74: 0 | Q74: 0 | R74: 0 | S74: 0 | T74: 0 | U74: 0 | V74: 0 | W74: 0 | X74: 0 | Y74: 0 | Z74: 0 | AA74: 0 | AB74: 0 | AC74: 0 | AD74: 0 | AE74: 0
B76: Upfront NYSERDA Grant | E76: =SUM(F76:AO76) -> 283.394322 | F76: =+$F$27/1000/4*F45 -> 283.394322 | G76: 0 | H76: 0 | I76: 0 | J76: 0 | K76: 0 | L76: 0 | M76: 0 | N76: 0 | O76: 0 | P76: 0 | Q76: 0 | R76: 0 | S76: 0 | T76: 0 | U76: 0 | V76: 0 | W76: 0 | X76: 0 | Y76: 0 | Z76: 0 | AA76: 0 | AB76: 0 | AC76: 0 | AD76: 0 | AE76: 0
B78: Total Revenues | E78: =SUM(F78:AO78) -> 8641.236762 | F78: =+F70+F74+F76 -> 283.394322 | G78: 572.373 | H78: 572.3236318 | I78: 557.6798057 | J78: 287.667334 | K78: 288.3014204 | L78: 289.7285124 | M78: 291.1626686 | N78: 293.4055784 | O78: 294.0523132 | P78: 295.5078722 | Q78: 296.9706361 | R78: 299.2582864 | S78: 299.9179219 | T78: 301.4025157 | U78: 302.8944581 | V78: 305.2277413 | W78: 305.9005349 | X78: 307.4147426 | Y78: 308.9364455 | Z78: 311.3162719 | AA78: 312.0024861 | AB78: 313.5468984 | AC78: 315.0989555 | AD78: 317.5262534 | AE78: 318.2261559
B80: Land Lease | E80: =SUM(F80:AO80) -> -217.5 | F80: =-$F$12*$F$30/1000*F60 -> 0 | G80: -8.7 | H80: -8.7 | I80: -8.7 | J80: -8.7 | K80: -8.7 | L80: -8.7 | M80: -8.7 | N80: -8.7 | O80: -8.7 | P80: -8.7 | Q80: -8.7 | R80: -8.7 | S80: -8.7 | T80: -8.7 | U80: -8.7 | V80: -8.7 | W80: -8.7 | X80: -8.7 | Y80: -8.7 | Z80: -8.7 | AA80: -8.7 | AB80: -8.7 | AC80: -8.7 | AD80: -8.7 | AE80: -8.7
B81: Other Annual Operating Expenses | E81: 0 | F81: =-$F$35*$F$30*F57 -> 0 | G81: 0 | H81: 0 | I81: 0 | J81: 0 | K81: 0 | L81: 0 | M81: 0 | N81: 0 | O81: 0 | P81: 0 | Q81: 0 | R81: 0 | S81: 0 | T81: 0 | U81: 0 | V81: 0 | W81: 0 | X81: 0 | Y81: 0 | Z81: 0 | AA81: 0 | AB81: 0 | AC81: 0 | AD81: 0 | AE81: 0
B82: Real Property Taxes | E82: -461.5785 | F82: =F126 -> 0 | G82: -7.83 | H82: -7.4385 | I82: -7.047 | J82: -6.6555 | K82: -6.264 | L82: -5.8725 | M82: -5.481 | N82: -5.0895 | O82: -4.698 | P82: -4.3065 | Q82: -3.915 | R82: -3.5235 | S82: -3.132 | T82: -2.7405 | U82: -2.349 | V82: -46.98 | W82: -37.584 | X82: -37.584 | Y82: -37.584 | Z82: -37.584 | AA82: -37.584 | AB82: -37.584 | AC82: -37.584 | AD82: -37.584 | AE82: -37.584
B83: Annual O&M | E83: -1114.65443 | G83: =-M22*F30 -> -34.8 | H83: =G83*1.02 -> -35.496 | I83: =H83*1.02 -> -36.20592 | J83: -36.9300384 | K83: -37.66863917 | L83: -38.42201195 | M83: -39.19045219 | N83: =M83*1.02 -> -39.97426123 | O83: =N83*1.02 -> -40.77374646 | P83: -41.58922139 | Q83: -42.42100582 | R83: -43.26942593 | S83: -44.13481445 | T83: -45.01751074 | U83: -45.91786095 | V83: -46.83621817 | W83: -47.77294254 | X83: -48.72840139 | Y83: -49.70296942 | Z83: -50.6970288 | AA83: =IF(AA51=1,Z83*1.02,0) -> -51.71096938 | AB83: -52.74518877 | AC83: -53.80009254 | AD83: -54.87609439 | AE83: -55.97361628
B84: Insurance | E84: -145 | F84: =IF(F51=1,$N$22*-$F$30,0) -> 0 | G84: =IF(G51=1,-$N$22*$F$30,0) -> -5.8 | H84: -5.8 | I84: -5.8 | J84: -5.8 | K84: -5.8 | L84: -5.8 | M84: -5.8 | N84: -5.8 | O84: -5.8 | P84: -5.8 | Q84: -5.8 | R84: -5.8 | S84: -5.8 | T84: -5.8 | U84: -5.8 | V84: -5.8 | W84: -5.8 | X84: -5.8 | Y84: -5.8 | Z84: -5.8 | AA84: -5.8 | AB84: -5.8 | AC84: -5.8 | AD84: -5.8 | AE84: -5.8
B85: CDG Annual Costs | E85: -507.5 | F85: =IF(F51=1,$F$30*-$O$22,0) -> 0 | G85: -20.3 | H85: -20.3 | I85: -20.3 | J85: -20.3 | K85: -20.3 | L85: -20.3 | M85: -20.3 | N85: -20.3 | O85: -20.3 | P85: -20.3 | Q85: -20.3 | R85: -20.3 | S85: -20.3 | T85: -20.3 | U85: -20.3 | V85: -20.3 | W85: -20.3 | X85: -20.3 | Y85: -20.3 | Z85: -20.3 | AA85: -20.3 | AB85: -20.3 | AC85: -20.3 | AD85: -20.3 | AE85: -20.3
B86: Inverter Replacement | E86: =SUM(G86:AH86) -> -580 | F86: 0 | G86: 0 | H86: 0 | I86: 0 | J86: 0 | K86: 0 | L86: 0 | M86: 0 | N86: 0 | O86: 0 | P86: =-0.1*F30*1000 -> -290 | Q86: 0 | R86: 0 | S86: 0 | T86: 0 | U86: 0 | V86: 0 | W86: 0 | X86: 0 | Y86: 0 | Z86: 0 | AA86: =IF(AA51=1,(-0.1*1000*F30),0) -> -290
B87: Total OpEx | E87: =SUM(F87:AO87) -> -3026.23293 | F87: =SUM(F80:F86) -> 0 | G87: =SUM(G80:G86) -> -77.43 | H87: -77.7345 | I87: -78.05292 | J87: -78.3855384 | K87: -78.73263917 | L87: -79.09451195 | M87: -79.47145219 | N87: -79.86376123 | O87: -80.27174646 | P87: -370.6957214 | Q87: -81.13600582 | R87: -81.59292593 | S87: -82.06681445 | T87: -82.55801074 | U87: -83.06686095 | V87: -128.6162182 | W87: -120.1569425 | X87: -121.1124014 | Y87: -122.0869694 | Z87: -123.0810288 | AA87: -414.0949694 | AB87: -125.1291888 | AC87: -126.1840925 | AD87: -127.2600944 | AE87: -128.3576163
B88: Total OpEx $/kWp | F88: =-SUM(F80:F81)/($F$30) -> 0 | G88: 3 | H88: 3 | I88: 3 | J88: 3 | K88: 3 | L88: 3 | M88: 3 | N88: 3 | O88: 3 | P88: 3 | Q88: 3 | R88: 3 | S88: 3 | T88: 3 | U88: 3 | V88: 3 | W88: 3 | X88: 3 | Y88: 3 | Z88: 3 | AA88: 3 | AB88: 3 | AC88: 3 | AD88: 3 | AE88: 3
B89: EBITDA | E89: =SUM(F89:AO89) -> 5615.003832 | F89: =+F87+F78 -> 283.394322 | G89: 494.943 | H89: 494.5891318 | I89: 479.6268857 | J89: 209.2817956 | K89: 209.5687812 | L89: 210.6340005 | M89: 211.6912164 | N89: 213.5418171 | O89: 213.7805667 | P89: -75.18784923 | Q89: 215.8346303 | R89: 217.6653604 | S89: 217.8511075 | T89: 218.8445049 | U89: 219.8275972 | V89: 176.6115231 | W89: 185.7435924 | X89: 186.3023412 | Y89: 186.8494761 | Z89: 188.235243 | AA89: -102.0924833 | AB89: 188.4177096 | AC89: 188.914863 | AD89: 190.266159 | AE89: 189.8685396
B90: EBITDA Margin | F90: =IFERROR(F89/F78*100,0) -> 100 | G90: 86.47210822 | H90: 86.41773716 | I90: 86.00399025 | J90: 72.75132449 | K90: 72.69085978 | L90: 72.70047353 | M90: 72.70548021 | N90: 72.78042167 | O90: 72.70154226 | P90: -25.4436028 | Q90: 72.67877832 | R90: 72.73494849 | S90: 72.63690882 | T90: 72.60871876 | U90: 72.57564187 | V90: 57.86221212 | W90: 60.72025746 | X90: 60.60292998 | Y90: 60.48152584 | Z90: 60.46431236 | AA90: -32.72168905 | AB90: 60.0923532 | AC90: 59.95413811 | AD90: 59.92139452 | AE90: 59.6646555
B93: All-in Cost Basis | E93: =SUM(F93:AO93) -> -4350 | F93: =-$F$11*F45*$F$30*1000 -> -4350 | G93: =-$F$11*G45*$F$30*1000 -> 0 | H93: 0 | I93: 0 | J93: 0 | K93: 0 | L93: 0 | M93: 0 | N93: 0 | O93: 0 | P93: 0 | Q93: 0 | R93: 0 | S93: 0 | T93: 0 | U93: 0 | V93: 0 | W93: 0 | X93: 0 | Y93: 0 | Z93: 0 | AA93: 0 | AB93: 0 | AC93: 0 | AD93: 0 | AE93: 0
B94: Pre-Tax Investor Cash Flow (Pre-PILOT) | E94: =SUM(F94:AO94) -> 1265.003832 | F94: =SUM(F93:F93,F89) -> -4066.605678 | G94: 494.943 | H94: 494.5891318 | I94: 479.6268857 | J94: 209.2817956 | K94: 209.5687812 | L94: 210.6340005 | M94: 211.6912164 | N94: 213.5418171 | O94: 213.7805667 | P94: -75.18784923 | Q94: 215.8346303 | R94: 217.6653604 | S94: 217.8511075 | T94: 218.8445049 | U94: 219.8275972 | V94: 176.6115231 | W94: 185.7435924 | X94: 186.3023412 | Y94: 186.8494761 | Z94: 188.235243 | AA94: -102.0924833 | AB94: 188.4177096 | AC94: 188.914863 | AD94: 190.266159 | AE94: 189.8685396
B95: PILOT Payments | E95: =SUM(F95:AO95) -> 205.8543799 | F95: =-$L$10/1000*F119 -> 0 | G95: 13.72362533 | H95: 13.72362533 | I95: 13.72362533 | J95: 13.72362533 | K95: 13.72362533 | L95: 13.72362533 | M95: 13.72362533 | N95: 13.72362533 | O95: 13.72362533 | P95: 13.72362533 | Q95: 13.72362533 | R95: 13.72362533 | S95: 13.72362533 | T95: 13.72362533 | U95: 13.72362533 | V95: 0 | W95: 0 | X95: 0 | Y95: 0 | Z95: 0 | AA95: 0 | AB95: 0 | AC95: 0 | AD95: 0 | AE95: 0
B96: Pre-Tax Investor Cash Flow (Post-PILOT) | E96: =SUM(F96:AO96) -> 1470.858212 | F96: =SUM(F94:F95) -> -4066.605678 | G96: 508.6666253 | H96: 508.3127572 | I96: 493.350511 | J96: 223.0054209 | K96: 223.2924066 | L96: 224.3576258 | M96: 225.4148417 | N96: 227.2654425 | O96: 227.5041921 | P96: -61.4642239 | Q96: 229.5582556 | R96: 231.3889858 | S96: 231.5747328 | T96: 232.5681302 | U96: 233.5512225 | V96: 176.6115231 | W96: 185.7435924 | X96: 186.3023412 | Y96: 186.8494761 | Z96: 188.235243 | AA96: -102.0924833 | AB96: 188.4177096 | AC96: 188.914863 | AD96: 190.266159 | AE96: 189.8685396
B98: Property Taxes
B100: Property Tax Assumptions
B101: Eligible Construction Costs | E101: [$/W] | F101: =F11*0.9 -> 1.35
B102: Assumed Equalization Rate | E102: [%] | F102: 1
B103: Year 1 Assessed Value for Tax Purposes | E103: [$/W] | F103: =F101*F102 -> 1.35
B104: Nominal Year 1 Assessed Value for Tax Purposes | E104: [$] | F104: =F103*F30*1000000 -> 3915000
B106: PILOT Period | E106: [Years] | F106: 15
B108: Straight Line Depretiation Period | E108: [Years] | F108: 20
B109: Final Value Minimum Threshold | E109: [%] | F109: 0.2
B111: Assumed All-in County+Town+School Tax Rate | E111: [%] | F111: 0.046
B112: Assumed Special District Tax Rate | F112: 0.002
B114: Year | F114: =+'IRR Model'!F48 -> 2016 | G114: =+'IRR Model'!G48 -> 2017 | H114: =+'IRR Model'!H48 -> 2018 | I114: =+'IRR Model'!I48 -> 2019 | J114: =+'IRR Model'!J48 -> 2020 | K114: =+'IRR Model'!K48 -> 2021 | L114: =+'IRR Model'!L48 -> 2022 | M114: =+'IRR Model'!M48 -> 2023 | N114: =+'IRR Model'!N48 -> 2024 | O114: =+'IRR Model'!O48 -> 2025 | P114: =+'IRR Model'!P48 -> 2026 | Q114: =+'IRR Model'!Q48 -> 2027 | R114: =+'IRR Model'!R48 -> 2028 | S114: =+'IRR Model'!S48 -> 2029 | T114: =+'IRR Model'!T48 -> 2030 | U114: =+'IRR Model'!U48 -> 2031 | V114: =+'IRR Model'!V48 -> 2032 | W114: =+'IRR Model'!W48 -> 2033 | X114: =+'IRR Model'!X48 -> 2034 | Y114: =+'IRR Model'!Y48 -> 2035 | Z114: =+'IRR Model'!Z48 -> 2036 | AA114: =+'IRR Model'!AA48 -> 2037 | AB114: =+'IRR Model'!AB48 -> 2038 | AC114: =+'IRR Model'!AC48 -> 2039 | AD114: =+'IRR Model'!AD48 -> 2040 | AE114: =+'IRR Model'!AE48 -> 2041 | AF114: =+'IRR Model'!AF48 -> 0 | AG114: =+'IRR Model'!AG48 -> 0 | AH114: =+'IRR Model'!AH48 -> 0 | AI114: =+'IRR Model'!AI48 -> 0 | AJ114: =+'IRR Model'!AJ48 -> 0 | AK114: =+'IRR Model'!AK48 -> 0 | AL114: =+'IRR Model'!AL48 -> 0 | AM114: =+'IRR Model'!AM48 -> 0 | AN114: =+'IRR Model'!AN48 -> 0 | AO114: =+'IRR Model'!AO48 -> 0
B115: Project Year | F115: =+'IRR Model'!F46 -> 0 | G115: =+'IRR Model'!G46 -> 1 | H115: =+'IRR Model'!H46 -> 2 | I115: =+'IRR Model'!I46 -> 3 | J115: =+'IRR Model'!J46 -> 4 | K115: =+'IRR Model'!K46 -> 5 | L115: =+'IRR Model'!L46 -> 6 | M115: =+'IRR Model'!M46 -> 7 | N115: =+'IRR Model'!N46 -> 8 | O115: =+'IRR Model'!O46 -> 9 | P115: =+'IRR Model'!P46 -> 10 | Q115: =+'IRR Model'!Q46 -> 11 | R115: =+'IRR Model'!R46 -> 12 | S115: =+'IRR Model'!S46 -> 13 | T115: =+'IRR Model'!T46 -> 14 | U115: =+'IRR Model'!U46 -> 15 | V115: =+'IRR Model'!V46 -> 16 | W115: =+'IRR Model'!W46 -> 17 | X115: =+'IRR Model'!X46 -> 18 | Y115: =+'IRR Model'!Y46 -> 19 | Z115: =+'IRR Model'!Z46 -> 20 | AA115: =+'IRR Model'!AA46 -> 21 | AB115: =+'IRR Model'!AB46 -> 22 | AC115: =+'IRR Model'!AC46 -> 23 | AD115: =+'IRR Model'!AD46 -> 24 | AE115: =+'IRR Model'!AE46 -> 25 | AF115: =+'IRR Model'!AF46 -> 0 | AG115: =+'IRR Model'!AG46 -> 0 | AH115: =+'IRR Model'!AH46 -> 0 | AI115: =+'IRR Model'!AI46 -> 0 | AJ115: =+'IRR Model'!AJ46 -> 0 | AK115: =+'IRR Model'!AK46 -> 0 | AL115: =+'IRR Model'!AL46 -> 0 | AM115: =+'IRR Model'!AM46 -> 0 | AN115: =+'IRR Model'!AN46 -> 0 | AO115: =+'IRR Model'!AO46 -> 0
B116: Project Operational | F116: =+'IRR Model'!F51 -> 0 | G116: =+'IRR Model'!G51 -> 1 | H116: =+'IRR Model'!H51 -> 1 | I116: =+'IRR Model'!I51 -> 1 | J116: =+'IRR Model'!J51 -> 1 | K116: =+'IRR Model'!K51 -> 1 | L116: =+'IRR Model'!L51 -> 1 | M116: =+'IRR Model'!M51 -> 1 | N116: =+'IRR Model'!N51 -> 1 | O116: =+'IRR Model'!O51 -> 1 | P116: =+'IRR Model'!P51 -> 1 | Q116: =+'IRR Model'!Q51 -> 1 | R116: =+'IRR Model'!R51 -> 1 | S116: =+'IRR Model'!S51 -> 1 | T116: =+'IRR Model'!T51 -> 1 | U116: =+'IRR Model'!U51 -> 1 | V116: =+'IRR Model'!V51 -> 1 | W116: =+'IRR Model'!W51 -> 1 | X116: =+'IRR Model'!X51 -> 1 | Y116: =+'IRR Model'!Y51 -> 1 | Z116: =+'IRR Model'!Z51 -> 1 | AA116: =+'IRR Model'!AA51 -> 1 | AB116: =+'IRR Model'!AB51 -> 1 | AC116: =+'IRR Model'!AC51 -> 1 | AD116: =+'IRR Model'!AD51 -> 1 | AE116: =+'IRR Model'!AE51 -> 1 | AF116: =+'IRR Model'!AF51 -> 0 | AG116: =+'IRR Model'!AG51 -> 0 | AH116: =+'IRR Model'!AH51 -> 0 | AI116: =+'IRR Model'!AI51 -> 0 | AJ116: =+'IRR Model'!AJ51 -> 0 | AK116: =+'IRR Model'!AK51 -> 0 | AL116: =+'IRR Model'!AL51 -> 0 | AM116: =+'IRR Model'!AM51 -> 0 | AN116: =+'IRR Model'!AN51 -> 0 | AO116: =+'IRR Model'!AO51 -> 0
B117: Depreciation Coefficient | F117: 0 | G117: =MAX($F$109,1-(1/$F$108)*(G$115-1)) -> 1 | H117: 0.95 | I117: 0.9 | J117: 0.85 | K117: 0.8 | L117: 0.75 | M117: 0.7 | N117: =MAX($F$109,1-(1/$F$108)*(N$115-1)) -> 0.65 | O117: 0.6 | P117: 0.55 | Q117: 0.5 | R117: 0.45 | S117: 0.4 | T117: 0.35 | U117: 0.3 | V117: 0.25 | W117: 0.2 | X117: 0.2 | Y117: 0.2 | Z117: 0.2 | AA117: 0.2 | AB117: 0.2 | AC117: 0.2 | AD117: 0.2 | AE117: 0.2 | AF117: 1.05 | AG117: 1.05 | AH117: 1.05 | AI117: 1.05 | AJ117: 1.05 | AK117: 1.05 | AL117: 1.05 | AM117: 1.05 | AN117: 1.05 | AO117: 1.05
B119: PILOT Active | F119: =IF(F115<=$F$106,1,0)*F116 -> 0 | G119: 1 | H119: 1 | I119: 1 | J119: 1 | K119: 1 | L119: 1 | M119: 1 | N119: 1 | O119: 1 | P119: 1 | Q119: 1 | R119: 1 | S119: 1 | T119: 1 | U119: 1 | V119: 0 | W119: 0 | X119: 0 | Y119: 0 | Z119: 0 | AA119: 0 | AB119: 0 | AC119: 0 | AD119: 0 | AE119: 0 | AF119: 0 | AG119: 0 | AH119: 0 | AI119: 0 | AJ119: 0 | AK119: 0 | AL119: 0 | AM119: 0 | AN119: 0 | AO119: 0
B121: Tax Schedule | F121: =+F114 -> 2016 | G121: 2017 | H121: 2018 | I121: 2019 | J121: 2020 | K121: 2021 | L121: 2022 | M121: 2023 | N121: 2024 | O121: 2025 | P121: 2026 | Q121: 2027 | R121: 2028 | S121: 2029 | T121: 2030 | U121: 2031 | V121: 2032 | W121: 2033 | X121: 2034 | Y121: 2035 | Z121: 2036 | AA121: 2037 | AB121: 2038 | AC121: 2039 | AD121: 2040 | AE121: 2041 | AF121: 0 | AG121: 0 | AH121: 0 | AI121: 0 | AJ121: 0 | AK121: 0 | AL121: 0 | AM121: =+AM114 -> 0 | AN121: =+AN114 -> 0 | AO121: =+AO114 -> 0
B123: Real Property Taxes
B124: Assessed Value | F124: =$F$104*F117*F116 -> 0 | G124: 3915000 | H124: 3719250 | I124: 3523500 | J124: 3327750 | K124: 3132000 | L124: 2936250 | M124: 2740500 | N124: 2544750 | O124: 2349000 | P124: 2153250 | Q124: 1957500 | R124: 1761750 | S124: 1566000 | T124: 1370250 | U124: 1174500 | V124: 978750 | W124: 783000 | X124: 783000 | Y124: 783000 | Z124: 783000 | AA124: 783000 | AB124: 783000 | AC124: 783000 | AD124: 783000 | AE124: 783000 | AF124: 0 | AG124: 0 | AH124: 0 | AI124: 0 | AJ124: 0 | AK124: 0 | AL124: 0 | AM124: 0 | AN124: 0 | AO124: 0
B125: Tax Rate | F125: =($F$111*(1-F119)+$F$112)*F116 -> 0 | G125: 0.002 | H125: 0.002 | I125: 0.002 | J125: 0.002 | K125: 0.002 | L125: 0.002 | M125: 0.002 | N125: 0.002 | O125: 0.002 | P125: 0.002 | Q125: 0.002 | R125: 0.002 | S125: 0.002 | T125: 0.002 | U125: 0.002 | V125: 0.048 | W125: 0.048 | X125: 0.048 | Y125: 0.048 | Z125: 0.048 | AA125: 0.048 | AB125: 0.048 | AC125: 0.048 | AD125: 0.048 | AE125: 0.048 | AF125: 0 | AG125: 0 | AH125: 0 | AI125: 0 | AJ125: 0 | AK125: 0 | AL125: 0 | AM125: 0 | AN125: 0 | AO125: 0
B126: Real Property Taxes | F126: =F124*-F125/1000 -> 0 | G126: -7.83 | H126: -7.4385 | I126: -7.047 | J126: -6.6555 | K126: -6.264 | L126: -5.8725 | M126: -5.481 | N126: -5.0895 | O126: -4.698 | P126: -4.3065 | Q126: -3.915 | R126: -3.5235 | S126: -3.132 | T126: -2.7405 | U126: -2.349 | V126: -46.98 | W126: -37.584 | X126: -37.584 | Y126: -37.584 | Z126: -37.584 | AA126: -37.584 | AB126: -37.584 | AC126: -37.584 | AD126: -37.584 | AE126: -37.584 | AF126: 0 | AG126: 0 | AH126: 0 | AI126: 0 | AJ126: 0 | AK126: 0 | AL126: 0 | AM126: =AM124*-AM125/1000 -> 0 | AN126: =AN124*-AN125/1000 -> 0 | AO126: =AO124*-AO125/1000 -> 0

Sheet IRR PILOT Summary by Region (hidden)
B2: NYSERDA - NYS Property Tax Model
B3: PILOT Summary by Region & Key Economic Driver
B5: Tranche 0 | C5: - IRR Based PILOT Amount ($/MWh / % of Retail Rate)
B7: CHG&E | G7: O&R | L7: NGRID
B9: Build Cost | C9: Customer Energy Discount (%) | G9: Build Cost | H9: Customer Energy Discount (%) | L9: Build Cost | M9: Customer Energy Discount (%)
B10: Delta ($/W) | C10: 0.2 | D10: 0.15 | E10: 0.1 | G10: Delta ($/W) | H10: 0.2 | I10: 0.15 | J10: 0.1 | L10: Delta ($/W) | M10: 0.2 | N10: 0.15 | O10: 0.1
B11: 0.1 | C11: =IF(AND($B$7='IRR Model'!$F$8,'IRR PILOT Summary by Region'!$B$5='IRR Model'!$F$19),TEXT('IRR Model'!Q14,"$0.0;($0.0)")&" / "&TEXT('IRR Model'!Q14/(1000*'IRR Model'!$F$10),"0.0%;(0.0%)"),'IRR PILOT Summary by Region'!C11) -> ($6.6) / (4.9%) | D11: =IF(AND($B$7='IRR Model'!$F$8,'IRR PILOT Summary by Region'!$B$5='IRR Model'!$F$19),TEXT('IRR Model'!R14,"$0.0;($0.0)")&" / "&TEXT('IRR Model'!R14/(1000*'IRR Model'!$F$10),"0.0%;(0.0%)"),'IRR PILOT Summary by Region'!D11) -> $1.8 / 1.3% | E11: =IF(AND($B$7='IRR Model'!$F$8,'IRR PILOT Summary by Region'!$B$5='IRR Model'!$F$19),TEXT('IRR Model'!S14,"$0.0;($0.0)")&" / "&TEXT('IRR Model'!S14/(1000*'IRR Model'!$F$10),"0.0%;(0.0%)"),'IRR PILOT Summary by Region'!E11) -> $2.7 / 2.0% | G11: 0.1 | H11: =IF(AND($G$7='IRR Model'!$F$8,'IRR PILOT Summary by Region'!$B$5='IRR Model'!$F$19),TEXT('IRR Model'!Q14,"$0.0;($0.0)")&" / "&TEXT('IRR Model'!Q14/(1000*'IRR Model'!$F$10),"0.0%;(0.0%)"),'IRR PILOT Summary by Region'!H11) -> $3.3 / 2.0% | I11: =IF(AND($G$7='IRR Model'!$F$8,'IRR PILOT Summary by Region'!$B$5='IRR Model'!$F$19),TEXT('IRR Model'!R14,"$0.0;($0.0)")&" / "&TEXT('IRR Model'!R14/(1000*'IRR Model'!$F$10),"0.0%;(0.0%)"),'IRR PILOT Summary by Region'!I11) -> $3.3 / 2.0% | J11: =IF(AND($G$7='IRR Model'!$F$8,'IRR PILOT Summary by Region'!$B$5='IRR Model'!$F$19),TEXT('IRR Model'!S14,"$0.0;($0.0)")&" / "&TEXT('IRR Model'!S14/(1000*'IRR Model'!$F$10),"0.0%;(0.0%)"),'IRR PILOT Summary by Region'!J11) -> $3.3 / 2.0% | L11: 0.1 | M11: =IF(AND($L$7='IRR Model'!$F$8,'IRR PILOT Summary by Region'!$B$5='IRR Model'!$F$19),TEXT('IRR Model'!Q14,"$0.0;($0.0)")&" / "&TEXT('IRR Model'!Q14/(1000*'IRR Model'!$F$10),"0.0%;(0.0%)"),'IRR PILOT Summary by Region'!M11) -> ($24.2) / (25.9%) | N11: =IF(AND($L$7='IRR Model'!$F$8,'IRR PILOT Summary by Region'!$B$5='IRR Model'!$F$19),TEXT('IRR Model'!R14,"$0.0;($0.0)")&" / "&TEXT('IRR Model'!R14/(1000*'IRR Model'!$F$10),"0.0%;(0.0%)"),'IRR PILOT Summary by Region'!N11) -> ($18.4) / (19.6%) | O11: =IF(AND($L$7='IRR Model'!$F$8,'IRR PILOT Summary by Region'!$B$5='IRR Model'!$F$19),TEXT('IRR Model'!S14,"$0.0;($0.0)")&" / "&TEXT('IRR Model'!S14/(1000*'IRR Model'!$F$10),"0.0%;(0.0%)"),'IRR PILOT Summary by Region'!O11) -> ($12.5) / (13.3%)
B12: 0 | C12: =IF(AND($B$7='IRR Model'!$F$8,'IRR PILOT Summary by Region'!$B$5='IRR Model'!$F$19),TEXT('IRR Model'!Q15,"$0.0;($0.0)")&" / "&TEXT('IRR Model'!Q15/(1000*'IRR Model'!$F$10),"0.0%;(0.0%)"),'IRR PILOT Summary by Region'!C12) -> ($0.0) / (0.0%) | D12: =IF(AND($B$7='IRR Model'!$F$8,'IRR PILOT Summary by Region'!$B$5='IRR Model'!$F$19),TEXT('IRR Model'!R15,"$0.0;($0.0)")&" / "&TEXT('IRR Model'!R15/(1000*'IRR Model'!$F$10),"0.0%;(0.0%)"),'IRR PILOT Summary by Region'!D12) -> $2.7 / 2.0% | E12: =IF(AND($B$7='IRR Model'!$F$8,'IRR PILOT Summary by Region'!$B$5='IRR Model'!$F$19),TEXT('IRR Model'!S15,"$0.0;($0.0)")&" / "&TEXT('IRR Model'!S15/(1000*'IRR Model'!$F$10),"0.0%;(0.0%)"),'IRR PILOT Summary by Region'!E12) -> 0 | G12: 0 | H12: =IF(AND($G$7='IRR Model'!$F$8,'IRR PILOT Summary by Region'!$B$5='IRR Model'!$F$19),TEXT('IRR Model'!Q15,"$0.0;($0.0)")&" / "&TEXT('IRR Model'!Q15/(1000*'IRR Model'!$F$10),"0.0%;(0.0%)"),'IRR PILOT Summary by Region'!H12) -> $3.3 / 2.0% | I12: =IF(AND($G$7='IRR Model'!$F$8,'IRR PILOT Summary by Region'!$B$5='IRR Model'!$F$19),TEXT('IRR Model'!R15,"$0.0;($0.0)")&" / "&TEXT('IRR Model'!R15/(1000*'IRR Model'!$F$10),"0.0%;(0.0%)"),'IRR PILOT Summary by Region'!I12) -> $3.3 / 2.0% | J12: =IF(AND($G$7='IRR Model'!$F$8,'IRR PILOT Summary by Region'!$B$5='IRR Model'!$F$19),TEXT('IRR Model'!S15,"$0.0;($0.0)")&" / "&TEXT('IRR Model'!S15/(1000*'IRR Model'!$F$10),"0.0%;(0.0%)"),'IRR PILOT Summary by Region'!J12) -> $3.3 / 2.0% | L12: 0 | M12: =IF(AND($L$7='IRR Model'!$F$8,'IRR PILOT Summary by Region'!$B$5='IRR Model'!$F$19),TEXT('IRR Model'!Q15,"$0.0;($0.0)")&" / "&TEXT('IRR Model'!Q15/(1000*'IRR Model'!$F$10),"0.0%;(0.0%)"),'IRR PILOT Summary by Region'!M12) -> ($17.3) / (18.5%) | N12: =IF(AND($L$7='IRR Model'!$F$8,'IRR PILOT Summary by Region'!$B$5='IRR Model'!$F$19),TEXT('IRR Model'!R15,"$0.0;($0.0)")&" / "&TEXT('IRR Model'!R15/(1000*'IRR Model'!$F$10),"0.0%;(0.0%)"),'IRR PILOT Summary by Region'!N12) -> ($11.4) / (12.2%) | O12: =IF(AND($L$7='IRR Model'!$F$8,'IRR PILOT Summary by Region'!$B$5='IRR Model'!$F$19),TEXT('IRR Model'!S15,"$0.0;($0.0)")&" / "&TEXT('IRR Model'!S15/(1000*'IRR Model'!$F$10),"0.0%;(0.0%)"),'IRR PILOT Summary by Region'!O12) -> ($5.6) / (5.9%)
B13: -0.1 | C13: =IF(AND($B$7='IRR Model'!$F$8,'IRR PILOT Summary by Region'!$B$5='IRR Model'!$F$19),TEXT('IRR Model'!Q16,"$0.0;($0.0)")&" / "&TEXT('IRR Model'!Q16/(1000*'IRR Model'!$F$10),"0.0%;(0.0%)"),'IRR PILOT Summary by Region'!C13) -> $2.7 / 2.0% | D13: =IF(AND($B$7='IRR Model'!$F$8,'IRR PILOT Summary by Region'!$B$5='IRR Model'!$F$19),TEXT('IRR Model'!R16,"$0.0;($0.0)")&" / "&TEXT('IRR Model'!R16/(1000*'IRR Model'!$F$10),"0.0%;(0.0%)"),'IRR PILOT Summary by Region'!D13) -> $2.7 / 2.0% | E13: =IF(AND($B$7='IRR Model'!$F$8,'IRR PILOT Summary by Region'!$B$5='IRR Model'!$F$19),TEXT('IRR Model'!S16,"$0.0;($0.0)")&" / "&TEXT('IRR Model'!S16/(1000*'IRR Model'!$F$10),"0.0%;(0.0%)"),'IRR PILOT Summary by Region'!E13) -> $2.7 / 2.0% | G13: -0.1 | H13: =IF(AND($G$7='IRR Model'!$F$8,'IRR PILOT Summary by Region'!$B$5='IRR Model'!$F$19),TEXT('IRR Model'!Q16,"$0.0;($0.0)")&" / "&TEXT('IRR Model'!Q16/(1000*'IRR Model'!$F$10),"0.0%;(0.0%)"),'IRR PILOT Summary by Region'!H13) -> $3.3 / 2.0% | I13: =IF(AND($G$7='IRR Model'!$F$8,'IRR PILOT Summary by Region'!$B$5='IRR Model'!$F$19),TEXT('IRR Model'!R16,"$0.0;($0.0)")&" / "&TEXT('IRR Model'!R16/(1000*'IRR Model'!$F$10),"0.0%;(0.0%)"),'IRR PILOT Summary by Region'!I13) -> $3.3 / 2.0% | J13: =IF(AND($G$7='IRR Model'!$F$8,'IRR PILOT Summary by Region'!$B$5='IRR Model'!$F$19),TEXT('IRR Model'!S16,"$0.0;($0.0)")&" / "&TEXT('IRR Model'!S16/(1000*'IRR Model'!$F$10),"0.0%;(0.0%)"),'IRR PILOT Summary by Region'!J13) -> $3.3 / 2.0% | L13: -0.1 | M13: =IF(AND($L$7='IRR Model'!$F$8,'IRR PILOT Summary by Region'!$B$5='IRR Model'!$F$19),TEXT('IRR Model'!Q16,"$0.0;($0.0)")&" / "&TEXT('IRR Model'!Q16/(1000*'IRR Model'!$F$10),"0.0%;(0.0%)"),'IRR PILOT Summary by Region'!M13) -> ($10.4) / (11.1%) | N13: =IF(AND($L$7='IRR Model'!$F$8,'IRR PILOT Summary by Region'!$B$5='IRR Model'!$F$19),TEXT('IRR Model'!R16,"$0.0;($0.0)")&" / "&TEXT('IRR Model'!R16/(1000*'IRR Model'!$F$10),"0.0%;(0.0%)"),'IRR PILOT Summary by Region'!N13) -> ($4.5) / (4.8%) | O13: =IF(AND($L$7='IRR Model'!$F$8,'IRR PILOT Summary by Region'!$B$5='IRR Model'!$F$19),TEXT('IRR Model'!S16,"$0.0;($0.0)")&" / "&TEXT('IRR Model'!S16/(1000*'IRR Model'!$F$10),"0.0%;(0.0%)"),'IRR PILOT Summary by Region'!O13) -> $1.4 / 1.4%
B15: NYSEG | G15: ConEd | L15: RG&E
B17: Build Cost | C17: Customer Energy Discount (%) | G17: Build Cost | H17: Customer Energy Discount (%) | L17: Build Cost | M17: Customer Energy Discount (%)
B18: Delta ($/W) | C18: 0.2 | D18: 0.15 | E18: 0.1 | G18: Delta ($/W) | H18: 0.2 | I18: 0.15 | J18: 0.1 | L18: Delta ($/W) | M18: 0.2 | N18: 0.15 | O18: 0.1
B19: 0.1 | C19: =IF(AND($B$15='IRR Model'!$F$8,'IRR PILOT Summary by Region'!$B$5='IRR Model'!$F$19),TEXT('IRR Model'!Q14,"$0.0;($0.0)")&" / "&TEXT('IRR Model'!Q14/(1000*'IRR Model'!$F$10),"0.0%;(0.0%)"),'IRR PILOT Summary by Region'!C19) -> ($25.9) / (27.6%) | D19: =IF(AND($B$15='IRR Model'!$F$8,'IRR PILOT Summary by Region'!$B$5='IRR Model'!$F$19),TEXT('IRR Model'!R14,"$0.0;($0.0)")&" / "&TEXT('IRR Model'!R14/(1000*'IRR Model'!$F$10),"0.0%;(0.0%)"),'IRR PILOT Summary by Region'!D19) -> ($20.0) / (21.3%) | E19: =IF(AND($B$15='IRR Model'!$F$8,'IRR PILOT Summary by Region'!$B$5='IRR Model'!$F$19),TEXT('IRR Model'!S14,"$0.0;($0.0)")&" / "&TEXT('IRR Model'!S14/(1000*'IRR Model'!$F$10),"0.0%;(0.0%)"),'IRR PILOT Summary by Region'!E19) -> ($14.1) / (15.0%) | G19: 0.1 | H19: =IF(AND($G$15='IRR Model'!$F$8,'IRR PILOT Summary by Region'!$B$5='IRR Model'!$F$19),TEXT('IRR Model'!Q14,"$0.0;($0.0)")&" / "&TEXT('IRR Model'!Q14/(1000*'IRR Model'!$F$10),"0.0%;(0.0%)"),'IRR PILOT Summary by Region'!H19) -> $3.2 / 1.6% | I19: =IF(AND($G$15='IRR Model'!$F$8,'IRR PILOT Summary by Region'!$B$5='IRR Model'!$F$19),TEXT('IRR Model'!R14,"$0.0;($0.0)")&" / "&TEXT('IRR Model'!R14/(1000*'IRR Model'!$F$10),"0.0%;(0.0%)"),'IRR PILOT Summary by Region'!I19) -> $4.1 / 2.0% | J19: =IF(AND($G$15='IRR Model'!$F$8,'IRR PILOT Summary by Region'!$B$5='IRR Model'!$F$19),TEXT('IRR Model'!S14,"$0.0;($0.0)")&" / "&TEXT('IRR Model'!S14/(1000*'IRR Model'!$F$10),"0.0%;(0.0%)"),'IRR PILOT Summary by Region'!J19) -> $4.1 / 2.0% | L19: 0.1 | M19: =IF(AND($L$7='IRR Model'!$F$8,'IRR PILOT Summary by Region'!$B$5='IRR Model'!$F$19),TEXT('IRR Model'!Q14,"$0.0;($0.0)")&" / "&TEXT('IRR Model'!Q14/(1000*'IRR Model'!$F$10),"0.0%;(0.0%)"),'IRR PILOT Summary by Region'!M19) -> ($24.2) / (25.9%) | N19: =IF(AND($L$7='IRR Model'!$F$8,'IRR PILOT Summary by Region'!$B$5='IRR Model'!$F$19),TEXT('IRR Model'!R14,"$0.0;($0.0)")&" / "&TEXT('IRR Model'!R14/(1000*'IRR Model'!$F$10),"0.0%;(0.0%)"),'IRR PILOT Summary by Region'!N19) -> ($18.4) / (19.6%) | O19: =IF(AND($L$7='IRR Model'!$F$8,'IRR PILOT Summary by Region'!$B$5='IRR Model'!$F$19),TEXT('IRR Model'!S14,"$0.0;($0.0)")&" / "&TEXT('IRR Model'!S14/(1000*'IRR Model'!$F$10),"0.0%;(0.0%)"),'IRR PILOT Summary by Region'!O19) -> ($12.5) / (13.3%)
B20: 0 | C20: =IF(AND($B$15='IRR Model'!$F$8,'IRR PILOT Summary by Region'!$B$5='IRR Model'!$F$19),TEXT('IRR Model'!Q15,"$0.0;($0.0)")&" / "&TEXT('IRR Model'!Q15/(1000*'IRR Model'!$F$10),"0.0%;(0.0%)"),'IRR PILOT Summary by Region'!C20) -> ($18.7) / (19.9%) | D20: =IF(AND($B$15='IRR Model'!$F$8,'IRR PILOT Summary by Region'!$B$5='IRR Model'!$F$19),TEXT('IRR Model'!R15,"$0.0;($0.0)")&" / "&TEXT('IRR Model'!R15/(1000*'IRR Model'!$F$10),"0.0%;(0.0%)"),'IRR PILOT Summary by Region'!D20) -> ($12.9) / (13.7%) | E20: =IF(AND($B$15='IRR Model'!$F$8,'IRR PILOT Summary by Region'!$B$5='IRR Model'!$F$19),TEXT('IRR Model'!S15,"$0.0;($0.0)")&" / "&TEXT('IRR Model'!S15/(1000*'IRR Model'!$F$10),"0.0%;(0.0%)"),'IRR PILOT Summary by Region'!E20) -> ($7.0) / (7.4%) | G20: 0 | H20: =IF(AND($G$15='IRR Model'!$F$8,'IRR PILOT Summary by Region'!$B$5='IRR Model'!$F$19),TEXT('IRR Model'!Q15,"$0.0;($0.0)")&" / "&TEXT('IRR Model'!Q15/(1000*'IRR Model'!$F$10),"0.0%;(0.0%)"),'IRR PILOT Summary by Region'!H20) -> $4.1 / 2.0% | I20: =IF(AND($G$15='IRR Model'!$F$8,'IRR PILOT Summary by Region'!$B$5='IRR Model'!$F$19),TEXT('IRR Model'!R15,"$0.0;($0.0)")&" / "&TEXT('IRR Model'!R15/(1000*'IRR Model'!$F$10),"0.0%;(0.0%)"),'IRR PILOT Summary by Region'!I20) -> $4.1 / 2.0% | J20: =IF(AND($G$15='IRR Model'!$F$8,'IRR PILOT Summary by Region'!$B$5='IRR Model'!$F$19),TEXT('IRR Model'!S15,"$0.0;($0.0)")&" / "&TEXT('IRR Model'!S15/(1000*'IRR Model'!$F$10),"0.0%;(0.0%)"),'IRR PILOT Summary by Region'!J20) -> $4.1 / 2.0% | L20: 0 | M20: =IF(AND($L$7='IRR Model'!$F$8,'IRR PILOT Summary by Region'!$B$5='IRR Model'!$F$19),TEXT('IRR Model'!Q15,"$0.0;($0.0)")&" / "&TEXT('IRR Model'!Q15/(1000*'IRR Model'!$F$10),"0.0%;(0.0%)"),'IRR PILOT Summary by Region'!M20) -> ($17.3) / (18.5%) | N20: =IF(AND($L$7='IRR Model'!$F$8,'IRR PILOT Summary by Region'!$B$5='IRR Model'!$F$19),TEXT('IRR Model'!R15,"$0.0;($0.0)")&" / "&TEXT('IRR Model'!R15/(1000*'IRR Model'!$F$10),"0.0%;(0.0%)"),'IRR PILOT Summary by Region'!N20) -> ($11.4) / (12.2%) | O20: =IF(AND($L$7='IRR Model'!$F$8,'IRR PILOT Summary by Region'!$B$5='IRR Model'!$F$19),TEXT('IRR Model'!S15,"$0.0;($0.0)")&" / "&TEXT('IRR Model'!S15/(1000*'IRR Model'!$F$10),"0.0%;(0.0%)"),'IRR PILOT Summary by Region'!O20) -> ($5.6) / (5.9%)
B21: -0.1 | C21: =IF(AND($B$15='IRR Model'!$F$8,'IRR PILOT Summary by Region'!$B$5='IRR Model'!$F$19),TEXT('IRR Model'!Q16,"$0.0;($0.0)")&" / "&TEXT('IRR Model'!Q16/(1000*'IRR Model'!$F$10),"0.0%;(0.0%)"),'IRR PILOT Summary by Region'!C21) -> ($11.6) / (12.3%) | D21: =IF(AND($B$15='IRR Model'!$F$8,'IRR PILOT Summary by Region'!$B$5='IRR Model'!$F$19),TEXT('IRR Model'!R16,"$0.0;($0.0)")&" / "&TEXT('IRR Model'!R16/(1000*'IRR Model'!$F$10),"0.0%;(0.0%)"),'IRR PILOT Summary by Region'!D21) -> ($5.7) / (6.1%) | E21: =IF(AND($B$15='IRR Model'!$F$8,'IRR PILOT Summary by Region'!$B$5='IRR Model'!$F$19),TEXT('IRR Model'!S16,"$0.0;($0.0)")&" / "&TEXT('IRR Model'!S16/(1000*'IRR Model'!$F$10),"0.0%;(0.0%)"),'IRR PILOT Summary by Region'!E21) -> $0.2 / 0.2% | G21: -0.1 | H21: =IF(AND($G$15='IRR Model'!$F$8,'IRR PILOT Summary by Region'!$B$5='IRR Model'!$F$19),TEXT('IRR Model'!Q16,"$0.0;($0.0)")&" / "&TEXT('IRR Model'!Q16/(1000*'IRR Model'!$F$10),"0.0%;(0.0%)"),'IRR PILOT Summary by Region'!H21) -> $4.1 / 2.0% | I21: =IF(AND($G$15='IRR Model'!$F$8,'IRR PILOT Summary by Region'!$B$5='IRR Model'!$F$19),TEXT('IRR Model'!R16,"$0.0;($0.0)")&" / "&TEXT('IRR Model'!R16/(1000*'IRR Model'!$F$10),"0.0%;(0.0%)"),'IRR PILOT Summary by Region'!I21) -> $4.1 / 2.0% | J21: =IF(AND($G$15='IRR Model'!$F$8,'IRR PILOT Summary by Region'!$B$5='IRR Model'!$F$19),TEXT('IRR Model'!S16,"$0.0;($0.0)")&" / "&TEXT('IRR Model'!S16/(1000*'IRR Model'!$F$10),"0.0%;(0.0%)"),'IRR PILOT Summary by Region'!J21) -> $4.1 / 2.0% | L21: -0.1 | M21: =IF(AND($L$7='IRR Model'!$F$8,'IRR PILOT Summary by Region'!$B$5='IRR Model'!$F$19),TEXT('IRR Model'!Q16,"$0.0;($0.0)")&" / "&TEXT('IRR Model'!Q16/(1000*'IRR Model'!$F$10),"0.0%;(0.0%)"),'IRR PILOT Summary by Region'!M21) -> ($10.4) / (11.1%) | N21: =IF(AND($L$7='IRR Model'!$F$8,'IRR PILOT Summary by Region'!$B$5='IRR Model'!$F$19),TEXT('IRR Model'!R16,"$0.0;($0.0)")&" / "&TEXT('IRR Model'!R16/(1000*'IRR Model'!$F$10),"0.0%;(0.0%)"),'IRR PILOT Summary by Region'!N21) -> ($4.5) / (4.8%) | O21: =IF(AND($L$7='IRR Model'!$F$8,'IRR PILOT Summary by Region'!$B$5='IRR Model'!$F$19),TEXT('IRR Model'!S16,"$0.0;($0.0)")&" / "&TEXT('IRR Model'!S16/(1000*'IRR Model'!$F$10),"0.0%;(0.0%)"),'IRR PILOT Summary by Region'!O21) -> $1.4 / 1.4%
B23: Tranche 1 | C23: - IRR Based PILOT Amount ($/MWh / % of Retail Rate)
B25: CHG&E | G25: O&R | L25: NGRID
B27: Build Cost | C27: Customer Energy Discount (%) | G27: Build Cost | H27: Customer Energy Discount (%) | L27: Build Cost | M27: Customer Energy Discount (%)
B28: Delta ($/W) | C28: 0.2 | D28: 0.15 | E28: 0.1 | G28: Delta ($/W) | H28: 0.2 | I28: 0.15 | J28: 0.1 | L28: Delta ($/W) | M28: 0.2 | N28: 0.15 | O28: 0.1
B29: 0.1 | C29: =IF(AND($B$25='IRR Model'!$F$8,'IRR PILOT Summary by Region'!$B$23='IRR Model'!$F$19),TEXT('IRR Model'!Q14,"$0.0;($0.0)")&" / "&TEXT('IRR Model'!Q14/(1000*'IRR Model'!$F$10),"0.0%;(0.0%)"),'IRR PILOT Summary by Region'!C29) -> $2.7 / 2.0% | D29: =IF(AND($B$25='IRR Model'!$F$8,'IRR PILOT Summary by Region'!$B$23='IRR Model'!$F$19),TEXT('IRR Model'!R14,"$0.0;($0.0)")&" / "&TEXT('IRR Model'!R14/(1000*'IRR Model'!$F$10),"0.0%;(0.0%)"),'IRR PILOT Summary by Region'!D29) -> $2.7 / 2.0% | E29: =IF(AND($B$25='IRR Model'!$F$8,'IRR PILOT Summary by Region'!$B$23='IRR Model'!$F$19),TEXT('IRR Model'!S14,"$0.0;($0.0)")&" / "&TEXT('IRR Model'!S14/(1000*'IRR Model'!$F$10),"0.0%;(0.0%)"),'IRR PILOT Summary by Region'!E29) -> $2.7 / 2.0% | G29: 0.1 | H29: =IF(AND($G$25='IRR Model'!$F$8,'IRR PILOT Summary by Region'!$B$23='IRR Model'!$F$19),TEXT('IRR Model'!Q14,"$0.0;($0.0)")&" / "&TEXT('IRR Model'!Q14/(1000*'IRR Model'!$F$10),"0.0%;(0.0%)"),'IRR PILOT Summary by Region'!H29) -> $3.3 / 2.0% | I29: =IF(AND($G$25='IRR Model'!$F$8,'IRR PILOT Summary by Region'!$B$23='IRR Model'!$F$19),TEXT('IRR Model'!R14,"$0.0;($0.0)")&" / "&TEXT('IRR Model'!R14/(1000*'IRR Model'!$F$10),"0.0%;(0.0%)"),'IRR PILOT Summary by Region'!I29) -> $3.3 / 2.0% | J29: =IF(AND($G$25='IRR Model'!$F$8,'IRR PILOT Summary by Region'!$B$23='IRR Model'!$F$19),TEXT('IRR Model'!S14,"$0.0;($0.0)")&" / "&TEXT('IRR Model'!S14/(1000*'IRR Model'!$F$10),"0.0%;(0.0%)"),'IRR PILOT Summary by Region'!J29) -> $3.3 / 2.0% | L29: 0.1 | M29: =IF(AND($L$25='IRR Model'!$F$8,'IRR PILOT Summary by Region'!$B$23='IRR Model'!$F$19),TEXT('IRR Model'!Q14,"$0.0;($0.0)")&" / "&TEXT('IRR Model'!Q14/(1000*'IRR Model'!$F$10),"0.0%;(0.0%)"),'IRR PILOT Summary by Region'!M29) -> ($18.5) / (19.7%) | N29: =IF(AND($L$25='IRR Model'!$F$8,'IRR PILOT Summary by Region'!$B$23='IRR Model'!$F$19),TEXT('IRR Model'!R14,"$0.0;($0.0)")&" / "&TEXT('IRR Model'!R14/(1000*'IRR Model'!$F$10),"0.0%;(0.0%)"),'IRR PILOT Summary by Region'!N29) -> ($11.6) / (12.4%) | O29: =IF(AND($L$25='IRR Model'!$F$8,'IRR PILOT Summary by Region'!$B$23='IRR Model'!$F$19),TEXT('IRR Model'!S14,"$0.0;($0.0)")&" / "&TEXT('IRR Model'!S14/(1000*'IRR Model'!$F$10),"0.0%;(0.0%)"),'IRR PILOT Summary by Region'!O29) -> ($4.7) / (5.0%)
B30: 0 | C30: =IF(AND($B$25='IRR Model'!$F$8,'IRR PILOT Summary by Region'!$B$23='IRR Model'!$F$19),TEXT('IRR Model'!Q15,"$0.0;($0.0)")&" / "&TEXT('IRR Model'!Q15/(1000*'IRR Model'!$F$10),"0.0%;(0.0%)"),'IRR PILOT Summary by Region'!C30) -> $2.7 / 2.0% | D30: =IF(AND($B$25='IRR Model'!$F$8,'IRR PILOT Summary by Region'!$B$23='IRR Model'!$F$19),TEXT('IRR Model'!R15,"$0.0;($0.0)")&" / "&TEXT('IRR Model'!R15/(1000*'IRR Model'!$F$10),"0.0%;(0.0%)"),'IRR PILOT Summary by Region'!D30) -> $2.7 / 2.0% | E30: =IF(AND($B$25='IRR Model'!$F$8,'IRR PILOT Summary by Region'!$B$23='IRR Model'!$F$19),TEXT('IRR Model'!S15,"$0.0;($0.0)")&" / "&TEXT('IRR Model'!S15/(1000*'IRR Model'!$F$10),"0.0%;(0.0%)"),'IRR PILOT Summary by Region'!E30) -> $2.7 / 2.0% | G30: 0 | H30: =IF(AND($G$25='IRR Model'!$F$8,'IRR PILOT Summary by Region'!$B$23='IRR Model'!$F$19),TEXT('IRR Model'!Q15,"$0.0;($0.0)")&" / "&TEXT('IRR Model'!Q15/(1000*'IRR Model'!$F$10),"0.0%;(0.0%)"),'IRR PILOT Summary by Region'!H30) -> $3.3 / 2.0% | I30: =IF(AND($G$25='IRR Model'!$F$8,'IRR PILOT Summary by Region'!$B$23='IRR Model'!$F$19),TEXT('IRR Model'!R15,"$0.0;($0.0)")&" / "&TEXT('IRR Model'!R15/(1000*'IRR Model'!$F$10),"0.0%;(0.0%)"),'IRR PILOT Summary by Region'!I30) -> $3.3 / 2.0% | J30: =IF(AND($G$25='IRR Model'!$F$8,'IRR PILOT Summary by Region'!$B$23='IRR Model'!$F$19),TEXT('IRR Model'!S15,"$0.0;($0.0)")&" / "&TEXT('IRR Model'!S15/(1000*'IRR Model'!$F$10),"0.0%;(0.0%)"),'IRR PILOT Summary by Region'!J30) -> $3.3 / 2.0% | L30: 0 | M30: =IF(AND($L$25='IRR Model'!$F$8,'IRR PILOT Summary by Region'!$B$23='IRR Model'!$F$19),TEXT('IRR Model'!Q15,"$0.0;($0.0)")&" / "&TEXT('IRR Model'!Q15/(1000*'IRR Model'!$F$10),"0.0%;(0.0%)"),'IRR PILOT Summary by Region'!M30) -> ($11.4) / (12.2%) | N30: =IF(AND($L$25='IRR Model'!$F$8,'IRR PILOT Summary by Region'!$B$23='IRR Model'!$F$19),TEXT('IRR Model'!R15,"$0.0;($0.0)")&" / "&TEXT('IRR Model'!R15/(1000*'IRR Model'!$F$10),"0.0%;(0.0%)"),'IRR PILOT Summary by Region'!N30) -> ($4.5) / (4.8%) | O30: =IF(AND($L$25='IRR Model'!$F$8,'IRR PILOT Summary by Region'!$B$23='IRR Model'!$F$19),TEXT('IRR Model'!S15,"$0.0;($0.0)")&" / "&TEXT('IRR Model'!S15/(1000*'IRR Model'!$F$10),"0.0%;(0.0%)"),'IRR PILOT Summary by Region'!O30) -> $1.9 / 2.0% | Q30: =AVERAGE(MID(O30,FIND("/",O30)+1,5),MID(E38,FIND("/",E38)+1,5),MID(O38,FIND("/",O38)+1,7)) -> 0.017
B31: -0.1 | C31: =IF(AND($B$25='IRR Model'!$F$8,'IRR PILOT Summary by Region'!$B$23='IRR Model'!$F$19),TEXT('IRR Model'!Q16,"$0.0;($0.0)")&" / "&TEXT('IRR Model'!Q16/(1000*'IRR Model'!$F$10),"0.0%;(0.0%)"),'IRR PILOT Summary by Region'!C31) -> $2.7 / 2.0% | D31: =IF(AND($B$25='IRR Model'!$F$8,'IRR PILOT Summary by Region'!$B$23='IRR Model'!$F$19),TEXT('IRR Model'!R16,"$0.0;($0.0)")&" / "&TEXT('IRR Model'!R16/(1000*'IRR Model'!$F$10),"0.0%;(0.0%)"),'IRR PILOT Summary by Region'!D31) -> $2.7 / 2.0% | E31: =IF(AND($B$25='IRR Model'!$F$8,'IRR PILOT Summary by Region'!$B$23='IRR Model'!$F$19),TEXT('IRR Model'!S16,"$0.0;($0.0)")&" / "&TEXT('IRR Model'!S16/(1000*'IRR Model'!$F$10),"0.0%;(0.0%)"),'IRR PILOT Summary by Region'!E31) -> $2.7 / 2.0% | G31: -0.1 | H31: =IF(AND($G$25='IRR Model'!$F$8,'IRR PILOT Summary by Region'!$B$23='IRR Model'!$F$19),TEXT('IRR Model'!Q16,"$0.0;($0.0)")&" / "&TEXT('IRR Model'!Q16/(1000*'IRR Model'!$F$10),"0.0%;(0.0%)"),'IRR PILOT Summary by Region'!H31) -> $3.3 / 2.0% | I31: =IF(AND($G$25='IRR Model'!$F$8,'IRR PILOT Summary by Region'!$B$23='IRR Model'!$F$19),TEXT('IRR Model'!R16,"$0.0;($0.0)")&" / "&TEXT('IRR Model'!R16/(1000*'IRR Model'!$F$10),"0.0%;(0.0%)"),'IRR PILOT Summary by Region'!I31) -> $3.3 / 2.0% | J31: =IF(AND($G$25='IRR Model'!$F$8,'IRR PILOT Summary by Region'!$B$23='IRR Model'!$F$19),TEXT('IRR Model'!S16,"$0.0;($0.0)")&" / "&TEXT('IRR Model'!S16/(1000*'IRR Model'!$F$10),"0.0%;(0.0%)"),'IRR PILOT Summary by Region'!J31) -> $3.3 / 2.0% | L31: -0.1 | M31: =IF(AND($L$25='IRR Model'!$F$8,'IRR PILOT Summary by Region'!$B$23='IRR Model'!$F$19),TEXT('IRR Model'!Q16,"$0.0;($0.0)")&" / "&TEXT('IRR Model'!Q16/(1000*'IRR Model'!$F$10),"0.0%;(0.0%)"),'IRR PILOT Summary by Region'!M31) -> ($4.4) / (4.7%) | N31: =IF(AND($L$25='IRR Model'!$F$8,'IRR PILOT Summary by Region'!$B$23='IRR Model'!$F$19),TEXT('IRR Model'!R16,"$0.0;($0.0)")&" / "&TEXT('IRR Model'!R16/(1000*'IRR Model'!$F$10),"0.0%;(0.0%)"),'IRR PILOT Summary by Region'!N31) -> $1.9 / 2.0% | O31: =IF(AND($L$25='IRR Model'!$F$8,'IRR PILOT Summary by Region'!$B$23='IRR Model'!$F$19),TEXT('IRR Model'!S16,"$0.0;($0.0)")&" / "&TEXT('IRR Model'!S16/(1000*'IRR Model'!$F$10),"0.0%;(0.0%)"),'IRR PILOT Summary by Region'!O31) -> $1.9 / 2.0%
B33: NYSEG | G33: ConEd | L33: RG&E
B35: Build Cost | C35: Customer Energy Discount (%) | G35: Build Cost | H35: Customer Energy Discount (%) | L35: Build Cost | M35: Customer Energy Discount (%)
B36: Delta ($/W) | C36: 0.2 | D36: 0.15 | E36: 0.1 | G36: Delta ($/W) | H36: 0.2 | I36: 0.15 | J36: 0.1 | L36: Delta ($/W) | M36: 0.2 | N36: 0.15 | O36: 0.1
B37: 0.1 | C37: =IF(AND($B$33='IRR Model'!$F$8,'IRR PILOT Summary by Region'!$B$23='IRR Model'!$F$19),TEXT('IRR Model'!Q14,"$0.0;($0.0)")&" / "&TEXT('IRR Model'!Q14/(1000*'IRR Model'!$F$10),"0.0%;(0.0%)"),'IRR PILOT Summary by Region'!C37) -> ($20.1) / (21.4%) | D37: =IF(AND($B$33='IRR Model'!$F$8,'IRR PILOT Summary by Region'!$B$23='IRR Model'!$F$19),TEXT('IRR Model'!R14,"$0.0;($0.0)")&" / "&TEXT('IRR Model'!R14/(1000*'IRR Model'!$F$10),"0.0%;(0.0%)"),'IRR PILOT Summary by Region'!D37) -> ($13.2) / (14.0%) | E37: =IF(AND($B$33='IRR Model'!$F$8,'IRR PILOT Summary by Region'!$B$23='IRR Model'!$F$19),TEXT('IRR Model'!S14,"$0.0;($0.0)")&" / "&TEXT('IRR Model'!S14/(1000*'IRR Model'!$F$10),"0.0%;(0.0%)"),'IRR PILOT Summary by Region'!E37) -> ($6.3) / (6.7%) | G37: 0.1 | H37: =IF(AND($G$33='IRR Model'!$F$8,'IRR PILOT Summary by Region'!$B$23='IRR Model'!$F$19),TEXT('IRR Model'!Q14,"$0.0;($0.0)")&" / "&TEXT('IRR Model'!Q14/(1000*'IRR Model'!$F$10),"0.0%;(0.0%)"),'IRR PILOT Summary by Region'!H37) -> $4.1 / 2.0% | I37: =IF(AND($G$33='IRR Model'!$F$8,'IRR PILOT Summary by Region'!$B$23='IRR Model'!$F$19),TEXT('IRR Model'!R14,"$0.0;($0.0)")&" / "&TEXT('IRR Model'!R14/(1000*'IRR Model'!$F$10),"0.0%;(0.0%)"),'IRR PILOT Summary by Region'!I37) -> $4.1 / 2.0% | J37: =IF(AND($G$33='IRR Model'!$F$8,'IRR PILOT Summary by Region'!$B$23='IRR Model'!$F$19),TEXT('IRR Model'!S14,"$0.0;($0.0)")&" / "&TEXT('IRR Model'!S14/(1000*'IRR Model'!$F$10),"0.0%;(0.0%)"),'IRR PILOT Summary by Region'!J37) -> $4.1 / 2.0% | L37: 0.1 | M37: =IF(AND($L$33='IRR Model'!$F$8,'IRR PILOT Summary by Region'!$B$23='IRR Model'!$F$19),TEXT('IRR Model'!Q14,"$0.0;($0.0)")&" / "&TEXT('IRR Model'!Q14/(1000*'IRR Model'!$F$10),"0.0%;(0.0%)"),'IRR PILOT Summary by Region'!M37) -> ($18.9) / (19.9%) | N37: =IF(AND($L$33='IRR Model'!$F$8,'IRR PILOT Summary by Region'!$B$23='IRR Model'!$F$19),TEXT('IRR Model'!R14,"$0.0;($0.0)")&" / "&TEXT('IRR Model'!R14/(1000*'IRR Model'!$F$10),"0.0%;(0.0%)"),'IRR PILOT Summary by Region'!N37) -> ($11.9) / (12.6%) | O37: =IF(AND($L$33='IRR Model'!$F$8,'IRR PILOT Summary by Region'!$B$23='IRR Model'!$F$19),TEXT('IRR Model'!S14,"$0.0;($0.0)")&" / "&TEXT('IRR Model'!S14/(1000*'IRR Model'!$F$10),"0.0%;(0.0%)"),'IRR PILOT Summary by Region'!O37) -> ($4.9) / (5.2%)
B38: 0 | C38: =IF(AND($B$33='IRR Model'!$F$8,'IRR PILOT Summary by Region'!$B$23='IRR Model'!$F$19),TEXT('IRR Model'!Q15,"$0.0;($0.0)")&" / "&TEXT('IRR Model'!Q15/(1000*'IRR Model'!$F$10),"0.0%;(0.0%)"),'IRR PILOT Summary by Region'!C38) -> ($12.8) / (13.6%) | D38: =IF(AND($B$33='IRR Model'!$F$8,'IRR PILOT Summary by Region'!$B$23='IRR Model'!$F$19),TEXT('IRR Model'!R15,"$0.0;($0.0)")&" / "&TEXT('IRR Model'!R15/(1000*'IRR Model'!$F$10),"0.0%;(0.0%)"),'IRR PILOT Summary by Region'!D38) -> ($5.9) / (6.3%) | E38: =IF(AND($B$33='IRR Model'!$F$8,'IRR PILOT Summary by Region'!$B$23='IRR Model'!$F$19),TEXT('IRR Model'!S15,"$0.0;($0.0)")&" / "&TEXT('IRR Model'!S15/(1000*'IRR Model'!$F$10),"0.0%;(0.0%)"),'IRR PILOT Summary by Region'!E38) -> $1.0 / 1.1% | G38: 0 | H38: =IF(AND($G$33='IRR Model'!$F$8,'IRR PILOT Summary by Region'!$B$23='IRR Model'!$F$19),TEXT('IRR Model'!Q15,"$0.0;($0.0)")&" / "&TEXT('IRR Model'!Q15/(1000*'IRR Model'!$F$10),"0.0%;(0.0%)"),'IRR PILOT Summary by Region'!H38) -> $4.1 / 2.0% | I38: =IF(AND($G$33='IRR Model'!$F$8,'IRR PILOT Summary by Region'!$B$23='IRR Model'!$F$19),TEXT('IRR Model'!R15,"$0.0;($0.0)")&" / "&TEXT('IRR Model'!R15/(1000*'IRR Model'!$F$10),"0.0%;(0.0%)"),'IRR PILOT Summary by Region'!I38) -> $4.1 / 2.0% | J38: =IF(AND($G$33='IRR Model'!$F$8,'IRR PILOT Summary by Region'!$B$23='IRR Model'!$F$19),TEXT('IRR Model'!S15,"$0.0;($0.0)")&" / "&TEXT('IRR Model'!S15/(1000*'IRR Model'!$F$10),"0.0%;(0.0%)"),'IRR PILOT Summary by Region'!J38) -> $4.1 / 2.0% | L38: 0 | M38: =IF(AND($L$33='IRR Model'!$F$8,'IRR PILOT Summary by Region'!$B$23='IRR Model'!$F$19),TEXT('IRR Model'!Q15,"$0.0;($0.0)")&" / "&TEXT('IRR Model'!Q15/(1000*'IRR Model'!$F$10),"0.0%;(0.0%)"),'IRR PILOT Summary by Region'!M38) -> ($11.6) / (12.3%) | N38: =IF(AND($L$33='IRR Model'!$F$8,'IRR PILOT Summary by Region'!$B$23='IRR Model'!$F$19),TEXT('IRR Model'!R15,"$0.0;($0.0)")&" / "&TEXT('IRR Model'!R15/(1000*'IRR Model'!$F$10),"0.0%;(0.0%)"),'IRR PILOT Summary by Region'!N38) -> ($4.6) / (4.9%) | O38: =IF(AND($L$33='IRR Model'!$F$8,'IRR PILOT Summary by Region'!$B$23='IRR Model'!$F$19),TEXT('IRR Model'!S15,"$0.0;($0.0)")&" / "&TEXT('IRR Model'!S15/(1000*'IRR Model'!$F$10),"0.0%;(0.0%)"),'IRR PILOT Summary by Region'!O38) -> $1.9 / 2.0%
B39: -0.1 | C39: =IF(AND($B$33='IRR Model'!$F$8,'IRR PILOT Summary by Region'!$B$23='IRR Model'!$F$19),TEXT('IRR Model'!Q16,"$0.0;($0.0)")&" / "&TEXT('IRR Model'!Q16/(1000*'IRR Model'!$F$10),"0.0%;(0.0%)"),'IRR PILOT Summary by Region'!C39) -> ($5.5) / (5.9%) | D39: =IF(AND($B$33='IRR Model'!$F$8,'IRR PILOT Summary by Region'!$B$23='IRR Model'!$F$19),TEXT('IRR Model'!R16,"$0.0;($0.0)")&" / "&TEXT('IRR Model'!R16/(1000*'IRR Model'!$F$10),"0.0%;(0.0%)"),'IRR PILOT Summary by Region'!D39) -> $1.4 / 1.5% | E39: =IF(AND($B$33='IRR Model'!$F$8,'IRR PILOT Summary by Region'!$B$23='IRR Model'!$F$19),TEXT('IRR Model'!S16,"$0.0;($0.0)")&" / "&TEXT('IRR Model'!S16/(1000*'IRR Model'!$F$10),"0.0%;(0.0%)"),'IRR PILOT Summary by Region'!E39) -> $1.9 / 2.0% | G39: -0.1 | H39: =IF(AND($G$33='IRR Model'!$F$8,'IRR PILOT Summary by Region'!$B$23='IRR Model'!$F$19),TEXT('IRR Model'!Q16,"$0.0;($0.0)")&" / "&TEXT('IRR Model'!Q16/(1000*'IRR Model'!$F$10),"0.0%;(0.0%)"),'IRR PILOT Summary by Region'!H39) -> $4.1 / 2.0% | I39: =IF(AND($G$33='IRR Model'!$F$8,'IRR PILOT Summary by Region'!$B$23='IRR Model'!$F$19),TEXT('IRR Model'!R16,"$0.0;($0.0)")&" / "&TEXT('IRR Model'!R16/(1000*'IRR Model'!$F$10),"0.0%;(0.0%)"),'IRR PILOT Summary by Region'!I39) -> $4.1 / 2.0% | J39: =IF(AND($G$33='IRR Model'!$F$8,'IRR PILOT Summary by Region'!$B$23='IRR Model'!$F$19),TEXT('IRR Model'!S16,"$0.0;($0.0)")&" / "&TEXT('IRR Model'!S16/(1000*'IRR Model'!$F$10),"0.0%;(0.0%)"),'IRR PILOT Summary by Region'!J39) -> $4.1 / 2.0% | L39: -0.1 | M39: =IF(AND($L$33='IRR Model'!$F$8,'IRR PILOT Summary by Region'!$B$23='IRR Model'!$F$19),TEXT('IRR Model'!Q16,"$0.0;($0.0)")&" / "&TEXT('IRR Model'!Q16/(1000*'IRR Model'!$F$10),"0.0%;(0.0%)"),'IRR PILOT Summary by Region'!M39) -> ($4.3) / (4.6%) | N39: =IF(AND($L$33='IRR Model'!$F$8,'IRR PILOT Summary by Region'!$B$23='IRR Model'!$F$19),TEXT('IRR Model'!R16,"$0.0;($0.0)")&" / "&TEXT('IRR Model'!R16/(1000*'IRR Model'!$F$10),"0.0%;(0.0%)"),'IRR PILOT Summary by Region'!N39) -> $1.9 / 2.0% | O39: =IF(AND($L$33='IRR Model'!$F$8,'IRR PILOT Summary by Region'!$B$23='IRR Model'!$F$19),TEXT('IRR Model'!S16,"$0.0;($0.0)")&" / "&TEXT('IRR Model'!S16/(1000*'IRR Model'!$F$10),"0.0%;(0.0%)"),'IRR PILOT Summary by Region'!O39) -> $1.9 / 2.0%
B41: Tranche 2 | C41: - IRR Based PILOT Amount ($/MWh / % of Retail Rate)
B43: CHG&E | G43: O&R | L43: NGRID
B45: Build Cost | C45: Customer Energy Discount (%) | G45: Build Cost | H45: Customer Energy Discount (%) | L45: Build Cost | M45: Customer Energy Discount (%)
B46: Delta ($/W) | C46: 0.2 | D46: 0.15 | E46: 0.1 | G46: Delta ($/W) | H46: 0.2 | I46: 0.15 | J46: 0.1 | L46: Delta ($/W) | M46: 0.2 | N46: 0.15 | O46: 0.1
B47: 0.1 | C47: =IF(AND($B$43='IRR Model'!$F$8,'IRR PILOT Summary by Region'!$B$41='IRR Model'!$F$19),TEXT('IRR Model'!Q14,"$0.0;($0.0)")&" / "&TEXT('IRR Model'!Q14/(1000*'IRR Model'!$F$10),"0.0%;(0.0%)"),'IRR PILOT Summary by Region'!C47) -> ($2.0) / (1.5%) | D47: =IF(AND($B$43='IRR Model'!$F$8,'IRR PILOT Summary by Region'!$B$41='IRR Model'!$F$19),TEXT('IRR Model'!R14,"$0.0;($0.0)")&" / "&TEXT('IRR Model'!R14/(1000*'IRR Model'!$F$10),"0.0%;(0.0%)"),'IRR PILOT Summary by Region'!D47) -> $2.7 / 2.0% | E47: =IF(AND($B$43='IRR Model'!$F$8,'IRR PILOT Summary by Region'!$B$41='IRR Model'!$F$19),TEXT('IRR Model'!S14,"$0.0;($0.0)")&" / "&TEXT('IRR Model'!S14/(1000*'IRR Model'!$F$10),"0.0%;(0.0%)"),'IRR PILOT Summary by Region'!E47) -> $2.7 / 2.0% | G47: 0.1 | H47: =IF(AND($G$43='IRR Model'!$F$8,'IRR PILOT Summary by Region'!$B$41='IRR Model'!$F$19),TEXT('IRR Model'!Q14,"$0.0;($0.0)")&" / "&TEXT('IRR Model'!Q14/(1000*'IRR Model'!$F$10),"0.0%;(0.0%)"),'IRR PILOT Summary by Region'!H47) -> $3.3 / 2.0% | I47: =IF(AND($G$43='IRR Model'!$F$8,'IRR PILOT Summary by Region'!$B$41='IRR Model'!$F$19),TEXT('IRR Model'!R14,"$0.0;($0.0)")&" / "&TEXT('IRR Model'!R14/(1000*'IRR Model'!$F$10),"0.0%;(0.0%)"),'IRR PILOT Summary by Region'!I47) -> $3.3 / 2.0% | J47: =IF(AND($G$43='IRR Model'!$F$8,'IRR PILOT Summary by Region'!$B$41='IRR Model'!$F$19),TEXT('IRR Model'!S14,"$0.0;($0.0)")&" / "&TEXT('IRR Model'!S14/(1000*'IRR Model'!$F$10),"0.0%;(0.0%)"),'IRR PILOT Summary by Region'!J47) -> $3.3 / 2.0% | L47: 0.1 | M47: =IF(AND($L$43='IRR Model'!$F$8,'IRR PILOT Summary by Region'!$B$41='IRR Model'!$F$19),TEXT('IRR Model'!Q14,"$0.0;($0.0)")&" / "&TEXT('IRR Model'!Q14/(1000*'IRR Model'!$F$10),"0.0%;(0.0%)"),'IRR PILOT Summary by Region'!M47) -> ($24.0) / (25.6%) | N47: =IF(AND($L$43='IRR Model'!$F$8,'IRR PILOT Summary by Region'!$B$41='IRR Model'!$F$19),TEXT('IRR Model'!R14,"$0.0;($0.0)")&" / "&TEXT('IRR Model'!R14/(1000*'IRR Model'!$F$10),"0.0%;(0.0%)"),'IRR PILOT Summary by Region'!N47) -> ($17.5) / (18.6%) | O47: =IF(AND($L$43='IRR Model'!$F$8,'IRR PILOT Summary by Region'!$B$41='IRR Model'!$F$19),TEXT('IRR Model'!S14,"$0.0;($0.0)")&" / "&TEXT('IRR Model'!S14/(1000*'IRR Model'!$F$10),"0.0%;(0.0%)"),'IRR PILOT Summary by Region'!O47) -> ($10.9) / (11.6%)
B48: 0 | C48: =IF(AND($B$43='IRR Model'!$F$8,'IRR PILOT Summary by Region'!$B$41='IRR Model'!$F$19),TEXT('IRR Model'!Q15,"$0.0;($0.0)")&" / "&TEXT('IRR Model'!Q15/(1000*'IRR Model'!$F$10),"0.0%;(0.0%)"),'IRR PILOT Summary by Region'!C48) -> $2.7 / 2.0% | D48: =IF(AND($B$43='IRR Model'!$F$8,'IRR PILOT Summary by Region'!$B$41='IRR Model'!$F$19),TEXT('IRR Model'!R15,"$0.0;($0.0)")&" / "&TEXT('IRR Model'!R15/(1000*'IRR Model'!$F$10),"0.0%;(0.0%)"),'IRR PILOT Summary by Region'!D48) -> $2.7 / 2.0% | E48: =IF(AND($B$43='IRR Model'!$F$8,'IRR PILOT Summary by Region'!$B$41='IRR Model'!$F$19),TEXT('IRR Model'!S15,"$0.0;($0.0)")&" / "&TEXT('IRR Model'!S15/(1000*'IRR Model'!$F$10),"0.0%;(0.0%)"),'IRR PILOT Summary by Region'!E48) -> $2.7 / 2.0% | G48: 0 | H48: =IF(AND($G$43='IRR Model'!$F$8,'IRR PILOT Summary by Region'!$B$41='IRR Model'!$F$19),TEXT('IRR Model'!Q15,"$0.0;($0.0)")&" / "&TEXT('IRR Model'!Q15/(1000*'IRR Model'!$F$10),"0.0%;(0.0%)"),'IRR PILOT Summary by Region'!H48) -> $3.3 / 2.0% | I48: =IF(AND($G$43='IRR Model'!$F$8,'IRR PILOT Summary by Region'!$B$41='IRR Model'!$F$19),TEXT('IRR Model'!R15,"$0.0;($0.0)")&" / "&TEXT('IRR Model'!R15/(1000*'IRR Model'!$F$10),"0.0%;(0.0%)"),'IRR PILOT Summary by Region'!I48) -> $3.3 / 2.0% | J48: =IF(AND($G$43='IRR Model'!$F$8,'IRR PILOT Summary by Region'!$B$41='IRR Model'!$F$19),TEXT('IRR Model'!S15,"$0.0;($0.0)")&" / "&TEXT('IRR Model'!S15/(1000*'IRR Model'!$F$10),"0.0%;(0.0%)"),'IRR PILOT Summary by Region'!J48) -> $3.3 / 2.0% | L48: 0 | M48: =IF(AND($L$43='IRR Model'!$F$8,'IRR PILOT Summary by Region'!$B$41='IRR Model'!$F$19),TEXT('IRR Model'!Q15,"$0.0;($0.0)")&" / "&TEXT('IRR Model'!Q15/(1000*'IRR Model'!$F$10),"0.0%;(0.0%)"),'IRR PILOT Summary by Region'!M48) -> ($17.0) / (18.1%) | N48: =IF(AND($L$43='IRR Model'!$F$8,'IRR PILOT Summary by Region'!$B$41='IRR Model'!$F$19),TEXT('IRR Model'!R15,"$0.0;($0.0)")&" / "&TEXT('IRR Model'!R15/(1000*'IRR Model'!$F$10),"0.0%;(0.0%)"),'IRR PILOT Summary by Region'!N48) -> ($10.4) / (11.1%) | O48: =IF(AND($L$43='IRR Model'!$F$8,'IRR PILOT Summary by Region'!$B$41='IRR Model'!$F$19),TEXT('IRR Model'!S15,"$0.0;($0.0)")&" / "&TEXT('IRR Model'!S15/(1000*'IRR Model'!$F$10),"0.0%;(0.0%)"),'IRR PILOT Summary by Region'!O48) -> ($3.8) / (4.1%)
B49: -0.1 | C49: =IF(AND($B$43='IRR Model'!$F$8,'IRR PILOT Summary by Region'!$B$41='IRR Model'!$F$19),TEXT('IRR Model'!Q16,"$0.0;($0.0)")&" / "&TEXT('IRR Model'!Q16/(1000*'IRR Model'!$F$10),"0.0%;(0.0%)"),'IRR PILOT Summary by Region'!C49) -> $2.7 / 2.0% | D49: =IF(AND($B$43='IRR Model'!$F$8,'IRR PILOT Summary by Region'!$B$41='IRR Model'!$F$19),TEXT('IRR Model'!R16,"$0.0;($0.0)")&" / "&TEXT('IRR Model'!R16/(1000*'IRR Model'!$F$10),"0.0%;(0.0%)"),'IRR PILOT Summary by Region'!D49) -> $2.7 / 2.0% | E49: =IF(AND($B$43='IRR Model'!$F$8,'IRR PILOT Summary by Region'!$B$41='IRR Model'!$F$19),TEXT('IRR Model'!S16,"$0.0;($0.0)")&" / "&TEXT('IRR Model'!S16/(1000*'IRR Model'!$F$10),"0.0%;(0.0%)"),'IRR PILOT Summary by Region'!E49) -> $2.7 / 2.0% | G49: -0.1 | H49: =IF(AND($G$43='IRR Model'!$F$8,'IRR PILOT Summary by Region'!$B$41='IRR Model'!$F$19),TEXT('IRR Model'!Q16,"$0.0;($0.0)")&" / "&TEXT('IRR Model'!Q16/(1000*'IRR Model'!$F$10),"0.0%;(0.0%)"),'IRR PILOT Summary by Region'!H49) -> $3.3 / 2.0% | I49: =IF(AND($G$43='IRR Model'!$F$8,'IRR PILOT Summary by Region'!$B$41='IRR Model'!$F$19),TEXT('IRR Model'!R16,"$0.0;($0.0)")&" / "&TEXT('IRR Model'!R16/(1000*'IRR Model'!$F$10),"0.0%;(0.0%)"),'IRR PILOT Summary by Region'!I49) -> $3.3 / 2.0% | J49: =IF(AND($G$43='IRR Model'!$F$8,'IRR PILOT Summary by Region'!$B$41='IRR Model'!$F$19),TEXT('IRR Model'!S16,"$0.0;($0.0)")&" / "&TEXT('IRR Model'!S16/(1000*'IRR Model'!$F$10),"0.0%;(0.0%)"),'IRR PILOT Summary by Region'!J49) -> $3.3 / 2.0% | L49: -0.1 | M49: =IF(AND($L$43='IRR Model'!$F$8,'IRR PILOT Summary by Region'!$B$41='IRR Model'!$F$19),TEXT('IRR Model'!Q16,"$0.0;($0.0)")&" / "&TEXT('IRR Model'!Q16/(1000*'IRR Model'!$F$10),"0.0%;(0.0%)"),'IRR PILOT Summary by Region'!M49) -> ($9.9) / (10.6%) | N49: =IF(AND($L$43='IRR Model'!$F$8,'IRR PILOT Summary by Region'!$B$41='IRR Model'!$F$19),TEXT('IRR Model'!R16,"$0.0;($0.0)")&" / "&TEXT('IRR Model'!R16/(1000*'IRR Model'!$F$10),"0.0%;(0.0%)"),'IRR PILOT Summary by Region'!N49) -> ($3.3) / (3.5%) | O49: =IF(AND($L$43='IRR Model'!$F$8,'IRR PILOT Summary by Region'!$B$41='IRR Model'!$F$19),TEXT('IRR Model'!S16,"$0.0;($0.0)")&" / "&TEXT('IRR Model'!S16/(1000*'IRR Model'!$F$10),"0.0%;(0.0%)"),'IRR PILOT Summary by Region'!O49) -> $1.9 / 2.0%
B51: NYSEG | G51: ConEd | L51: RG&E
B53: Build Cost | C53: Customer Energy Discount (%) | G53: Build Cost | H53: Customer Energy Discount (%) | L53: Build Cost | M53: Customer Energy Discount (%)
B54: Delta ($/W) | C54: 0.2 | D54: 0.15 | E54: 0.1 | G54: Delta ($/W) | H54: 0.2 | I54: 0.15 | J54: 0.1 | L54: Delta ($/W) | M54: 0.2 | N54: 0.15 | O54: 0.1
B55: 0.1 | C55: =IF(AND($B$51='IRR Model'!$F$8,'IRR PILOT Summary by Region'!$B$41='IRR Model'!$F$19),TEXT('IRR Model'!Q14,"$0.0;($0.0)")&" / "&TEXT('IRR Model'!Q14/(1000*'IRR Model'!$F$10),"0.0%;(0.0%)"),'IRR PILOT Summary by Region'!C55) -> ($25.7) / (27.3%) | D55: =IF(AND($B$51='IRR Model'!$F$8,'IRR PILOT Summary by Region'!$B$41='IRR Model'!$F$19),TEXT('IRR Model'!R14,"$0.0;($0.0)")&" / "&TEXT('IRR Model'!R14/(1000*'IRR Model'!$F$10),"0.0%;(0.0%)"),'IRR PILOT Summary by Region'!D55) -> ($19.1) / (20.3%) | E55: =IF(AND($B$51='IRR Model'!$F$8,'IRR PILOT Summary by Region'!$B$41='IRR Model'!$F$19),TEXT('IRR Model'!S14,"$0.0;($0.0)")&" / "&TEXT('IRR Model'!S14/(1000*'IRR Model'!$F$10),"0.0%;(0.0%)"),'IRR PILOT Summary by Region'!E55) -> ($12.5) / (13.3%) | G55: 0.1 | H55: =IF(AND($G$51='IRR Model'!$F$8,'IRR PILOT Summary by Region'!$B$41='IRR Model'!$F$19),TEXT('IRR Model'!Q14,"$0.0;($0.0)")&" / "&TEXT('IRR Model'!Q14/(1000*'IRR Model'!$F$10),"0.0%;(0.0%)"),'IRR PILOT Summary by Region'!H55) -> $4.1 / 2.0% | I55: =IF(AND($G$51='IRR Model'!$F$8,'IRR PILOT Summary by Region'!$B$41='IRR Model'!$F$19),TEXT('IRR Model'!R14,"$0.0;($0.0)")&" / "&TEXT('IRR Model'!R14/(1000*'IRR Model'!$F$10),"0.0%;(0.0%)"),'IRR PILOT Summary by Region'!I55) -> $4.1 / 2.0% | J55: =IF(AND($G$51='IRR Model'!$F$8,'IRR PILOT Summary by Region'!$B$41='IRR Model'!$F$19),TEXT('IRR Model'!S14,"$0.0;($0.0)")&" / "&TEXT('IRR Model'!S14/(1000*'IRR Model'!$F$10),"0.0%;(0.0%)"),'IRR PILOT Summary by Region'!J55) -> $4.1 / 2.0% | L55: 0.1 | M55: =IF(AND($L$51='IRR Model'!$F$8,'IRR PILOT Summary by Region'!$B$41='IRR Model'!$F$19),TEXT('IRR Model'!Q14,"$0.0;($0.0)")&" / "&TEXT('IRR Model'!Q14/(1000*'IRR Model'!$F$10),"0.0%;(0.0%)"),'IRR PILOT Summary by Region'!M55) -> ($24.6) / (25.8%) | N55: =IF(AND($L$51='IRR Model'!$F$8,'IRR PILOT Summary by Region'!$B$41='IRR Model'!$F$19),TEXT('IRR Model'!R14,"$0.0;($0.0)")&" / "&TEXT('IRR Model'!R14/(1000*'IRR Model'!$F$10),"0.0%;(0.0%)"),'IRR PILOT Summary by Region'!N55) -> ($17.9) / (18.8%) | O55: =IF(AND($L$51='IRR Model'!$F$8,'IRR PILOT Summary by Region'!$B$41='IRR Model'!$F$19),TEXT('IRR Model'!S14,"$0.0;($0.0)")&" / "&TEXT('IRR Model'!S14/(1000*'IRR Model'!$F$10),"0.0%;(0.0%)"),'IRR PILOT Summary by Region'!O55) -> ($11.2) / (11.8%)
B56: 0 | C56: =IF(AND($B$51='IRR Model'!$F$8,'IRR PILOT Summary by Region'!$B$41='IRR Model'!$F$19),TEXT('IRR Model'!Q15,"$0.0;($0.0)")&" / "&TEXT('IRR Model'!Q15/(1000*'IRR Model'!$F$10),"0.0%;(0.0%)"),'IRR PILOT Summary by Region'!C56) -> ($18.4) / (19.5%) | D56: =IF(AND($B$51='IRR Model'!$F$8,'IRR PILOT Summary by Region'!$B$41='IRR Model'!$F$19),TEXT('IRR Model'!R15,"$0.0;($0.0)")&" / "&TEXT('IRR Model'!R15/(1000*'IRR Model'!$F$10),"0.0%;(0.0%)"),'IRR PILOT Summary by Region'!D56) -> ($11.8) / (12.5%) | E56: =IF(AND($B$51='IRR Model'!$F$8,'IRR PILOT Summary by Region'!$B$41='IRR Model'!$F$19),TEXT('IRR Model'!S15,"$0.0;($0.0)")&" / "&TEXT('IRR Model'!S15/(1000*'IRR Model'!$F$10),"0.0%;(0.0%)"),'IRR PILOT Summary by Region'!E56) -> ($5.2) / (5.5%) | G56: 0 | H56: =IF(AND($G$51='IRR Model'!$F$8,'IRR PILOT Summary by Region'!$B$41='IRR Model'!$F$19),TEXT('IRR Model'!Q15,"$0.0;($0.0)")&" / "&TEXT('IRR Model'!Q15/(1000*'IRR Model'!$F$10),"0.0%;(0.0%)"),'IRR PILOT Summary by Region'!H56) -> $4.1 / 2.0% | I56: =IF(AND($G$51='IRR Model'!$F$8,'IRR PILOT Summary by Region'!$B$41='IRR Model'!$F$19),TEXT('IRR Model'!R15,"$0.0;($0.0)")&" / "&TEXT('IRR Model'!R15/(1000*'IRR Model'!$F$10),"0.0%;(0.0%)"),'IRR PILOT Summary by Region'!I56) -> $4.1 / 2.0% | J56: =IF(AND($G$51='IRR Model'!$F$8,'IRR PILOT Summary by Region'!$B$41='IRR Model'!$F$19),TEXT('IRR Model'!S15,"$0.0;($0.0)")&" / "&TEXT('IRR Model'!S15/(1000*'IRR Model'!$F$10),"0.0%;(0.0%)"),'IRR PILOT Summary by Region'!J56) -> $4.1 / 2.0% | L56: 0 | M56: =IF(AND($L$51='IRR Model'!$F$8,'IRR PILOT Summary by Region'!$B$41='IRR Model'!$F$19),TEXT('IRR Model'!Q15,"$0.0;($0.0)")&" / "&TEXT('IRR Model'!Q15/(1000*'IRR Model'!$F$10),"0.0%;(0.0%)"),'IRR PILOT Summary by Region'!M56) -> ($17.2) / (18.2%) | N56: =IF(AND($L$51='IRR Model'!$F$8,'IRR PILOT Summary by Region'!$B$41='IRR Model'!$F$19),TEXT('IRR Model'!R15,"$0.0;($0.0)")&" / "&TEXT('IRR Model'!R15/(1000*'IRR Model'!$F$10),"0.0%;(0.0%)"),'IRR PILOT Summary by Region'!N56) -> ($10.6) / (11.2%) | O56: =IF(AND($L$51='IRR Model'!$F$8,'IRR PILOT Summary by Region'!$B$41='IRR Model'!$F$19),TEXT('IRR Model'!S15,"$0.0;($0.0)")&" / "&TEXT('IRR Model'!S15/(1000*'IRR Model'!$F$10),"0.0%;(0.0%)"),'IRR PILOT Summary by Region'!O56) -> ($3.9) / (4.2%)
B57: -0.1 | C57: =IF(AND($B$51='IRR Model'!$F$8,'IRR PILOT Summary by Region'!$B$41='IRR Model'!$F$19),TEXT('IRR Model'!Q16,"$0.0;($0.0)")&" / "&TEXT('IRR Model'!Q16/(1000*'IRR Model'!$F$10),"0.0%;(0.0%)"),'IRR PILOT Summary by Region'!C57) -> ($11.1) / (11.8%) | D57: =IF(AND($B$51='IRR Model'!$F$8,'IRR PILOT Summary by Region'!$B$41='IRR Model'!$F$19),TEXT('IRR Model'!R16,"$0.0;($0.0)")&" / "&TEXT('IRR Model'!R16/(1000*'IRR Model'!$F$10),"0.0%;(0.0%)"),'IRR PILOT Summary by Region'!D57) -> ($4.5) / (4.8%) | E57: =IF(AND($B$51='IRR Model'!$F$8,'IRR PILOT Summary by Region'!$B$41='IRR Model'!$F$19),TEXT('IRR Model'!S16,"$0.0;($0.0)")&" / "&TEXT('IRR Model'!S16/(1000*'IRR Model'!$F$10),"0.0%;(0.0%)"),'IRR PILOT Summary by Region'!E57) -> $1.9 / 2.0% | G57: -0.1 | H57: =IF(AND($G$51='IRR Model'!$F$8,'IRR PILOT Summary by Region'!$B$41='IRR Model'!$F$19),TEXT('IRR Model'!Q16,"$0.0;($0.0)")&" / "&TEXT('IRR Model'!Q16/(1000*'IRR Model'!$F$10),"0.0%;(0.0%)"),'IRR PILOT Summary by Region'!H57) -> $4.1 / 2.0% | I57: =IF(AND($G$51='IRR Model'!$F$8,'IRR PILOT Summary by Region'!$B$41='IRR Model'!$F$19),TEXT('IRR Model'!R16,"$0.0;($0.0)")&" / "&TEXT('IRR Model'!R16/(1000*'IRR Model'!$F$10),"0.0%;(0.0%)"),'IRR PILOT Summary by Region'!I57) -> $4.1 / 2.0% | J57: =IF(AND($G$51='IRR Model'!$F$8,'IRR PILOT Summary by Region'!$B$41='IRR Model'!$F$19),TEXT('IRR Model'!S16,"$0.0;($0.0)")&" / "&TEXT('IRR Model'!S16/(1000*'IRR Model'!$F$10),"0.0%;(0.0%)"),'IRR PILOT Summary by Region'!J57) -> $4.1 / 2.0% | L57: -0.1 | M57: =IF(AND($L$51='IRR Model'!$F$8,'IRR PILOT Summary by Region'!$B$41='IRR Model'!$F$19),TEXT('IRR Model'!Q16,"$0.0;($0.0)")&" / "&TEXT('IRR Model'!Q16/(1000*'IRR Model'!$F$10),"0.0%;(0.0%)"),'IRR PILOT Summary by Region'!M57) -> ($9.9) / (10.5%) | N57: =IF(AND($L$51='IRR Model'!$F$8,'IRR PILOT Summary by Region'!$B$41='IRR Model'!$F$19),TEXT('IRR Model'!R16,"$0.0;($0.0)")&" / "&TEXT('IRR Model'!R16/(1000*'IRR Model'!$F$10),"0.0%;(0.0%)"),'IRR PILOT Summary by Region'!N57) -> ($3.3) / (3.5%) | O57: =IF(AND($L$51='IRR Model'!$F$8,'IRR PILOT Summary by Region'!$B$41='IRR Model'!$F$19),TEXT('IRR Model'!S16,"$0.0;($0.0)")&" / "&TEXT('IRR Model'!S16/(1000*'IRR Model'!$F$10),"0.0%;(0.0%)"),'IRR PILOT Summary by Region'!O57) -> $1.9 / 2.0%
B59: IRR Based PILOT Analysis by Low/Medium/High Economics
B61: Best Case Economics | G61: Base Case Economics | L61: Low Case Economics
C63: Tranche 0 | D63: Tranche 2 | E63: Tranche 3 | H63: Tranche 0 | I63: Tranche 2 | J63: Tranche 3 | M63: Tranche 0 | N63: Tranche 2 | O63: Tranche 3
B64: CHG&E | C64: =E13 -> $2.7 / 2.0% | D64: =E49 -> $2.7 / 2.0% | E64: [ ] | G64: CHG&E | H64: =D12 -> $2.7 / 2.0% | I64: =D48 -> $2.7 / 2.0% | J64: [ ] | L64: CHG&E | M64: =C11 -> ($6.6) / (4.9%) | N64: =C47 -> ($2.0) / (1.5%) | O64: [ ]
B65: O&R | C65: =J13 -> $3.3 / 2.0% | D65: =J49 -> $3.3 / 2.0% | E65: [ ] | G65: O&R | H65: =I12 -> $3.3 / 2.0% | I65: =I48 -> $3.3 / 2.0% | J65: [ ] | L65: O&R | M65: =H11 -> $3.3 / 2.0% | N65: =H47 -> $3.3 / 2.0% | O65: [ ]
B66: NGRID | C66: =O13 -> $1.4 / 1.4% | D66: =O49 -> $1.9 / 2.0% | E66: [ ] | G66: NGRID | H66: =N12 -> ($11.4) / (12.2%) | I66: =N48 -> ($10.4) / (11.1%) | J66: [ ] | L66: NGRID | M66: =M11 -> ($24.2) / (25.9%) | N66: =M47 -> ($24.0) / (25.6%) | O66: [ ]
B67: NYSEG | C67: =E21 -> $0.2 / 0.2% | D67: =E57 -> $1.9 / 2.0% | E67: [ ] | G67: NYSEG | H67: =D20 -> ($12.9) / (13.7%) | I67: =D56 -> ($11.8) / (12.5%) | J67: [ ] | L67: NYSEG | M67: =C19 -> ($25.9) / (27.6%) | N67: =C55 -> ($25.7) / (27.3%) | O67: [ ]
B68: ConEd | C68: =J21 -> $4.1 / 2.0% | D68: =J57 -> $4.1 / 2.0% | E68: [ ] | G68: ConEd | H68: =I20 -> $4.1 / 2.0% | I68: =I56 -> $4.1 / 2.0% | J68: [ ] | L68: ConEd | M68: =H19 -> $3.2 / 1.6% | N68: =H55 -> $4.1 / 2.0% | O68: [ ]
B69: RG&E | C69: =O21 -> $1.4 / 1.4% | D69: =O57 -> $1.9 / 2.0% | E69: [ ] | G69: RG&E | H69: =N20 -> ($11.4) / (12.2%) | I69: =N56 -> ($10.6) / (11.2%) | J69: [ ] | L69: RG&E | M69: =M19 -> ($24.2) / (25.9%) | N69: =M55 -> ($24.6) / (25.8%) | O69: [ ]

Sheet 3. Calculator-raw (hidden)
B2: Property Tax Model (DRAFT)
B3: Operating Model
A5: x | B5: Project Assumptions - YELLOW REQUIRES INPUT | K5: Model Output - PILOT Estimates
B7: Region Specific Assumptions | K7: PILOT Calculation | T7: PILOT Sensitivity Analysis | Y7: MW Block Assumption
B8: Active Utility Region | F8: =LEFT($AB$30,FIND("/",AB30,1)-1) -> NGRID | Y8: Block | Z8: PBI Rate | AB8: Locational Adder Logic Table | AE8: Pilot Rate
B9: CDG? | F9: Yes | T9: PILOT Sensitivity ($/MWh) / (% of Retail Rate) | Y9: Block 1 ConEd | Z9: 0.179 | AB9: Yes | AC9: 1.2 | AE9: 0.01
B10: Year-1 Solar Net Metering Credit Value | E10: [$/kWh] | F10: =VLOOKUP($F$8,$K$38:$O$45,COLUMNS($K$39:$L$39),0) -> 0.0937 | Y10: Block 2 ConEd | Z10: 0.173 | AB10: No | AC10: 1 | AE10: 0.015
B11: System Build Cost | E11: [$/W] | F11: =VLOOKUP($F$8,$K$38:$O$45,COLUMNS($K$39:$O$39),0)+AD26 -> 1.26 | K11: Investor NPV Pre-PILOT | N11: [$] | O11: =(F102+NPV($F$16,$G$102:$AE$102))*1000 -> 842184.1461 | T11: Build Cost | U11: Customer Energy Discount | Y11: Block 3 ConEd | Z11: 0.168 | AE11: 0.02
B12: Site Lease Payment | E12: [$/MW] | F12: =VLOOKUP($F$8,$K$38:$O$45,COLUMNS($K$39:$M$39),0) -> 5000 | K12: Investor Target Pre-tax IRR | N12: [%] | O12: =F16 -> 0.0325 | T12: ($/W) Delta | U12: (%) | Y12: Block 4 ConEd | Z12: 0.162 | AE12: 0.025
B13: Year 1 Specific Yield Forecast | E13: [kWh/kW] | F13: =VLOOKUP($F$8,$K$38:$O$45,COLUMNS($K$39:$N$39),0) -> 1240 | K13: Annual PILOT Budget @ Target IRR | N13: [$] | O13: =-PMT($O$12,$F$114,$O$11) -> 71828.68967 | T13: =O20 -> 0.937 | U13: 0.2 | V13: 0.15 | W13: 0.1 | Y13: Block 5 ConEd | Z13: 0.156 | AE13: 0.03
K14: Average PILOT (% of Retail Rate) | N14: [%] | O14: =_xlfn.NUMBERVALUE(RIGHT(AB30,4)) -> 0.01 | T14: 0.1 | U14: 0.937 | V14: 0.937 | W14: 0.937 | Y14: Block 6 ConEd | Z14: 0.145
B15: Key Non-Regional Variables | K15: Annual PILOT Cap Based on % of Retail Rate | N15: [$] | O15: =F10*O14*G60*1000 -> 3369.452 | T15: 0 | U15: 0.937 | V15: 0.937 | W15: 0.937 | Y15: Block 7 ConEd | Z15: 0.131
B16: Target Pre-Tax Investor IRR | E16: [%] | F16: 0.0325 | K16: PILOT Option to Apply in Model | O16: Retail Rate-Based | T16: -0.1 | U16: 0.937 | V16: 0.937 | W16: 0.937 | Y16: Block 8 ConEd | Z16: 0.111 | AB16: VDER Status
K17: Implied Annual PILOT | O17: =IF($O$16="IRR-Based",$O$13,$O$15) -> 3369.452 | Y17: Block 9 ConEd | Z17: 0.094 | AB17: Tranche | AC17: Rate Credit
B18: Energy Discount Required to Incentivize Customer | E18: [%] | F18: 0.1 | K18: AC System Size | N18: [MW] | O18: =F30 -> 2 | Y18: Block 10 ConEd | Z18: 0.074 | AB18: Tranche 0 | AC18: 1
B19: VDER Tranche | F19: Tranche 1 | K19: Implied Annual PILOT ($/MW AC) | N19: [$/MW] | O19: =$O$17/$O$18 -> 1684.726 | S19: PILOT Results | Y19: Block 11 ConEd | Z19: 0.057 | AB19: Tranche 1 | AC19: 1
B20: Implied Year 1 PPA Rate | E20: [$/kWh] | F20: =F10*(1-F18)*AC24 -> 0.08433 | K20: Implied Annual PILOT ($/MWh) | N20: [$/MWh] | O20: =$O$17/G76 -> 0.937 | T20: IRR Based | U20: IRR Based | V20: PILOT as % | W20: PILOT as % | Y20: Block 12 ConEd | Z20: 0.037 | AB20: Tranche 2 | AC20: 0.95
B21: PPA Term | E21: [years] | F21: =IF(F19="Tranche 0",20,25) -> 25 | K21: Post PILOT Pre-Tax IRR | N21: [%] | O21: =IRR(F104:AO104) -> 0.05867498085 | T21: PILOT Rate | U21: PILOT Rate | V21: of Retail Rate | W21: of PPA Rate | Y21: Block 13 ConEd | Z21: 0.02 | AB21: Tranche 3 | AC21: 0.9
B22: PPA or Utility Rate Annual Escalator | E22: [%] | F22: 0.01 | S22: Utility | T22: ($/MW) | U22: ($/MWh) | V22: (%) | W22: (%) | Y22: Block 1 ROS | Z22: 0.114
B23: NYSERDA Volumetric MW Block | F23: Block 4 ROS | S23: CHG&E | T23: =IF($S23=$F$8,IF($O$19<0,"n/a",$O$19),T23) -> 2525.9 | U23: =IF($S23=$F$8,IF($O$20<0,"n/a",$O$20),U23) -> 1.34 | V23: =IFERROR(U23/(L40*1000),"n/a") -> 0.01 | W23: =IFERROR(U23/(L40*$AC$24*(1-$F$18)*1000),"n/a") -> 0.01111111111 | Y23: Block 2 ROS | Z23: 0.114
B24: NYSERDA MW Block Rate | E24: [$/kWh] | F24: =VLOOKUP(F23,Y9:Z32,2,0) -> 0.111 | S24: O&R | T24: 3147.95 | U24: 1.67 | V24: 0.01 | W24: 0.01111111111 | Y24: Block 3 ROS | Z24: 0.111 | AB24: =F19 -> Tranche 1 | AC24: =VLOOKUP(AB24,$AB$17:$AC$22,COLUMNS($AB$17:$AC$17),0) -> 1
B25: NY-Sun Locatioal Adder? | F25: No | S25: NGRID | T25: 1684.726 | U25: 0.937 | V25: 0.01 | W25: 0.01111111111 | Y25: Block 4 ROS | Z25: 0.111
B26: Multiplier for Locational Adder | F26: =IF(F25="Yes",1.2,1) -> 1 | S26: NYSEG | T26: 8178 | U26: 4.7 | V26: 0.05 | W26: 0.05555555556 | Y26: Block 5 ROS | Z26: 0.105 | AB26: Active EPC Cost Adder | AD26: =IF(F9="No",-0.2,0) -> 0
B27: Total NYSERDA Grant | E27: [$] | F27: =+F24*F31*0.134*8.76*3*1000000*F26 -> 1133577.288 | K27: Regional Inputs-Default Values | S27: ConEd | T27: 3679.375 | U27: 2.03 | V27: 0.01 | W27: 0.01111111111 | Y27: Block 6 ROS | Z27: 0.099 | AB27: (EPC $0.20/Watt lower for non-CDG)
L28: Electric Rate | M28: Lease Cost | N28: Average yield | O28: All-in Cost | P28: O&M Cost | Q28: Insurance | R28: CDG Annual | S28: RG&E | T28: 8265 | U28: 4.75 | V28: 0.05 | W28: 0.05555555556 | Y28: Block 7 ROS | Z28: 0.094
B29: General Project Assumptions | K29: Utility | L29: ($/kWh) | M29: ($/MW) | N29: (kWh/kWdc) | O29: ($/W) | P29: ($/kW), 2% escalator | Q29: ($/kW) | R29: ($/kW) | Y29: Block 8 ROS | Z29: 0.08
B30: AC System Size (Alternating Current) | E30: [MWAC] | F30: 2 | K30: CHG&E | L30: 0.134 | M30: 7000 | N30: 1300 | O30: 1.9 | P30: 12 | Q30: 2 | R30: 7 | Y30: Block 9 ROS | Z30: 0.062 | AB30: NGRID/1.0%
B31: DC System Size (Direct Current) | E31: [MWDC] | F31: =F30*1.45 -> 2.9 | K31: O&R | L31: 0.167 | M31: 10000 | N31: 1300 | O31: 2.2 | P31: =P30 -> 12 | Q31: 2 | R31: 7 | Y31: Block 10 ROS | Z31: 0.045 | AC31: % of Retail Rate | AD31: 0.01 | AE31: 0.01 | AF31: 0.01 | AG31: 0.02 | AH31: 0.02 | AI31: 0.02 | AJ31: 0.03 | AK31: 0.03 | AL31: 0.03 | AM31: 0.04 | AN31: 0.04 | AO31: 0.04 | AP31: 0.05 | AQ31: 0.05 | AR31: 0.05
K32: NGRID | L32: 0.0937 | M32: 5000 | N32: 1240 | O32: 1.5 | P32: 12 | Q32: 2 | R32: 7 | Y32: Block 11 ROS | Z32: 0.026 | AB32: Build Cost Reduction | AC32: Utility | AD32: NGRID | AE32: NYSEG | AF32: RG&E | AG32: NGRID | AH32: NYSEG | AI32: RG&E | AJ32: NGRID | AK32: NYSEG | AL32: RG&E | AM32: NGRID | AN32: NYSEG | AO32: RG&E | AP32: NGRID | AQ32: NYSEG | AR32: RG&E
B33: Production Degradation | E33: [%] | F33: 0.005 | K33: NYSEG | L33: 0.094 | M33: 3000 | N33: 1200 | O33: 1.5 | P33: 12 | Q33: 2 | R33: 7 | AC33: =$O$21 -> 0.05867498085 | AD33: =_xlfn.CONCAT(AD32,"/",TEXT($AD$31,"0.0%")) -> NGRID/1.0% | AE33: =_xlfn.CONCAT(AE32,"/",TEXT($AD$31,"0.0%")) -> NYSEG/1.0% | AF33: =_xlfn.CONCAT(AF32,"/",TEXT($AD$31,"0.0%")) -> RG&E/1.0% | AG33: =_xlfn.CONCAT(AG32,"/",TEXT($AG$31,"0.0%")) -> NGRID/2.0% | AH33: =_xlfn.CONCAT(AH32,"/",TEXT($AG$31,"0.0%")) -> NYSEG/2.0% | AI33: =_xlfn.CONCAT(AI32,"/",TEXT($AG$31,"0.0%")) -> RG&E/2.0% | AJ33: =_xlfn.CONCAT(AJ32,"/",TEXT($AJ$31,"0.0%")) -> NGRID/3.0% | AK33: =_xlfn.CONCAT(AK32,"/",TEXT($AJ$31,"0.0%")) -> NYSEG/3.0% | AL33: =_xlfn.CONCAT(AL32,"/",TEXT($AJ$31,"0.0%")) -> RG&E/3.0% | AM33: =_xlfn.CONCAT(AM32,"/",TEXT($AM$31,"0.0%")) -> NGRID/4.0% | AN33: =_xlfn.CONCAT(AN32,"/",TEXT($AM$31,"0.0%")) -> NYSEG/4.0% | AO33: =_xlfn.CONCAT(AO32,"/",TEXT($AM$31,"0.0%")) -> RG&E/4.0% | AP33: =_xlfn.CONCAT(AP32,"/",TEXT($AP$31,"0.0%")) -> NGRID/5.0% | AQ33: =_xlfn.CONCAT(AQ32,"/",TEXT($AP$31,"0.0%")) -> NYSEG/5.0% | AR33: =_xlfn.CONCAT(AR32,"/",TEXT($AP$31,"0.0%")) -> RG&E/5.0%
B34: Inflation | E34: [%] | F34: 0.02 | K34: ConEd | L34: 0.203 | M34: 20000 | N34: 1250 | O34: 2.5 | P34: 12 | Q34: 2 | R34: 7 | AB34: 0 | AC34: =-$F$42*AB34 -> 0 | AD34: 0.03429591184 | AE34: 0.03264410111 | AF34: 0.03419005688 | AG34: 0.03319454892 | AH34: 0.03156964615 | AI34: 0.03310931463 | AJ34: 0.03209447439 | AK34: 0.03049639505 | AL34: 0.03202979556 | AM34: 0.03099574453 | AN34: 0.0294244006 | AO34: 0.03095155287 | AP34: 0.02989841605 | AQ34: 0.02835371597 | AR34: 0.02987464016
B35: Site Lease Pmt Escalator | E35: [%] | F35: 0 | K35: RG&E | L35: 0.095 | M35: 3000 | N35: 1200 | O35: 1.5 | P35: 12 | Q35: 2 | R35: 7 | AB35: 0.02 | AC35: =-$F$42*AB35 -> -0.03 | AD35: 0.03694560269 | AE35: 0.03527910987 | AF35: 0.03683817442 | AG35: 0.03582294889 | AH35: 0.03418401866 | AI35: 0.03573659071 | AJ35: 0.03470161462 | AK35: 0.03309016032 | AL35: 0.03463625937 | AM35: 0.03358165864 | AN35: 0.03199758993 | AO35: 0.03353723592 | AP35: 0.03246314015 | AQ35: 0.03090636299 | AR35: 0.03243957631
B36: Other Annual Operating Expense | E36: [$/kW] | F36: 0 | AB36: 0.04 | AC36: -0.06 | AD36: 0.03969298315 | AE36: 0.03801076212 | AF36: 0.03958377054 | AG36: 0.03854793487 | AH36: 0.03689396666 | AI36: 0.03846026727 | AJ36: 0.03740423736 | AK36: 0.03577843313 | AL36: 0.03733804559 | AM36: 0.03626195202 | AN36: 0.03466421909 | AO36: 0.03621716352 | AP36: 0.03512114075 | AQ36: 0.03355138253 | AR36: 0.03509767953
K37: Regional Inputs-Model Input | U37: 0.01 | V37: 0.02 | W37: 0.03 | X37: 0.04 | Y37: 0.05 | AB37: 0.06 | AC37: -0.09 | AD37: 0.04254503178 | AE37: 0.04084594601 | AF37: 0.04243379762 | AG37: 0.04137640009 | AH37: 0.03970629591 | AI37: 0.04128721356 | AJ37: 0.0402091503 | AK37: 0.03856793668 | AL37: 0.04014194015 | AM37: 0.03904334667 | AN37: 0.03743092851 | AO37: 0.03899803808 | AP37: 0.03787905398 | AQ37: 0.03629533211 | AR37: 0.03785556855
B38: Regional Inputs | F38: Default Value | G38: Adjustment | H38: Current Value | L38: Electric Rate | M38: Lease Cost | N38: Average yield | O38: All-in Cost | P38: O&M Cost | Q38: Insurance | R38: CDG Annual | T38: =O21 -> 0.05867498085 | U38: CHG&E | V38: O&R | W38: NGRID | X38: NYSEG | Y38: ConEd | Z38: RG&E | AB38: 0.08 | AC38: -0.12 | AD38: 0.04550943733 | AE38: 0.04379224914 | AF38: 0.04539591429 | AG38: 0.04431593926 | AH38: 0.04262850318 | AI38: 0.04422499658 | AJ38: 0.04312385385 | AK38: 0.04146607665 | AL38: 0.04305541815 | AM38: 0.04193324842 | AN38: 0.04030503261 | AO38: 0.04188724259 | AP38: 0.0407441909 | AQ38: 0.03914543463 | AR38: 0.04072053402
B39: Electric Rate | E39: [$/kWh] | F39: =INDEX($L$30:$R$35,MATCH($F$8,$K$30:$K$35,0),MATCH($B39,$L$28:$R$28,0)) -> 0.0937 | G39: 0 | H39: =F39+G39 -> 0.0937 | K39: Utility | L39: ($/kWh) | M39: ($/MW) | N39: (kWh/kWdc) | O39: ($/W) | P39: ($/kW), 2% escalator | Q39: ($/kW) | R39: ($/kW) | S39: 0 | T39: =-$F$42*S39 -> 0 | U39: 0.05942920345 | V39: 0.06854974365 | W39: 0.03429591184 | X39: 0.03264410111 | Y39: 0.06724571828 | Z39: 0.03419005688 | AB39: 0.1 | AC39: -0.15 | AD39: 0.04859469288 | AE39: 0.046858051 | AF39: 0.04847857876 | AG39: 0.04737494151 | AH39: 0.04566886763 | AI39: 0.04728197332 | AJ39: 0.04615663288 | AK39: 0.04448103158 | AL39: 0.04608673508 | AM39: 0.04493983763 | AN39: 0.04329460898 | AO39: 0.04489293072 | AP39: 0.04372462703 | AQ39: 0.04210966654 | AR39: 0.04370062754
B40: Lease Cost | E40: [$/MW] | F40: 5000 | G40: 0 | H40: =F40+G40 -> 5000 | K40: CHG&E | L40: =IF(AND($K40=$F$8,$G$39<>0),$H$39,L30) -> 0.134 | M40: =IF(AND($K40=$F$8,$G$40<>0),$H$40,M30) -> 7000 | N40: =IF(AND($K40=$F$8,$G$41<>0),$H$41,N30) -> 1300 | O40: =IF(AND($K40=$F$8,$G$42<>0),$H$42,O30) -> 1.9 | P40: =IF(AND($K40=$F$8,$G$43<>0),$H$43,P30) -> 12 | Q40: =IF(AND($K40=$F$8,$G$44<>0),$H$44,Q30) -> 2 | R40: =IF(AND($K40=$F$8,$G$45<>0),$H$45,R30) -> 7 | S40: 0.05 | T40: -0.075 | U40: 0.06489414694 | V40: 0.07327438925 | W40: 0.04110546108 | X40: 0.03941495579 | Y40: 0.07126276696 | Z40: 0.04099526912 | AB40: 0.12 | AC40: -0.18 | AD40: 0.05181020504 | AE40: 0.05005263033 | AF40: 0.05169115725 | AG40: 0.05056269844 | AH40: 0.04883655698 | AI40: 0.05046739802 | AJ40: 0.04931666358 | AK40: 0.04762185778 | AL40: 0.04924503279 | AM40: 0.04807217467 | AN40: 0.04640860218 | AO40: 0.04802413159 | AP40: 0.04682930663 | AQ40: 0.04519686028 | AR40: 0.04680476514
B41: Average yield | E41: [kWh/kWdc] | F41: 1240 | G41: 0 | H41: 1240 | K41: O&R | L41: 0.167 | M41: 10000 | N41: 1300 | O41: 2.2 | P41: 12 | Q41: 2 | R41: 7 | S41: 0.1 | T41: -0.15 | U41: 0.07077812657 | V41: 0.07830530224 | W41: 0.04859469288 | X41: 0.046858051 | Y41: 0.07550145865 | Z41: 0.04847857876 | AB41: 0.14 | AC41: -0.21 | AD41: 0.05516642158 | AE41: 0.05338629053 | AF41: 0.05504405047 | AG41: 0.05388953026 | AH41: 0.05214175149 | AI41: 0.05379154724 | AJ41: 0.05261413809 | AK41: 0.05089861191 | AL41: 0.05254046319 | AM41: 0.05134032315 | AN41: 0.04965694482 | AO41: 0.051290872 | AP41: 0.05006816431 | AQ41: 0.04841682399 | AR41: 0.05004284807
B42: All-in Cost | E42: [$/W] | F42: 1.5 | G42: -0.24 | H42: 1.26 | K42: NGRID | L42: 0.0937 | M42: 5000 | N42: 1240 | O42: 1.26 | P42: 12 | Q42: 2 | R42: 7 | S42: 0.15 | T42: -0.225 | U42: 0.07714284729 | V42: 0.08367993708 | W42: 0.05690087987 | X42: 0.05510881154 | Y42: 0.07998481179 | Z42: 0.05677668415 | AB42: 0.16 | AC42: -0.24 | AD42: 0.05867498085 | AE42: 0.05687050635 | AF42: 0.05854884178 | AG42: 0.05736693353 | AH42: 0.0555957891 | AI42: 0.05726586639 | AJ42: 0.05606041059 | AK42: 0.05432249452 | AL42: 0.05598433318 | AM42: 0.05475549427 | AN42: 0.05305069951 | AO42: 0.05470431973 | AP42: 0.05345226773 | AQ42: 0.05178048181 | AR42: 0.05342590448
B43: O&M Cost | E43: [$/kW], 2% escalator | F43: 12 | G43: 0 | H43: 12 | K43: NYSEG | L43: 0.094 | M43: 3000 | N43: 1200 | O43: 1.5 | P43: 12 | Q43: 2 | R43: 7 | S43: 0.2 | T43: -0.3 | U43: 0.08406330078 | V43: 0.0894423824 | W43: 0.06620271944 | X43: 0.06434342714 | Y43: 0.08473929476 | Z43: 0.06606744127 | AB43: 0.18 | AC43: -0.27 | AD43: 0.06234888739 | AE43: 0.06051809648 | AF43: 0.06221847128 | AG43: 0.06100775496 | AH43: 0.05921133618 | AI43: 0.06090314203 | AJ43: 0.05966816916 | AK43: 0.05790601892 | AL43: 0.05958927502 | AM43: 0.05833021677 | AN43: 0.0566022258 | AO43: 0.05827695206 | AP43: 0.05699398556 | AQ43: 0.05530003885 | AR43: 0.05696625594
B44: Insurance | E44: [$/kW] | F44: 2 | G44: 0 | H44: 2 | K44: ConEd | L44: 0.203 | M44: 20000 | N44: 1250 | O44: 2.5 | P44: 12 | Q44: 2 | R44: 7 | S44: 0.25 | T44: -0.375 | U44: 0.09163157424 | V44: 0.09564491091 | W44: 0.07673736714 | X44: 0.07479557944 | Y44: 0.0897955054 | Z44: 0.07658674293 | AB44: 0.2 | AC44: -0.3 | AD44: 0.06620271944 | AE44: 0.06434342714 | AF44: 0.06606744127 | AG44: 0.06482639666 | AH44: 0.06300258901 | AI44: 0.06471770523 | AJ44: 0.06345163883 | AK44: 0.06166321055 | AL44: 0.0633694476 | AM44: 0.06207853765 | AN44: 0.06032537741 | AO44: 0.06202275482 | AP44: 0.06070718592 | AQ44: 0.0589891763 | AR44: 0.06067771435
B45: CDG Annual | E45: [$/kW] | F45: 7 | G45: 0 | H45: 7 | K45: RG&E | L45: 0.095 | M45: 3000 | N45: 1200 | O45: 1.5 | P45: 12 | Q45: 2 | R45: 7
A48: x | B48: Generation Profile & Flags
B49: Date | F49: 2016-12-31 | G49: =EOMONTH(F49,12) -> 2017-12-31 | H49: =EOMONTH(G49,12) -> 2018-12-31 | I49: =EOMONTH(H49,12) -> 2019-12-31 | J49: 2020-12-31 | K49: =EOMONTH(J49,12) -> 2021-12-31 | L49: 2022-12-31 | M49: =EOMONTH(L49,12) -> 2023-12-31 | N49: =EOMONTH(M49,12) -> 2024-12-31 | O49: =EOMONTH(N49,12) -> 2025-12-31 | P49: =EOMONTH(O49,12) -> 2026-12-31 | Q49: 2027-12-31 | R49: =EOMONTH(Q49,12) -> 2028-12-31 | S49: 2029-12-31 | T49: 2030-12-31 | U49: 2031-12-31 | V49: =EOMONTH(U49,12) -> 2032-12-31 | W49: 2033-12-31 | X49: =EOMONTH(W49,12) -> 2034-12-31 | Y49: 2035-12-31 | Z49: 2036-12-31 | AA49: 2037-12-31 | AB49: =EOMONTH(AA49,12) -> 2038-12-31 | AC49: 2039-12-31 | AD49: 2040-12-31 | AE49: 2041-12-31
B51: Flags
B52: Construction Active | F52: =-(0-G53) -> 0 | G52: =-(0-H53) -> 0 | H52: =-(0-I53) -> 0 | I52: 0 | J52: =-(0-K53) -> 0 | K52: 0 | L52: =-(0-M53) -> 0 | M52: =-(0-N53) -> 0 | N52: =-(0-O53) -> 0 | O52: =-(0-P53) -> 0 | P52: 0 | Q52: =-(0-R53) -> 0 | R52: 0 | S52: 0 | T52: 0 | U52: =-(0-V53) -> 0 | V52: 0 | W52: =-(0-X53) -> 0 | X52: 0 | Y52: 0 | Z52: 0 | AA52: =-(0-AB53) -> 0 | AB52: 0 | AC52: 0 | AD52: 0 | AE52: =-(0-AF53) -> 0
B53: COD Year | F53: 1 | G53: 0 | H53: 0 | I53: 0 | J53: 0 | K53: 0 | L53: 0 | M53: 0 | N53: 0 | O53: 0 | P53: 0 | Q53: 0 | R53: 0 | S53: 0 | T53: 0 | U53: 0 | V53: 0 | W53: 0 | X53: 0 | Y53: 0 | Z53: 0 | AA53: 0 | AB53: 0 | AC53: 0 | AD53: 0 | AE53: 0
B54: Project Year | F54: =IF(F56<=YEAR($F$49),0,E54+1) -> 0 | G54: 1 | H54: =IF(H56<=YEAR($F$49),0,G54+1) -> 2 | I54: 3 | J54: 4 | K54: =IF(K56<=YEAR($F$49),0,J54+1) -> 5 | L54: 6 | M54: =IF(M56<=YEAR($F$49),0,L54+1) -> 7 | N54: =IF(N56<=YEAR($F$49),0,M54+1) -> 8 | O54: =IF(O56<=YEAR($F$49),0,N54+1) -> 9 | P54: =IF(P56<=YEAR($F$49),0,O54+1) -> 10 | Q54: 11 | R54: 12 | S54: 13 | T54: 14 | U54: 15 | V54: 16 | W54: 17 | X54: 18 | Y54: 19 | Z54: 20 | AA54: 21 | AB54: 22 | AC54: 23 | AD54: 24 | AE54: 25
B55: Days in Year | F55: =(F49-E49)*F59 -> 0 | G55: =(G49-F49)*G59 -> 365 | H55: =(H49-G49)*H59 -> 365 | I55: =(I49-H49)*I59 -> 365 | J55: 366 | K55: =(K49-J49)*K59 -> 365 | L55: 365 | M55: =(M49-L49)*M59 -> 365 | N55: =(N49-M49)*N59 -> 366 | O55: =(O49-N49)*O59 -> 365 | P55: =(P49-O49)*P59 -> 365 | Q55: 365 | R55: =(R49-Q49)*R59 -> 366 | S55: 365 | T55: 365 | U55: 365 | V55: =(V49-U49)*V59 -> 366 | W55: 365 | X55: =(X49-W49)*X59 -> 365 | Y55: 365 | Z55: 366 | AA55: 365 | AB55: =(AB49-AA49)*AB59 -> 365 | AC55: 365 | AD55: 366 | AE55: 365
B56: Year | F56: =+YEAR(F49) -> 2016 | G56: 2017 | H56: 2018 | I56: 2019 | J56: 2020 | K56: 2021 | L56: 2022 | M56: 2023 | N56: 2024 | O56: 2025 | P56: 2026 | Q56: 2027 | R56: 2028 | S56: 2029 | T56: 2030 | U56: 2031 | V56: 2032 | W56: 2033 | X56: 2034 | Y56: 2035 | Z56: 2036 | AA56: 2037 | AB56: 2038 | AC56: 2039 | AD56: 2040 | AE56: 2041
B57: Hours in Year | F57: =+F55*24 -> 0 | G57: 8760 | H57: 8760 | I57: 8760 | J57: 8784 | K57: 8760 | L57: 8760 | M57: 8760 | N57: 8784 | O57: 8760 | P57: 8760 | Q57: 8760 | R57: 8784 | S57: 8760 | T57: 8760 | U57: 8760 | V57: 8784 | W57: 8760 | X57: 8760 | Y57: 8760 | Z57: 8784 | AA57: 8760 | AB57: 8760 | AC57: 8760 | AD57: 8784 | AE57: 8760
B59: Operational | E59: =SUM(F59:AO59) -> 25 | F59: =IF(AND(F54<=$F$21,F54>0),1,0) -> 0 | G59: 1 | H59: 1 | I59: 1 | J59: 1 | K59: 1 | L59: 1 | M59: 1 | N59: 1 | O59: 1 | P59: 1 | Q59: 1 | R59: 1 | S59: 1 | T59: 1 | U59: 1 | V59: 1 | W59: 1 | X59: 1 | Y59: 1 | Z59: 1 | AA59: 1 | AB59: 1 | AC59: 1 | AD59: 1 | AE59: 1
B60: Total Production (MWh) | E60: =SUM(F60:AO60) -> 84762.61696 | F60: =+$F$13/8760*F57*F67*$F$31 -> 0 | G60: 3596 | H60: 3578.02 | I60: 3560.1299 | J60: 3552.034262 | K60: 3524.617604 | L60: 3506.994516 | M60: 3489.459544 | N60: 3481.524608 | O60: 3454.652185 | P60: 3437.378924 | Q60: 3420.192029 | R60: 3412.414606 | S60: 3386.075614 | T60: 3369.145236 | U60: 3352.299509 | V60: 3344.676472 | W60: 3318.860322 | X60: 3302.26602 | Y60: 3285.75469 | Z60: 3278.282974 | AA60: 3252.979287 | AB60: 3236.714391 | AC60: 3220.530819 | AD60: 3213.20742 | AE60: 3188.406024
B62: NYSERDA Payment Period | E62: =SUM(F62:AO62) -> 3 | F62: =IF(F54<=3,1,0)*F59 -> 0 | G62: 1 | H62: 1 | I62: 1 | J62: 0 | K62: 0 | L62: 0 | M62: 0 | N62: 0 | O62: 0 | P62: 0 | Q62: 0 | R62: 0 | S62: 0 | T62: 0 | U62: 0 | V62: 0 | W62: 0 | X62: 0 | Y62: 0 | Z62: 0 | AA62: 0 | AB62: 0 | AC62: 0 | AD62: 0 | AE62: 0
B63: NYSERDA Eligible Production | E63: =SUM(F63:AO63) -> 10734.1499 | F63: =+F60*F62 -> 0 | G63: 3596 | H63: 3578.02 | I63: 3560.1299 | J63: 0 | K63: 0 | L63: 0 | M63: 0 | N63: 0 | O63: 0 | P63: 0 | Q63: 0 | R63: 0 | S63: 0 | T63: 0 | U63: 0 | V63: 0 | W63: 0 | X63: 0 | Y63: 0 | Z63: 0 | AA63: 0 | AB63: 0 | AC63: 0 | AD63: 0 | AE63: 0
B65: Inflation Index | F65: =(1+$F$34)^(F$54-1)*F$59 -> 0 | G65: 1 | H65: 1.02 | I65: 1.0404 | J65: 1.061208 | K65: 1.08243216 | L65: 1.104080803 | M65: 1.126162419 | N65: 1.148685668 | O65: 1.171659381 | P65: 1.195092569 | Q65: 1.21899442 | R65: 1.243374308 | S65: 1.268241795 | T65: 1.29360663 | U65: 1.319478763 | V65: 1.345868338 | W65: 1.372785705 | X65: 1.400241419 | Y65: 1.428246248 | Z65: 1.456811173 | AA65: 1.485947396 | AB65: 1.515666344 | AC65: 1.545979671 | AD65: 1.576899264 | AE65: 1.608437249
B66: PPA Index | F66: =(1+$F$22)^(F54-1) -> 0.9900990099 | G66: 1 | H66: 1.01 | I66: 1.0201 | J66: 1.030301 | K66: 1.04060401 | L66: 1.05101005 | M66: 1.061520151 | N66: 1.072135352 | O66: 1.082856706 | P66: 1.093685273 | Q66: 1.104622125 | R66: 1.115668347 | S66: 1.12682503 | T66: 1.13809328 | U66: 1.149474213 | V66: 1.160968955 | W66: 1.172578645 | X66: 1.184304431 | Y66: 1.196147476 | Z66: 1.20810895 | AA66: 1.22019004 | AB66: 1.23239194 | AC66: 1.24471586 | AD66: 1.257163018 | AE66: 1.269734649
B67: Degradation Index | F67: =(1-$F$33)^(F54-1)*F59 -> 0 | G67: 1 | H67: 0.995 | I67: 0.990025 | J67: 0.985074875 | K67: 0.9801495006 | L67: 0.9752487531 | M67: 0.9703725094 | N67: 0.9655206468 | O67: 0.9606930436 | P67: 0.9558895784 | Q67: 0.9511101305 | R67: 0.9463545798 | S67: 0.9416228069 | T67: 0.9369146929 | U67: 0.9322301194 | V67: 0.9275689688 | W67: 0.922931124 | X67: 0.9183164684 | Y67: 0.913724886 | Z67: 0.9091562616 | AA67: 0.9046104803 | AB67: 0.9000874279 | AC67: 0.8955869907 | AD67: 0.8911090558 | AE67: 0.8866535105
B68: Land Lease Index | F68: =(1+$F$35)^(F$54-1)*F$59 -> 0 | G68: 1 | H68: 1 | I68: 1 | J68: 1 | K68: 1 | L68: 1 | M68: 1 | N68: 1 | O68: 1 | P68: 1 | Q68: 1 | R68: 1 | S68: 1 | T68: 1 | U68: 1 | V68: 1 | W68: 1 | X68: 1 | Y68: 1 | Z68: 1 | AA68: 1 | AB68: 1 | AC68: 1 | AD68: 1 | AE68: 1
B70: State Incentive Collected | F70: 0 | G70: =SUM($F84:F$84,$F82:F$82) -> 283.394322 | H70: =SUM($F84:G$84,$F82:G$82) -> 582.761322 | I70: =SUM($F84:H$84,$F82:H$82) -> 880.631487 | J70: =SUM($F84:I$84,$F82:I$82) -> 1133.577288 | K70: =SUM($F84:J$84,$F82:J$82) -> 1133.577288 | L70: =SUM($F84:K$84,$F82:K$82) -> 1133.577288 | M70: =SUM($F84:L$84,$F82:L$82) -> 1133.577288 | N70: =SUM($F84:M$84,$F82:M$82) -> 1133.577288 | O70: =SUM($F84:N$84,$F82:N$82) -> 1133.577288 | P70: =SUM($F84:O$84,$F82:O$82) -> 1133.577288 | Q70: =SUM($F84:P$84,$F82:P$82) -> 1133.577288 | R70: =SUM($F84:Q$84,$F82:Q$82) -> 1133.577288 | S70: =SUM($F84:R$84,$F82:R$82) -> 1133.577288 | T70: =SUM($F84:S$84,$F82:S$82) -> 1133.577288 | U70: =SUM($F84:T$84,$F82:T$82) -> 1133.577288 | V70: =SUM($F84:U$84,$F82:U$82) -> 1133.577288 | W70: =SUM($F84:V$84,$F82:V$82) -> 1133.577288 | X70: =SUM($F84:W$84,$F82:W$82) -> 1133.577288 | Y70: =SUM($F84:X$84,$F82:X$82) -> 1133.577288 | Z70: =SUM($F84:Y$84,$F82:Y$82) -> 1133.577288 | AA70: =SUM($F84:Z$84,$F82:Z$82) -> 1133.577288 | AB70: =SUM($F84:AA$84,$F82:AA$82) -> 1133.577288 | AC70: =SUM($F84:AB$84,$F82:AB$82) -> 1133.577288 | AD70: =SUM($F84:AC$84,$F82:AC$82) -> 1133.577288 | AE70: =SUM($F84:AD$84,$F82:AD$82) -> 1133.577288
B71: State Incentive Remaining | F71: 0 | G71: =($F$27/1000-G70) -> 850.182966 | H71: 550.815966 | I71: 252.945801 | J71: 0 | K71: 0 | L71: 0 | M71: 0 | N71: 0 | O71: 0 | P71: 0 | Q71: 0 | R71: 0 | S71: 0 | T71: 0 | U71: 0 | V71: 0 | W71: 0 | X71: 0 | Y71: 0 | Z71: 0 | AA71: 0 | AB71: 0 | AC71: 0 | AD71: 0 | AE71: 0
A73: x | B73: Unlevered Operating Cash Flow Build
B74: ($000s) | E74: Total | F74: =F$49 -> 2016-12-31 | G74: =G$49 -> 2017-12-31 | H74: 2018-12-31 | I74: 2019-12-31 | J74: 2020-12-31 | K74: 2021-12-31 | L74: 2022-12-31 | M74: 2023-12-31 | N74: 2024-12-31 | O74: 2025-12-31 | P74: 2026-12-31 | Q74: 2027-12-31 | R74: 2028-12-31 | S74: 2029-12-31 | T74: 2030-12-31 | U74: 2031-12-31 | V74: =V$49 -> 2032-12-31 | W74: =W$49 -> 2033-12-31 | X74: 2034-12-31 | Y74: 2035-12-31 | Z74: 2036-12-31 | AA74: 2037-12-31 | AB74: 2038-12-31 | AC74: 2039-12-31 | AD74: 2040-12-31 | AE74: 2041-12-31
B76: Contracted Production (MWh) | E76: =SUM(F76:AO76) -> 84762.61696 | F76: =+F$60 -> 0 | G76: =+G$60 -> 3596 | H76: 3578.02 | I76: 3560.1299 | J76: 3552.034262 | K76: 3524.617604 | L76: 3506.994516 | M76: 3489.459544 | N76: 3481.524608 | O76: 3454.652185 | P76: 3437.378924 | Q76: 3420.192029 | R76: 3412.414606 | S76: 3386.075614 | T76: 3369.145236 | U76: 3352.299509 | V76: =+V$60 -> 3344.676472 | W76: =+W$60 -> 3318.860322 | X76: 3302.26602 | Y76: 3285.75469 | Z76: 3278.282974 | AA76: 3252.979287 | AB76: 3236.714391 | AC76: 3220.530819 | AD76: 3213.20742 | AE76: 3188.406024
B77: PPA Price ($/kWh) | F77: =+$F$20*F66*(F76>0) -> 0 | G77: 0.08433 | H77: 0.0851733 | I77: 0.086025033 | J77: 0.08688528333 | K77: 0.08775413616 | L77: 0.08863167752 | M77: 0.0895179943 | N77: 0.09041317424 | O77: 0.09131730599 | P77: 0.09223047905 | Q77: 0.09315278384 | R77: 0.09408431167 | S77: 0.09502515479 | T77: 0.09597540634 | U77: 0.0969351604 | V77: 0.09790451201 | W77: 0.09888355713 | X77: 0.0998723927 | Y77: 0.1008711166 | Z77: 0.1018798278 | AA77: 0.1028986261 | AB77: 0.1039276123 | AC77: 0.1049668885 | AD77: 0.1060165573 | AE77: 0.1070767229
B78: Contracted Energy Revenues (PPA) | E78: =SUM(F78:AO78) -> 8054.477738 | F78: =+F77*F76 -> 0 | G78: 303.25068 | H78: 304.7517709 | I78: 306.2602921 | J78: 308.6195033 | K78: 309.2997732 | L78: 310.830807 | M78: 312.3694195 | N78: 314.775691 | O78: 315.4695306 | P78: 317.0311048 | Q78: 318.6004088 | R78: 321.0546794 | S78: 321.7623593 | T78: 323.355083 | U78: 324.9556907 | V78: 327.4589178 | W78: 328.1807142 | X78: 329.8052088 | Y78: 331.4377445 | Z78: 333.9909048 | AA78: 334.7270993 | AB78: 336.3839984 | AC78: 338.0490992 | AD78: 340.6531887 | AE78: 341.4040683
F79: `
B80: NYSERDA Contracted Production (MWh) | E80: =SUM(F80:AO80) -> 8050.612425 | F80: =+F63*0.75 -> 0 | G80: 2697 | H80: 2683.515 | I80: 2670.097425 | J80: 0 | K80: 0 | L80: 0 | M80: 0 | N80: 0 | O80: 0 | P80: 0 | Q80: 0 | R80: 0 | S80: 0 | T80: 0 | U80: 0 | V80: 0 | W80: 0 | X80: 0 | Y80: 0 | Z80: 0 | AA80: 0 | AB80: 0 | AC80: 0 | AD80: 0 | AE80: 0
B81: NYSERDA Grants Rate ($/MWh) | F81: =$F$24*(F80>0)*1000 -> 0 | G81: 111 | H81: 111 | I81: 111 | J81: 0 | K81: 0 | L81: 0 | M81: 0 | N81: 0 | O81: 0 | P81: 0 | Q81: 0 | R81: 0 | S81: 0 | T81: 0 | U81: 0 | V81: 0 | W81: 0 | X81: 0 | Y81: 0 | Z81: 0 | AA81: 0 | AB81: 0 | AC81: 0 | AD81: 0 | AE81: 0
B82: NYSERDA Grants ($) | E82: =SUM(F82:AO82) -> 850.182966 | F82: =MIN(F80*F81/1000,F71) -> 0 | G82: =MIN(G80*G81/1000,G71) -> 299.367 | H82: 297.870165 | I82: 252.945801 | J82: 0 | K82: 0 | L82: 0 | M82: 0 | N82: 0 | O82: 0 | P82: 0 | Q82: 0 | R82: 0 | S82: 0 | T82: 0 | U82: 0 | V82: 0 | W82: 0 | X82: 0 | Y82: 0 | Z82: 0 | AA82: 0 | AB82: 0 | AC82: 0 | AD82: 0 | AE82: 0
B84: Upfront NYSERDA Grant | E84: =SUM(F84:AO84) -> 283.394322 | F84: =+$F$27/1000/4*F53 -> 283.394322 | G84: 0 | H84: 0 | I84: 0 | J84: 0 | K84: 0 | L84: 0 | M84: 0 | N84: 0 | O84: 0 | P84: 0 | Q84: 0 | R84: 0 | S84: 0 | T84: 0 | U84: 0 | V84: 0 | W84: 0 | X84: 0 | Y84: 0 | Z84: 0 | AA84: 0 | AB84: 0 | AC84: 0 | AD84: 0 | AE84: 0
B86: Total Revenues | E86: =SUM(F86:AO86) -> 9188.055026 | F86: =+F78+F82+F84 -> 283.394322 | G86: 602.61768 | H86: 602.6219359 | I86: 559.2060931 | J86: 308.6195033 | K86: 309.2997732 | L86: 310.830807 | M86: 312.3694195 | N86: 314.775691 | O86: 315.4695306 | P86: 317.0311048 | Q86: 318.6004088 | R86: 321.0546794 | S86: 321.7623593 | T86: 323.355083 | U86: 324.9556907 | V86: 327.4589178 | W86: 328.1807142 | X86: 329.8052088 | Y86: 331.4377445 | Z86: 333.9909048 | AA86: 334.7270993 | AB86: 336.3839984 | AC86: 338.0490992 | AD86: 340.6531887 | AE86: 341.4040683
B88: Land Lease | E88: =SUM(F88:AO88) -> -362.5 | F88: =-$F$12*$F$31/1000*F68 -> 0 | G88: -14.5 | H88: -14.5 | I88: -14.5 | J88: -14.5 | K88: -14.5 | L88: -14.5 | M88: -14.5 | N88: -14.5 | O88: -14.5 | P88: -14.5 | Q88: -14.5 | R88: -14.5 | S88: -14.5 | T88: -14.5 | U88: -14.5 | V88: -14.5 | W88: -14.5 | X88: -14.5 | Y88: -14.5 | Z88: -14.5 | AA88: -14.5 | AB88: -14.5 | AC88: -14.5 | AD88: -14.5 | AE88: -14.5
B89: Other Annual Operating Expenses | E89: 0 | F89: =-$F$36*$F$31*F65 -> 0 | G89: 0 | H89: 0 | I89: 0 | J89: 0 | K89: 0 | L89: 0 | M89: 0 | N89: 0 | O89: 0 | P89: 0 | Q89: 0 | R89: 0 | S89: 0 | T89: 0 | U89: 0 | V89: 0 | W89: 0 | X89: 0 | Y89: 0 | Z89: 0 | AA89: 0 | AB89: 0 | AC89: 0 | AD89: 0 | AE89: 0
B90: Real Property Taxes | E90: -387.72594 | F90: =F134 -> 0 | G90: -6.5772 | H90: -6.24834 | I90: -5.91948 | J90: -5.59062 | K90: -5.26176 | L90: -4.9329 | M90: -4.60404 | N90: -4.27518 | O90: -3.94632 | P90: -3.61746 | Q90: -3.2886 | R90: -2.95974 | S90: -2.63088 | T90: -2.30202 | U90: -1.97316 | V90: -39.4632 | W90: -31.57056 | X90: -31.57056 | Y90: -31.57056 | Z90: -31.57056 | AA90: -31.57056 | AB90: -31.57056 | AC90: -31.57056 | AD90: -31.57056 | AE90: -31.57056
B91: Annual O&M | E91: -1114.65443 | G91: =-P40*F31 -> -34.8 | H91: =G91*1.02 -> -35.496 | I91: =H91*1.02 -> -36.20592 | J91: -36.9300384 | K91: =J91*1.02 -> -37.66863917 | L91: -38.42201195 | M91: =L91*1.02 -> -39.19045219 | N91: =M91*1.02 -> -39.97426123 | O91: =N91*1.02 -> -40.77374646 | P91: =O91*1.02 -> -41.58922139 | Q91: -42.42100582 | R91: -43.26942593 | S91: -44.13481445 | T91: -45.01751074 | U91: -45.91786095 | V91: -46.83621817 | W91: -47.77294254 | X91: -48.72840139 | Y91: -49.70296942 | Z91: -50.6970288 | AA91: =IF(AA59=1,Z91*1.02,0) -> -51.71096938 | AB91: -52.74518877 | AC91: -53.80009254 | AD91: -54.87609439 | AE91: -55.97361628
B92: Insurance | E92: -145 | F92: =IF(F59=1,$Q$40*-$F$31,0) -> 0 | G92: =IF(G59=1,-$Q$40*$F$31,0) -> -5.8 | H92: -5.8 | I92: -5.8 | J92: -5.8 | K92: -5.8 | L92: -5.8 | M92: -5.8 | N92: -5.8 | O92: -5.8 | P92: -5.8 | Q92: -5.8 | R92: -5.8 | S92: -5.8 | T92: -5.8 | U92: -5.8 | V92: -5.8 | W92: -5.8 | X92: -5.8 | Y92: -5.8 | Z92: -5.8 | AA92: -5.8 | AB92: -5.8 | AC92: -5.8 | AD92: -5.8 | AE92: -5.8
B93: CDG Annual Costs | E93: -507.5 | F93: =IF(F59=1,$F$31*-$R$40,0) -> 0 | G93: -20.3 | H93: -20.3 | I93: -20.3 | J93: -20.3 | K93: -20.3 | L93: -20.3 | M93: -20.3 | N93: -20.3 | O93: -20.3 | P93: -20.3 | Q93: -20.3 | R93: -20.3 | S93: -20.3 | T93: -20.3 | U93: -20.3 | V93: -20.3 | W93: -20.3 | X93: -20.3 | Y93: -20.3 | Z93: -20.3 | AA93: -20.3 | AB93: -20.3 | AC93: -20.3 | AD93: -20.3 | AE93: -20.3
B94: Inverter Replacement | E94: =SUM(G94:AH94) -> -580 | F94: 0 | G94: 0 | H94: 0 | I94: 0 | J94: 0 | K94: 0 | L94: 0 | M94: 0 | N94: 0 | O94: 0 | P94: =-0.1*F31*1000 -> -290 | Q94: 0 | R94: 0 | S94: 0 | T94: 0 | U94: 0 | V94: 0 | W94: 0 | X94: 0 | Y94: 0 | Z94: 0 | AA94: =IF(AA59=1,(-0.1*1000*F31),0) -> -290
B95: Total OpEx | E95: =SUM(F95:AO95) -> -3097.38037 | F95: =SUM(F88:F94) -> 0 | G95: =SUM(G88:G94) -> -81.9772 | H95: -82.34434 | I95: -82.7254 | J95: -83.1206584 | K95: -83.53039917 | L95: -83.95491195 | M95: -84.39449219 | N95: -84.84944123 | O95: -85.32006646 | P95: -375.8066814 | Q95: -86.30960582 | R95: -86.82916593 | S95: -87.36569445 | T95: -87.91953074 | U95: -88.49102095 | V95: -126.8994182 | W95: -119.9435025 | X95: -120.8989614 | Y95: -121.8735294 | Z95: -122.8675888 | AA95: -413.8815294 | AB95: -124.9157488 | AC95: -125.9706525 | AD95: -127.0466544 | AE95: -128.1441763
B96: Total OpEx $/kWp | F96: =-SUM(F88:F89)/($F$31) -> 0 | G96: 5 | H96: 5 | I96: 5 | J96: 5 | K96: 5 | L96: 5 | M96: 5 | N96: 5 | O96: 5 | P96: 5 | Q96: 5 | R96: 5 | S96: 5 | T96: 5 | U96: 5 | V96: 5 | W96: 5 | X96: 5 | Y96: 5 | Z96: 5 | AA96: 5 | AB96: 5 | AC96: 5 | AD96: 5 | AE96: 5
B97: EBITDA | E97: =SUM(F97:AO97) -> 6090.674655 | F97: =+F95+F86 -> 283.394322 | G97: 520.64048 | H97: 520.2775959 | I97: 476.4806931 | J97: 225.4988449 | K97: 225.769374 | L97: 226.8758951 | M97: 227.9749273 | N97: 229.9262498 | O97: 230.1494642 | P97: -58.77557659 | Q97: 232.290803 | R97: 234.2255134 | S97: 234.3966649 | T97: 235.4355523 | U97: 236.4646697 | V97: 200.5594997 | W97: 208.2372117 | X97: 208.9062474 | Y97: 209.5642151 | Z97: 211.123316 | AA97: -79.15443011 | AB97: 211.4682496 | AC97: 212.0784467 | AD97: 213.6065343 | AE97: 213.2598921
B98: EBITDA Margin | F98: =IFERROR(F97/F86*100,0) -> 100 | G98: 86.39648276 | H98: 86.33565506 | I98: 85.20663472 | J98: 73.0669457 | K98: 72.99370824 | L98: 72.99015733 | M98: 72.98247302 | N98: 73.04447464 | O98: 72.9545778 | P98: -18.53937222 | Q98: 72.909763 | R98: 72.95502246 | S98: 72.84775801 | T98: 72.81022153 | U98: 72.76828088 | V98: 61.24722484 | W98: 63.4519954 | X98: 63.34231292 | Y98: 63.22883213 | Z98: 63.212295 | AA98: -23.64745199 | AB98: 62.86513349 | AC98: 62.73598929 | AD98: 62.704986 | AE98: 62.46553918
B101: All-in Cost Basis | E101: =SUM(F101:AO101) -> -3654 | F101: =-$F$11*F53*$F$31*1000 -> -3654 | G101: 0 | H101: 0 | I101: 0 | J101: 0 | K101: 0 | L101: 0 | M101: 0 | N101: 0 | O101: 0 | P101: 0 | Q101: 0 | R101: 0 | S101: 0 | T101: 0 | U101: 0 | V101: 0 | W101: 0 | X101: 0 | Y101: 0 | Z101: 0 | AA101: 0 | AB101: 0 | AC101: 0 | AD101: 0 | AE101: 0
B102: Pre-Tax Investor Cash Flow (Pre-PILOT) | E102: =SUM(F102:AO102) -> 2436.674655 | F102: =SUM(F101:F101,F97) -> -3370.605678 | G102: 520.64048 | H102: 520.2775959 | I102: 476.4806931 | J102: 225.4988449 | K102: 225.769374 | L102: 226.8758951 | M102: 227.9749273 | N102: 229.9262498 | O102: 230.1494642 | P102: -58.77557659 | Q102: 232.290803 | R102: 234.2255134 | S102: 234.3966649 | T102: 235.4355523 | U102: 236.4646697 | V102: 200.5594997 | W102: 208.2372117 | X102: 208.9062474 | Y102: 209.5642151 | Z102: 211.123316 | AA102: -79.15443011 | AB102: 211.4682496 | AC102: 212.0784467 | AD102: 213.6065343 | AE102: 213.2598921
B103: PILOT Payments | E103: =SUM(F103:AO103) -> -50.54178 | F103: =-$O$17/1000*F127 -> 0 | G103: =-$O$17/1000*G127 -> -3.369452 | H103: -3.369452 | I103: -3.369452 | J103: -3.369452 | K103: -3.369452 | L103: -3.369452 | M103: -3.369452 | N103: -3.369452 | O103: -3.369452 | P103: -3.369452 | Q103: -3.369452 | R103: -3.369452 | S103: -3.369452 | T103: -3.369452 | U103: -3.369452 | V103: 0 | W103: 0 | X103: 0 | Y103: 0 | Z103: 0 | AA103: 0 | AB103: 0 | AC103: 0 | AD103: 0 | AE103: 0
B104: Pre-Tax Investor Cash Flow (Post-PILOT) | E104: =SUM(F104:AO104) -> 2386.132875 | F104: =SUM(F102:F103) -> -3370.605678 | G104: 517.271028 | H104: 516.9081439 | I104: 473.1112411 | J104: 222.1293929 | K104: 222.399922 | L104: 223.5064431 | M104: 224.6054753 | N104: 226.5567978 | O104: 226.7800122 | P104: -62.14502859 | Q104: 228.921351 | R104: 230.8560614 | S104: 231.0272129 | T104: 232.0661003 | U104: 233.0952177 | V104: 200.5594997 | W104: 208.2372117 | X104: 208.9062474 | Y104: 209.5642151 | Z104: 211.123316 | AA104: -79.15443011 | AB104: 211.4682496 | AC104: 212.0784467 | AD104: 213.6065343 | AE104: 213.2598921
B106: Property Taxes
B108: Property Tax Assumptions
B109: Eligible Construction Costs | E109: [$/W] | F109: =F11*0.9 -> 1.134
B110: Assumed Equalization Rate | E110: [%] | F110: 1
B111: Year 1 Assessed Value for Tax Purposes | E111: [$/W] | F111: =F109*F110 -> 1.134
B112: Nominal Year 1 Assessed Value for Tax Purposes | E112: [$] | F112: =F111*F31*1000000 -> 3288600
B114: PILOT Period | E114: [Years] | F114: 15
B116: Straight Line Depretiation Period | E116: [Years] | F116: 20
B117: Final Value Minimum Threshold | E117: [%] | F117: 0.2
B119: Assumed All-in County+Town+School Tax Rate | E119: [%] | F119: 0.046
B120: Assumed Special District Tax Rate | F120: 0.002
B122: Year | F122: =+'3. Calculator-raw'!F56 -> 2016 | G122: =+'3. Calculator-raw'!G56 -> 2017 | H122: =+'3. Calculator-raw'!H56 -> 2018 | I122: =+'3. Calculator-raw'!I56 -> 2019 | J122: =+'3. Calculator-raw'!J56 -> 2020 | K122: =+'3. Calculator-raw'!K56 -> 2021 | L122: =+'3. Calculator-raw'!L56 -> 2022 | M122: =+'3. Calculator-raw'!M56 -> 2023 | N122: =+'3. Calculator-raw'!N56 -> 2024 | O122: =+'3. Calculator-raw'!O56 -> 2025 | P122: =+'3. Calculator-raw'!P56 -> 2026 | Q122: =+'3. Calculator-raw'!Q56 -> 2027 | R122: =+'3. Calculator-raw'!R56 -> 2028 | S122: =+'3. Calculator-raw'!S56 -> 2029 | T122: =+'3. Calculator-raw'!T56 -> 2030 | U122: =+'3. Calculator-raw'!U56 -> 2031 | V122: =+'3. Calculator-raw'!V56 -> 2032 | W122: =+'3. Calculator-raw'!W56 -> 2033 | X122: =+'3. Calculator-raw'!X56 -> 2034 | Y122: =+'3. Calculator-raw'!Y56 -> 2035 | Z122: =+'3. Calculator-raw'!Z56 -> 2036 | AA122: =+'3. Calculator-raw'!AA56 -> 2037 | AB122: =+'3. Calculator-raw'!AB56 -> 2038 | AC122: =+'3. Calculator-raw'!AC56 -> 2039 | AD122: =+'3. Calculator-raw'!AD56 -> 2040 | AE122: =+'3. Calculator-raw'!AE56 -> 2041 | AF122: =+'3. Calculator-raw'!AF56 -> 0 | AG122: =+'3. Calculator-raw'!AG56 -> 0 | AH122: =+'3. Calculator-raw'!AH56 -> 0 | AI122: =+'3. Calculator-raw'!AI56 -> 0 | AJ122: =+'3. Calculator-raw'!AJ56 -> 0 | AK122: =+'3. Calculator-raw'!AK56 -> 0 | AL122: =+'3. Calculator-raw'!AL56 -> 0 | AM122: =+'3. Calculator-raw'!AM56 -> 0 | AN122: =+'3. Calculator-raw'!AN56 -> 0 | AO122: =+'3. Calculator-raw'!AO56 -> 0
B123: Project Year | F123: =+'3. Calculator-raw'!F54 -> 0 | G123: =+'3. Calculator-raw'!G54 -> 1 | H123: =+'3. Calculator-raw'!H54 -> 2 | I123: =+'3. Calculator-raw'!I54 -> 3 | J123: =+'3. Calculator-raw'!J54 -> 4 | K123: =+'3. Calculator-raw'!K54 -> 5 | L123: =+'3. Calculator-raw'!L54 -> 6 | M123: =+'3. Calculator-raw'!M54 -> 7 | N123: =+'3. Calculator-raw'!N54 -> 8 | O123: =+'3. Calculator-raw'!O54 -> 9 | P123: =+'3. Calculator-raw'!P54 -> 10 | Q123: =+'3. Calculator-raw'!Q54 -> 11 | R123: =+'3. Calculator-raw'!R54 -> 12 | S123: =+'3. Calculator-raw'!S54 -> 13 | T123: =+'3. Calculator-raw'!T54 -> 14 | U123: =+'3. Calculator-raw'!U54 -> 15 | V123: =+'3. Calculator-raw'!V54 -> 16 | W123: =+'3. Calculator-raw'!W54 -> 17 | X123: =+'3. Calculator-raw'!X54 -> 18 | Y123: =+'3. Calculator-raw'!Y54 -> 19 | Z123: =+'3. Calculator-raw'!Z54 -> 20 | AA123: =+'3. Calculator-raw'!AA54 -> 21 | AB123: =+'3. Calculator-raw'!AB54 -> 22 | AC123: =+'3. Calculator-raw'!AC54 -> 23 | AD123: =+'3. Calculator-raw'!AD54 -> 24 | AE123: =+'3. Calculator-raw'!AE54 -> 25 | AF123: =+'3. Calculator-raw'!AF54 -> 0 | AG123: =+'3. Calculator-raw'!AG54 -> 0 | AH123: =+'3. Calculator-raw'!AH54 -> 0 | AI123: =+'3. Calculator-raw'!AI54 -> 0 | AJ123: =+'3. Calculator-raw'!AJ54 -> 0 | AK123: =+'3. Calculator-raw'!AK54 -> 0 | AL123: =+'3. Calculator-raw'!AL54 -> 0 | AM123: =+'3. Calculator-raw'!AM54 -> 0 | AN123: =+'3. Calculator-raw'!AN54 -> 0 | AO123: =+'3. Calculator-raw'!AO54 -> 0
B124: Project Operational | F124: =+'3. Calculator-raw'!F59 -> 0 | G124: =+'3. Calculator-raw'!G59 -> 1 | H124: =+'3. Calculator-raw'!H59 -> 1 | I124: =+'3. Calculator-raw'!I59 -> 1 | J124: =+'3. Calculator-raw'!J59 -> 1 | K124: =+'3. Calculator-raw'!K59 -> 1 | L124: =+'3. Calculator-raw'!L59 -> 1 | M124: =+'3. Calculator-raw'!M59 -> 1 | N124: =+'3. Calculator-raw'!N59 -> 1 | O124: =+'3. Calculator-raw'!O59 -> 1 | P124: =+'3. Calculator-raw'!P59 -> 1 | Q124: =+'3. Calculator-raw'!Q59 -> 1 | R124: =+'3. Calculator-raw'!R59 -> 1 | S124: =+'3. Calculator-raw'!S59 -> 1 | T124: =+'3. Calculator-raw'!T59 -> 1 | U124: =+'3. Calculator-raw'!U59 -> 1 | V124: =+'3. Calculator-raw'!V59 -> 1 | W124: =+'3. Calculator-raw'!W59 -> 1 | X124: =+'3. Calculator-raw'!X59 -> 1 | Y124: =+'3. Calculator-raw'!Y59 -> 1 | Z124: =+'3. Calculator-raw'!Z59 -> 1 | AA124: =+'3. Calculator-raw'!AA59 -> 1 | AB124: =+'3. Calculator-raw'!AB59 -> 1 | AC124: =+'3. Calculator-raw'!AC59 -> 1 | AD124: =+'3. Calculator-raw'!AD59 -> 1 | AE124: =+'3. Calculator-raw'!AE59 -> 1 | AF124: =+'3. Calculator-raw'!AF59 -> 0 | AG124: =+'3. Calculator-raw'!AG59 -> 0 | AH124: =+'3. Calculator-raw'!AH59 -> 0 | AI124: =+'3. Calculator-raw'!AI59 -> 0 | AJ124: =+'3. Calculator-raw'!AJ59 -> 0 | AK124: =+'3. Calculator-raw'!AK59 -> 0 | AL124: =+'3. Calculator-raw'!AL59 -> 0 | AM124: =+'3. Calculator-raw'!AM59 -> 0 | AN124: =+'3. Calculator-raw'!AN59 -> 0 | AO124: =+'3. Calculator-raw'!AO59 -> 0
B125: Depreciation Coefficient | F125: 0 | G125: =MAX($F$117,1-(1/$F$116)*(G$123-1)) -> 1 | H125: 0.95 | I125: 0.9 | J125: 0.85 | K125: 0.8 | L125: 0.75 | M125: 0.7 | N125: 0.65 | O125: 0.6 | P125: 0.55 | Q125: 0.5 | R125: 0.45 | S125: 0.4 | T125: 0.35 | U125: 0.3 | V125: 0.25 | W125: 0.2 | X125: 0.2 | Y125: 0.2 | Z125: 0.2 | AA125: 0.2 | AB125: 0.2 | AC125: 0.2 | AD125: 0.2 | AE125: 0.2 | AF125: 1.05 | AG125: 1.05 | AH125: 1.05 | AI125: 1.05 | AJ125: 1.05 | AK125: 1.05 | AL125: 1.05 | AM125: 1.05 | AN125: 1.05 | AO125: 1.05
B127: PILOT Active | F127: =IF(F123<=$F$114,1,0)*F124 -> 0 | G127: 1 | H127: 1 | I127: 1 | J127: 1 | K127: 1 | L127: 1 | M127: 1 | N127: 1 | O127: 1 | P127: 1 | Q127: 1 | R127: 1 | S127: 1 | T127: 1 | U127: 1 | V127: 0 | W127: 0 | X127: 0 | Y127: 0 | Z127: 0 | AA127: 0 | AB127: 0 | AC127: 0 | AD127: 0 | AE127: 0 | AF127: 0 | AG127: 0 | AH127: 0 | AI127: 0 | AJ127: 0 | AK127: 0 | AL127: 0 | AM127: 0 | AN127: 0 | AO127: 0
B129: Tax Schedule | F129: =+F122 -> 2016 | G129: 2017 | H129: 2018 | I129: 2019 | J129: 2020 | K129: 2021 | L129: 2022 | M129: 2023 | N129: 2024 | O129: 2025 | P129: 2026 | Q129: 2027 | R129: 2028 | S129: 2029 | T129: 2030 | U129: 2031 | V129: 2032 | W129: 2033 | X129: 2034 | Y129: 2035 | Z129: 2036 | AA129: 2037 | AB129: 2038 | AC129: 2039 | AD129: 2040 | AE129: 2041 | AF129: 0 | AG129: 0 | AH129: 0 | AI129: 0 | AJ129: 0 | AK129: 0 | AL129: 0 | AM129: 0 | AN129: 0 | AO129: 0
B131: Real Property Taxes
B132: Assessed Value | F132: =$F$112*F125*F124 -> 0 | G132: 3288600 | H132: 3124170 | I132: 2959740 | J132: 2795310 | K132: 2630880 | L132: 2466450 | M132: 2302020 | N132: 2137590 | O132: 1973160 | P132: 1808730 | Q132: 1644300 | R132: 1479870 | S132: 1315440 | T132: 1151010 | U132: 986580 | V132: 822150 | W132: 657720 | X132: 657720 | Y132: 657720 | Z132: 657720 | AA132: 657720 | AB132: 657720 | AC132: 657720 | AD132: 657720 | AE132: 657720 | AF132: 0 | AG132: 0 | AH132: 0 | AI132: 0 | AJ132: 0 | AK132: 0 | AL132: 0 | AM132: 0 | AN132: 0 | AO132: 0
B133: Tax Rate | F133: =($F$119*(1-F127)+$F$120)*F124 -> 0 | G133: 0.002 | H133: 0.002 | I133: 0.002 | J133: 0.002 | K133: 0.002 | L133: 0.002 | M133: 0.002 | N133: 0.002 | O133: 0.002 | P133: 0.002 | Q133: 0.002 | R133: 0.002 | S133: 0.002 | T133: 0.002 | U133: 0.002 | V133: 0.048 | W133: 0.048 | X133: 0.048 | Y133: 0.048 | Z133: 0.048 | AA133: 0.048 | AB133: 0.048 | AC133: 0.048 | AD133: 0.048 | AE133: 0.048 | AF133: 0 | AG133: 0 | AH133: 0 | AI133: 0 | AJ133: 0 | AK133: 0 | AL133: 0 | AM133: 0 | AN133: 0 | AO133: 0
B134: Real Property Taxes | F134: =F132*-F133/1000 -> 0 | G134: -6.5772 | H134: -6.24834 | I134: -5.91948 | J134: -5.59062 | K134: -5.26176 | L134: -4.9329 | M134: -4.60404 | N134: -4.27518 | O134: -3.94632 | P134: -3.61746 | Q134: -3.2886 | R134: -2.95974 | S134: -2.63088 | T134: -2.30202 | U134: -1.97316 | V134: -39.4632 | W134: -31.57056 | X134: -31.57056 | Y134: -31.57056 | Z134: -31.57056 | AA134: -31.57056 | AB134: -31.57056 | AC134: -31.57056 | AD134: -31.57056 | AE134: -31.57056 | AF134: 0 | AG134: 0 | AH134: 0 | AI134: 0 | AJ134: 0 | AK134: 0 | AL134: 0 | AM134: 0 | AN134: 0 | AO134: 0

Sheet 1. Overview
C2: Title: | D2: Payment-In-Lieu-Of-Taxes (PILOT) Calculator
C3: Version: | D3: Version 2.0
C4: Update Notice: | D4: Calculator 2 Update: • NYSERDA MW Block and NY-Sun Locational Adder replaced with "Total NYSERDA Incentive" on Calculator Two • Inputs are no longer pre-loaded values • User now enters Value of Distributed Energy Resources (VDER) rate from Value Stack Calculator • General improvements and streamlining
C5: Author: | D5: New York State Energy and Research Development Authority (NYSERDA)
C6: For Technical Support, Please Contact: | D6: cleanenergyhelp@nyserda.ny.gov
C8: Introduction: | D8: The Payment-In-Lieu-Of-Taxes (PILOT) Calculator is a tool to assist New York State municipalities considering PILOT agreements for solar energy projects ranging in size from 1 Megawatt (MW) to 5 MW. NYSERDA developed the tool with representatives of New York State municipalities and the solar industry. The tool considers key factors affecting solar project economics and allows for a high degree of customization. The tool includes two calculators. Calculator One provides PILOT rate guidance for solar projects based on the local cost of electricity. Calculator One is most appropriate for setting PILOT rates jurisdiction-wide. Calculator Two provides PILOT rate guidance based on the minimum revenue a project needs to be financially viable. Calculator Two is most appropriate for setting a PILOT rate for an individual project. User instructions for both calculators are found on Sheet 2.

Sheet 2. User Instructions
B2: These instructions provide a road map to use Calculator One and Calculator Two. Users must enter information into each calculator. These inputs are described below and are highlighted in yellow. All other cells are calculated automatically and cannot be modified. For Calculator Two, it is important to note that the pre-loaded values are not accurate representations of all project costs and revenues. Every solar project is unique, and these cells are intended to be replaced with your own project-specific information. Once user information has been entered, the calculators produce estimated PILOT rates. User must populate all cells in yellow to produce an estimated PILOT rate.
B4: CALCULATOR ONE:
B6: General Project Assumptions
B7: • AC System Size (Alternating Current): Users may enter the size (or capacity) of the system in MW AC.
B9: Region Specific Assumptions
B10: • Active Utility Region: Users may select the utility region where a project is located. The compensation a solar project receives in that region is displayed for informational purposes.
B12: CALCULATOR TWO:
B14: Region Specific Assumptions
B15: • VDER Rate: Users may input applicable value stack compensation rate. To derive the VDER rate for your project, please reference the Value Stack Calculator below:
B16: NYSERDA Value Stack Calculator
B17: • Build Cost: Users may enter the costs associated with system and project development on a dollar-per-watt basis.
B18: • Site Lease Payment: Users may enter project-specific lease payment.
B19: • O&M Cost: Users may enter project-specific operation and maintenance costs.
B20: • CDG Annual Administrative and Subscriber Management: Users may specify costs associated with a “CDG”, meaning “Community Distributed Generation,” or “community solar”, project.
B21: • Other Annual Operating Expense: Users may enter other annual operating expenses here.
B22: • Escalators: Users may incorporate annual percentage escalation rates associated with Site Lease and various Expense items, if applicable.
B23: • Year One Specific Yield Forecast: Project insolation in kWh/kW
B25: Key Non-Regional Variables
B26: • Target Pre-Tax Investor IRR: 3.25% is assumed to be the minimum pre-tax IRR investors will accept to finance a project.
B27: • Energy Discount Required to Incentivize Customer: The default figure represents customer electricity savings of 10%, based on the selected utility retail rate.
B28: • PPA Term: This is the duration of the “Power Purchase Agreement,” which is the contract between a solar energy system owner and customers.
B29: • PPA or Utility Rate Annual Escalator: Users may select the annual percentage increase of a PPA price, if any.
B30: • Total NYSERDA Incentive: Users may enter the total incentive, if any, the project is receiving from NYSERDA.
B32: General Project Assumptions
B33: • AC System Size (Alternating Current): This value indicates system capacity and is capped at 5 MW AC for CDG projects.
B34: • Production Degradation: This value accounts for gradual degradation of a solar energy system’s production.
B36: Property Tax Assumptions
B37: • NOTE: These inputs are located at the bottom of the "Calculator Two" sheet.
B38: • Assumed Equalization Rate: Users may manipulate the equalization rate, which is a measure of assessed value to market value.
B39: • PILOT Period: Users may select the duration of the PILOT agreement. Real Property Tax Law § 487 allows jurisdictions to enter PILOT agreements up to 15 years. County industrial development agencies (IDAs) may enter longer PILOTs.
B40: • Assumed All-in County + Town + School Tax Rate: Users may enter the total effective tax rate for the jurisdiction where a project is located.
B41: • Assumed Special District Tax Rate: Users can alter the tax rate of projects located in special districts; the default rate is 0.20%.
B43: Operating the Calculators: As users enter information into the yellow cells, the calculators should produce estimated PILOT rates automatically. For this to occur Microsoft Excel's "Calculation Options" must be set to "Automatic." If "Calculation Options" is not set to "Automatic," users must press F9 after entering information into each yellow cell. Even when "Calculation Options" is set to “Automatic," users may still need to press F9 to complete the calculation in some circumstances.
B45: • Calculator One produces a range of PILOT rates, represented as a percentage of estimated project revenue (which is based on the compensation solar projects receive for the electricity they sell). The left-hand column shows dollar-per-megawatt PILOT rates while the right-hand column shows total annual PILOT amount based on project size. Rates are presented in gradient shades of green and red, indicating the estimated financial viability of a project at a given PILOT rate. Darker shades of green indicate greater financial viability while shades of red indicate the project may not be financially viable at the given PILOT rate.
B47: • Calculator Two produces a specific PILOT rate based on the economics of an individual solar project. The model takes into account all revenues and expenses of a project over its lifetime. The model subtracts operating expenses from estimated revenue streams to project pre-tax cash flows. The specific PILOT rate is based on the net present value (NPV) of the project’s unlevered cash flow that achieves a specified pre-tax internal rate of return (IRR). It is important to note that this PILOT rate does not account for federal tax credits and other financing.

Sheet 3. Calculator One
A2: x | B2: Project Assumptions - YELLOW REQUIRES INPUT | H2: Model Output - PILOT Estimates
H3: % of Compensation | I3: PILOT ($/MW) | J3: Total System PILOT
B4: General Project Assumptions | I4: =$F$32+100-MOD($F$32,100) -> 5100 | K4: =J5/$F$29 -> 0.9454949944
B5: AC System Size (Alternating Current) | E5: [MWAC] | F5: 3 | H5: 0.01 | I5: 1700 | J5: =I5*$F$5 -> 5100 | K5: 1.446051168
H6: 0.015 | I6: 2600 | J6: =I6*$F$5 -> 7800 | K6: 1.890989989
B7: Region Specific Assumptions | H7: 0.02 | I7: 3400 | J7: 10200 | K7: 2.391546162
B8: Active Utility Region | F8: NGRID | H8: 0.025 | I8: 4300 | J8: 12900 | K8: 2.836484983
B9: Year-1 Compensation for Electricity Generation | E9: [$/kWh] | F9: =VLOOKUP($F$8,$B$42:$D$49,2,FALSE) -> 0.0937 | H9: 0.03 | I9: 5100 | J9: 15300 | K9: 3.281423804
H10: 0.035 | I10: 5900 | J10: 17700 | K10: 3.781979978
H11: 0.04 | I11: 6800 | J11: 20400 | K11: 4.226918799
H12: 0.045 | I12: 7600 | J12: 22800 | K12: 4.727474972
H13: 0.05 | I13: 8500 | J13: 25500
B14: Note:
B15: *Sample PILOT rates are valid for a typical 2 MW community solar project in 2017. Sample PILOT rates represent a good-faith effort based on an independent analysis of current solar market data and an analysis of solar project compensation rates established under the preliminary value stack in the New York Public Service Commission’s March 2017 Value of Distributed Energy Resources (VDER) order. Individual project economics will vary. NYSERDA continuously assesses solar market data and may revise this Toolkit when appropriate. PILOT rates are subject to change in accordance with ongoing Public Service Commission proceedings and market conditions.
B16: **Gradient shades of green and red indicate the estimated financial viability of a project at a given PILOT rate. Darker shades of green indicate greater estimated financial viability while shades of red indicate the project may not be financially viable at the given PILOT rate.
B25: VDER Tranche | F25: Tranche 0
B26: Implied Year 1 PPA Rate | E26: [$/kWh] | F26: =F9*(1-F36)*I36 -> 0.08433
B28: Year 1 Specific Yield Forecast (production hours) | E28: [kWh/kW] | F28: =VLOOKUP($F$8,$B$42:$D$49,3,FALSE) -> 1240 | H28: VDER Status
B29: Year 1 Production | E29: [MWh] | F29: ='3. Calculator One'!$F$28*'3. Calculator One'!$F$5*1.45 -> 5394 | H29: Tranche | I29: Rate Credit
B30: Percent of Compensation | E30: [%] | F30: 0.03 | H30: Tranche 0 | I30: 1
B31: Annual PILOT Based on % of Electricity Compensation | E31: [$] | F31: =F29*F30*1000*F9 -> 15162.534 | H31: Tranche 1 | I31: 1
B32: Implied Annual PILOT Per MW | E32: [$/MWAC] | F32: =F31/F5 -> 5054.178 | H32: Tranche 2 | I32: 0.95
H33: Tranche 3 | I33: 0.9
B34: Production Degradation | E34: [%] | F34: 0.005
B36: Energy Discount Required to Incentivize Customer | F36: 0.1 | H36: =F25 -> Tranche 0 | I36: =VLOOKUP(H36,$H$30:$I$33,COLUMNS(H29:I29),0) -> 1
B38: PPA Term | E38: [years] | F38: =IF(F25="Tranche 0",20,25) -> 20
B39: Project Construction Year | F39: 2016
C42: Electric Rate | D42: Average yield
B43: Utility | C43: ($/kWh) | D43: (kWh/kWdc)
B44: CHG&E | C44: 0.134 | D44: 1300
B45: O&R | C45: 0.167 | D45: 1300
B46: NGRID | C46: 0.0937 | D46: 1240
B47: NYSEG | C47: 0.094 | D47: 1200
B48: ConEd | C48: 0.203 | D48: 1250
B49: RG&E | C49: 0.095 | D49: 1200

Sheet 4. Calculator Two
B2: Project Assumptions - YELLOW REQUIRES INPUT | J2: Model Output - PILOT Estimates
B4: Region Specific Assumptions | F4: User Input | G4: Escalator | J4: PILOT Calculation | R4: Magnitude of Effect | T4: Primary | Z4: Secondary | AC4: Minimal
B5: VDER Rate | E5: [$/kWh] | F5: 0.0918 | P5: Inputs | R5: COST SIDE | T5: System Build Cost | AC5: Lease Cost
B6: System Build Cost | E6: [$/WDC] | F6: 1.6 | P6: System Build Cost | U6: $/MW | AD6: $/MW
B7: Site Lease Payment | E7: [$/MWDC] | F7: 6000 | G7: 0.02 | P7: Lease Cost | T7: =F6 -> 1.6 | U7: =$N$11 -> 3818.949612 | AC7: =F7 -> 6000 | AD7: =$N$11 -> 3818.949612
B8: O&M Cost | E8: [$/kW DC], 2% escalator | F8: 22 | G8: 0.02 | J8: Investor NPV Pre-PILOT | M8: [$] | N8: =(F78+NPV($F$15,$G$78:$AE$78))*1000 -> 223883.9963 | S8: 0.9 | T8: =T$10*$S8 -> 2.16 | U8: -65435.37711 | AC8: =AC$10*$S8 -> 19800 | AD8: -32019.85356
B9: Insurance | E9: [$/kW] | F9: 2 | J9: Investor Target Pre-tax IRR | M9: [%] | N9: =F15 -> 0.0325 | P9: Target IRR | S9: 0.95 | T9: =T$10*$S9 -> 2.28 | U9: -80275.58998 | AC9: =AC$10*$S9 -> 20900 | AD9: -34876.56975
B10: CDG Annual Administrative and Subscriber Management Costs | E10: [$/kW] | F10: 10 | J10: Annual PILOT Budget @ Target IRR | M10: [$] | N10: =IF(G94=0,"N/A",-PMT($N$9,$F$86,$N$8)) -> 19094.74806 | P10: VDER Rate | S10: 1 | T10: 2.4 | U10: -95115.80285 | AC10: 22000 | AD10: -37733.28595
B11: Other Annual Operating Expense | E11: [$/MWDC] | F11: 0 | G11: 0.02 | J11: Implied Annual PILOT ($/MW AC) | M11: [$/MW] | N11: =$N$10/$F$24 -> 3818.949612 | P11: Yield Forecast | S11: 1.05 | T11: =T$10*$S11 -> 2.52 | U11: -109956.0157 | AC11: =AC$10*$S11 -> 23100 | AD11: -40590.00214
B12: Year 1 Specific Yield Forecast | E12: [kWh/kW] | F12: 1450 | J12: Implied Annual PILOT ($/MWh) | M12: [$/MWh] | N12: =$N$10/G56 -> 1.81142227 | S12: 1.1 | T12: =T$10*$S12 -> 2.64 | U12: -124796.2286 | AC12: =AC$10*$S12 -> 24200 | AD12: -43446.71834
J13: Post-PILOT Pre-Tax IRR | M13: [%] | N13: =IRR(F80:AE80) -> 0.0325 | P13: NYSERDA Grant
B14: Key Non-Regional Variables | F14: User Input
B15: Target Pre-Tax Investor IRR | E15: [%] | F15: 0.0325
W16: same as VDER (1 to 1) effect
B17: Energy Discount Required to Incentivize Customer | E17: [%] | F17: 0.1 | R17: REVENUE SIDE | T17: VDER Rate | W17: Yield Forecast | Z17: Target IRR | AC17: NYSERDA Grant
B18: Implied Year 1 PPA Rate | E18: [$/kWh] | F18: =F5*(1-F17) -> 0.08262 | U18: $/MW | X18: $/MW | AA18: $/MW | AD18: $/MW
B19: PPA Term | E19: [years] | F19: 25 | T19: =F5 -> 0.0918 | U19: =$N$11 -> 3818.949612 | W19: =F12 -> 1450 | X19: =$N$11 -> 3818.949612 | Z19: =F15 -> 0.0325 | AA19: =$N$11 -> 3818.949612 | AC19: =F21 -> 1232500 | AD19: =$N$11 -> 3818.949612
B20: PPA or Utility Rate Annual Escalator | E20: [%] | F20: 0.02 | S20: 0.9 | T20: =T$22*$S20 -> 0.1827 | U20: 295238.8739 | W20: =W$22*$S8 -> 1125 | X20: -62146.02472 | Z20: =Z$22*$S20 -> 0.04725 | AA20: -26302.275 | AC20: =AC$22*$S20 -> 45000 | AD20: -15963.87845
B21: Total NYSERDA Incentive | E21: [$] | F21: 1232500 | J21: =0.1149-0.094 -> 0.0209 | S21: 0.95 | T21: =T$22*$S21 -> 0.19285 | U21: 327779.1625 | W21: =W$22*$S9 -> 1187.5 | X21: -49460.45273 | Z21: =Z$22*$S21 -> 0.049875 | AA21: -31573.43903 | AC21: =AC$22*$S21 -> 47500 | AD21: -15922.23039
S22: 1 | T22: 0.203 | U22: 360319.4511 | W22: 1250 | X22: -36774.88075 | Z22: 0.0525 | AA22: -36821.89647 | AC22: 50000 | AD22: -15880.58233
B23: General Project Assumptions | F23: User Input | S23: 1.05 | T23: =T$22*$S23 -> 0.21315 | U23: 392859.7397 | W23: =W$22*$S11 -> 1312.5 | X23: -24089.30876 | Z23: =Z$22*$S23 -> 0.055125 | AA23: -42049.18973 | AC23: =AC$22*$S23 -> 52500 | AD23: -15838.93427
B24: AC System Size (Alternating Current) | E24: [MWAC] | F24: 5 | S24: 1.1 | T24: =T$22*$S24 -> 0.2233 | U24: 425400.0282 | W24: =W$22*$S12 -> 1375 | X24: -11403.73677 | Z24: =Z$22*$S24 -> 0.05775 | AA24: -47256.79532 | AC24: =AC$22*$S24 -> 55000 | AD24: -15797.28621
B25: DC System Size (Direct Current) | E25: [MWDC] | F25: =F24*1.45 -> 7.25
B26: Production Degradation | E26: [%] | F26: 0.005
B27: Project Start Year | E27: [YYYY] | F27: 2023
B30: Generation Profile & Flags
B31: Date | F31: ="12/31/"&$F$27&" " -> 12/31/2023 | G31: =EOMONTH(F31,12) -> 2024-12-31 | H31: =EOMONTH(G31,12) -> 2025-12-31 | I31: =EOMONTH(H31,12) -> 2026-12-31 | J31: =EOMONTH(I31,12) -> 2027-12-31 | K31: =EOMONTH(J31,12) -> 2028-12-31 | L31: 2029-12-31 | M31: =EOMONTH(L31,12) -> 2030-12-31 | N31: =EOMONTH(M31,12) -> 2031-12-31 | O31: =EOMONTH(N31,12) -> 2032-12-31 | P31: =EOMONTH(O31,12) -> 2033-12-31 | Q31: 2034-12-31 | R31: =EOMONTH(Q31,12) -> 2035-12-31 | S31: 2036-12-31 | T31: 2037-12-31 | U31: 2038-12-31 | V31: =EOMONTH(U31,12) -> 2039-12-31 | W31: 2040-12-31 | X31: =EOMONTH(W31,12) -> 2041-12-31 | Y31: 2042-12-31 | Z31: 2043-12-31 | AA31: 2044-12-31 | AB31: =EOMONTH(AA31,12) -> 2045-12-31 | AC31: 2046-12-31 | AD31: 2047-12-31 | AE31: 2048-12-31
A32: x
B33: Flags
B34: Construction Active | F34: =-(0-G35) -> 0 | G34: =-(0-H35) -> 0 | H34: =-(0-I35) -> 0 | I34: =-(0-J35) -> 0 | J34: =-(0-K35) -> 0 | K34: 0 | L34: =-(0-M35) -> 0 | M34: =-(0-N35) -> 0 | N34: =-(0-O35) -> 0 | O34: =-(0-P35) -> 0 | P34: 0 | Q34: =-(0-R35) -> 0 | R34: 0 | S34: 0 | T34: 0 | U34: =-(0-V35) -> 0 | V34: 0 | W34: =-(0-X35) -> 0 | X34: 0 | Y34: 0 | Z34: 0 | AA34: =-(0-AB35) -> 0 | AB34: 0 | AC34: 0 | AD34: =-(0-AE35) -> 0 | AE34: =-(0-AF35) -> 0
B35: COD Year | F35: 1 | G35: 0 | H35: 0 | I35: 0 | J35: 0 | K35: 0 | L35: 0 | M35: 0 | N35: 0 | O35: 0 | P35: 0 | Q35: 0 | R35: 0 | S35: 0 | T35: 0 | U35: 0 | V35: 0 | W35: 0 | X35: 0 | Y35: 0 | Z35: 0 | AA35: 0 | AB35: 0 | AC35: 0 | AD35: 0 | AE35: 0
B36: Project Year | F36: =IF(F38<=YEAR($F$31),0,E36+1) -> 0 | G36: =IF(G38<=YEAR($F$31),0,F36+1) -> 1 | H36: 2 | I36: 3 | J36: 4 | K36: 5 | L36: 6 | M36: 7 | N36: 8 | O36: 9 | P36: 10 | Q36: 11 | R36: 12 | S36: 13 | T36: 14 | U36: 15 | V36: 16 | W36: 17 | X36: 18 | Y36: 19 | Z36: 20 | AA36: 21 | AB36: 22 | AC36: 23 | AD36: 24 | AE36: 25
B37: Days in Year | F37: =(F31-E31)*F41 -> 0 | G37: =(G31-F31)*G41 -> 366 | H37: =(H31-G31)*H41 -> 365 | I37: =(I31-H31)*I41 -> 365 | J37: =(J31-I31)*J41 -> 365 | K37: =(K31-J31)*K41 -> 366 | L37: 365 | M37: =(M31-L31)*M41 -> 365 | N37: =(N31-M31)*N41 -> 365 | O37: =(O31-N31)*O41 -> 366 | P37: =(P31-O31)*P41 -> 365 | Q37: 365 | R37: =(R31-Q31)*R41 -> 365 | S37: 366 | T37: 365 | U37: 365 | V37: =(V31-U31)*V41 -> 365 | W37: 366 | X37: =(X31-W31)*X41 -> 365 | Y37: 365 | Z37: 365 | AA37: 366 | AB37: =(AB31-AA31)*AB41 -> 365 | AC37: 365 | AD37: 365 | AE37: 366
B38: Year | F38: =+YEAR(F31) -> 2023 | G38: 2024 | H38: 2025 | I38: 2026 | J38: 2027 | K38: 2028 | L38: 2029 | M38: 2030 | N38: 2031 | O38: 2032 | P38: 2033 | Q38: 2034 | R38: 2035 | S38: 2036 | T38: 2037 | U38: 2038 | V38: 2039 | W38: 2040 | X38: 2041 | Y38: 2042 | Z38: 2043 | AA38: 2044 | AB38: 2045 | AC38: 2046 | AD38: 2047 | AE38: 2048
B39: Hours in Year | F39: =+F37*24 -> 0 | G39: 8784 | H39: 8760 | I39: 8760 | J39: 8760 | K39: 8784 | L39: 8760 | M39: 8760 | N39: 8760 | O39: 8784 | P39: 8760 | Q39: 8760 | R39: 8760 | S39: 8784 | T39: 8760 | U39: 8760 | V39: 8760 | W39: 8784 | X39: 8760 | Y39: 8760 | Z39: 8760 | AA39: 8784 | AB39: 8760 | AC39: 8760 | AD39: 8760 | AE39: 8784
B41: Operational | E41: =SUM(F41:AE41) -> 25 | F41: =IF(AND(F36<=$F$19,F36>0),1,0) -> 0 | G41: =IF(AND(G36<=$F$19,G36>0),1,0) -> 1 | H41: 1 | I41: 1 | J41: 1 | K41: 1 | L41: 1 | M41: 1 | N41: 1 | O41: 1 | P41: 1 | Q41: 1 | R41: 1 | S41: 1 | T41: 1 | U41: 1 | V41: 1 | W41: 1 | X41: 1 | Y41: 1 | Z41: 1 | AA41: 1 | AB41: 1 | AC41: 1 | AD41: 1 | AE41: 1
B42: Total Production (MWh) | E42: =SUM(F42:AE42) -> 247821.9321 | F42: =+$F$12/8760*F39*F48*$F$25 -> 0 | G42: 10541.30137 | H42: 10459.9375 | I42: 10407.63781 | J42: 10355.59962 | K42: 10332.05127 | L42: 10252.30252 | M42: 10201.041 | N42: 10150.0358 | O42: 10126.9549 | P42: 10048.78919 | Q42: 9998.545247 | R42: 9948.55252 | S42: 9925.929784 | T42: 9849.315709 | U42: 9800.06913 | V42: 9751.068785 | W42: 9728.895121 | X42: 9653.801874 | Y42: 9605.532864 | Z42: 9557.5052 | AA42: 9535.771695 | AB42: 9462.169086 | AC42: 9414.85824 | AD42: 9367.783949 | AE42: 9346.481865
B44: NYSERDA Payment Period | E44: =SUM(F44:AE44) -> 3 | F44: =IF(F36<=3,1,0)*F41 -> 0 | G44: =IF(G36<=3,1,0)*G41 -> 1 | H44: =IF(H36<=3,1,0)*H41 -> 1 | I44: =IF(I36<=3,1,0)*I41 -> 1 | J44: =IF(J36<=3,1,0)*J41 -> 0 | K44: 0 | L44: 0 | M44: 0 | N44: 0 | O44: 0 | P44: 0 | Q44: 0 | R44: 0 | S44: 0 | T44: 0 | U44: 0 | V44: 0 | W44: 0 | X44: 0 | Y44: 0 | Z44: 0 | AA44: 0 | AB44: 0 | AC44: 0 | AD44: 0 | AE44: 0
B46: Inflation Index | F46: =(1+$G$11)^(F$36-1)*F$41 -> 0 | G46: 1 | H46: 1.02 | I46: 1.0404 | J46: 1.061208 | K46: 1.08243216 | L46: 1.104080803 | M46: 1.126162419 | N46: 1.148685668 | O46: 1.171659381 | P46: 1.195092569 | Q46: 1.21899442 | R46: 1.243374308 | S46: 1.268241795 | T46: 1.29360663 | U46: 1.319478763 | V46: 1.345868338 | W46: 1.372785705 | X46: 1.400241419 | Y46: 1.428246248 | Z46: 1.456811173 | AA46: 1.485947396 | AB46: 1.515666344 | AC46: 1.545979671 | AD46: 1.576899264 | AE46: 1.608437249
B47: PPA Index | F47: 1 | G47: =(1+$F$20)^(G36-1) -> 1 | H47: 1.02 | I47: 1.0404 | J47: 1.061208 | K47: 1.08243216 | L47: 1.104080803 | M47: 1.126162419 | N47: 1.148685668 | O47: 1.171659381 | P47: 1.195092569 | Q47: 1.21899442 | R47: 1.243374308 | S47: 1.268241795 | T47: 1.29360663 | U47: 1.319478763 | V47: 1.345868338 | W47: 1.372785705 | X47: 1.400241419 | Y47: 1.428246248 | Z47: 1.456811173 | AA47: 1.485947396 | AB47: 1.515666344 | AC47: 1.545979671 | AD47: 1.576899264 | AE47: 1.608437249
B48: Degradation Index | F48: =(1-$F$26)^(F36-1)*F41 -> 0 | G48: 1 | H48: 0.995 | I48: 0.990025 | J48: 0.985074875 | K48: 0.9801495006 | L48: 0.9752487531 | M48: 0.9703725094 | N48: 0.9655206468 | O48: 0.9606930436 | P48: 0.9558895784 | Q48: 0.9511101305 | R48: 0.9463545798 | S48: 0.9416228069 | T48: 0.9369146929 | U48: 0.9322301194 | V48: 0.9275689688 | W48: 0.922931124 | X48: 0.9183164684 | Y48: 0.913724886 | Z48: 0.9091562616 | AA48: 0.9046104803 | AB48: 0.9000874279 | AC48: 0.8955869907 | AD48: 0.8911090558 | AE48: 0.8866535105
B49: Land Lease Index | F49: =(1+$G$7)^(F$36-1)*F$41 -> 0 | G49: 1 | H49: 1.02 | I49: 1.0404 | J49: 1.061208 | K49: 1.08243216 | L49: 1.104080803 | M49: 1.126162419 | N49: 1.148685668 | O49: 1.171659381 | P49: 1.195092569 | Q49: 1.21899442 | R49: 1.243374308 | S49: 1.268241795 | T49: 1.29360663 | U49: 1.319478763 | V49: 1.345868338 | W49: 1.372785705 | X49: 1.400241419 | Y49: 1.428246248 | Z49: 1.456811173 | AA49: 1.485947396 | AB49: 1.515666344 | AC49: 1.545979671 | AD49: 1.576899264 | AE49: 1.608437249
B51: State Incentive Collected | F51: 0 | G51: =SUM($F60:F$60) -> 616.25 | H51: =SUM($F60:G$60) -> 924.375 | I51: =SUM($F60:H$60) -> 1232.5 | J51: =SUM($F60:I$60) -> 1232.5 | K51: =SUM($F60:J$60) -> 1232.5 | L51: =SUM($F60:K$60) -> 1232.5 | M51: =SUM($F60:L$60) -> 1232.5 | N51: =SUM($F60:M$60) -> 1232.5 | O51: =SUM($F60:N$60) -> 1232.5 | P51: =SUM($F60:O$60) -> 1232.5 | Q51: =SUM($F60:P$60) -> 1232.5 | R51: =SUM($F60:Q$60) -> 1232.5 | S51: =SUM($F60:R$60) -> 1232.5 | T51: =SUM($F60:S$60) -> 1232.5 | U51: =SUM($F60:T$60) -> 1232.5 | V51: =SUM($F60:U$60) -> 1232.5 | W51: =SUM($F60:V$60) -> 1232.5 | X51: =SUM($F60:W$60) -> 1232.5 | Y51: =SUM($F60:X$60) -> 1232.5 | Z51: =SUM($F60:Y$60) -> 1232.5 | AA51: =SUM($F60:Z$60) -> 1232.5 | AB51: =SUM($F60:AA$60) -> 1232.5 | AC51: =SUM($F60:AB$60) -> 1232.5 | AD51: =SUM($F60:AC$60) -> 1232.5 | AE51: =SUM($F60:AD$60) -> 1232.5
B52: State Incentive Remaining | F52: 0 | G52: =($F$21/1000-G51) -> 616.25 | H52: 308.125 | I52: 0 | J52: 0 | K52: 0 | L52: 0 | M52: 0 | N52: 0 | O52: 0 | P52: 0 | Q52: 0 | R52: 0 | S52: 0 | T52: 0 | U52: 0 | V52: 0 | W52: 0 | X52: 0 | Y52: 0 | Z52: 0 | AA52: 0 | AB52: 0 | AC52: 0 | AD52: 0 | AE52: 0
B54: Unlevered Operating Cash Flow Build
B55: ($000s) | E55: Total | F55: =F$31 -> 12/31/2023 | G55: =G$31 -> 2024-12-31 | H55: =H$31 -> 2025-12-31 | I55: =I$31 -> 2026-12-31 | J55: 2027-12-31 | K55: 2028-12-31 | L55: 2029-12-31 | M55: 2030-12-31 | N55: 2031-12-31 | O55: 2032-12-31 | P55: 2033-12-31 | Q55: 2034-12-31 | R55: 2035-12-31 | S55: 2036-12-31 | T55: 2037-12-31 | U55: 2038-12-31 | V55: 2039-12-31 | W55: 2040-12-31 | X55: 2041-12-31 | Y55: 2042-12-31 | Z55: 2043-12-31 | AA55: 2044-12-31 | AB55: 2045-12-31 | AC55: 2046-12-31 | AD55: 2047-12-31 | AE55: 2048-12-31
B56: Contracted Production (MWh) | E56: =SUM(F56:AE56) -> 247821.9321 | F56: =+F$42 -> 0 | G56: =+G$42 -> 10541.30137 | H56: =+H$42 -> 10459.9375 | I56: =+I$42 -> 10407.63781 | J56: 10355.59962 | K56: 10332.05127 | L56: 10252.30252 | M56: 10201.041 | N56: 10150.0358 | O56: 10126.9549 | P56: 10048.78919 | Q56: 9998.545247 | R56: 9948.55252 | S56: 9925.929784 | T56: 9849.315709 | U56: 9800.06913 | V56: 9751.068785 | W56: 9728.895121 | X56: 9653.801874 | Y56: 9605.532864 | Z56: 9557.5052 | AA56: 9535.771695 | AB56: 9462.169086 | AC56: 9414.85824 | AD56: 9367.783949 | AE56: 9346.481865
B57: PPA Price ($/kWh) | F57: =+$F$18*F47*(F56>0) -> 0 | G57: 0.08262 | H57: 0.0842724 | I57: 0.085957848 | J57: 0.08767700496 | K57: 0.08943054506 | L57: 0.09121915596 | M57: 0.09304353908 | N57: 0.09490440986 | O57: 0.09680249806 | P57: 0.09873854802 | Q57: 0.100713319 | R57: 0.1027275854 | S57: 0.1047821371 | T57: 0.1068777798 | U57: 0.1090153354 | V57: 0.1111956421 | W57: 0.113419555 | X57: 0.1156879461 | Y57: 0.118001705 | Z57: 0.1203617391 | AA57: 0.1227689739 | AB57: 0.1252243533 | AC57: 0.1277288404 | AD57: 0.1302834172 | AE57: 0.1328890856
B58: Contracted Energy Revenues (PPA) | E58: =SUM(F58:AE58) -> 26098.22093 | F58: =+F57*F56 -> 0 | G58: =+G57*G56 -> 870.9223192 | H58: 881.484037 | I58: 894.6181491 | J58: 907.9479595 | K58: 924.000977 | L58: 935.2063823 | M58: 949.1409574 | N58: 963.2831576 | O58: 980.3145317 | P58: 992.2028542 | Q58: 1006.986677 | R58: 1021.990778 | S58: 1040.060135 | T58: 1052.672996 | U58: 1068.357823 | V58: 1084.276355 | W58: 1103.446955 | X58: 1116.82851 | Y58: 1133.469255 | Z58: 1150.357947 | AA58: 1170.696906 | AB58: 1184.894005 | AC58: 1202.548926 | AD58: 1220.466905 | AE58: 1242.045428
F59: `
B60: Upfront NYSERDA Incentive | E60: =SUM(F60:AE60) -> 1232.5 | F60: =$F$21/1000/2 -> 616.25 | G60: =$F$21/1000/4 -> 308.125 | H60: =$F$21/1000/4 -> 308.125 | I60: 0 | J60: 0 | K60: 0 | L60: 0 | M60: 0 | N60: 0 | O60: 0 | P60: 0 | Q60: 0 | R60: 0 | S60: 0 | T60: 0 | U60: 0 | V60: 0 | W60: 0 | X60: 0 | Y60: 0 | Z60: 0 | AA60: 0 | AB60: 0 | AC60: 0 | AD60: 0 | AE60: 0
B62: Total Revenues | E62: =SUM(F62:AE62) -> 27330.72093 | F62: =+F58+F60 -> 616.25 | G62: =+G58+G60 -> 1179.047319 | H62: =+H58+H60 -> 1189.609037 | I62: =+I58+I60 -> 894.6181491 | J62: 907.9479595 | K62: 924.000977 | L62: 935.2063823 | M62: 949.1409574 | N62: 963.2831576 | O62: 980.3145317 | P62: 992.2028542 | Q62: 1006.986677 | R62: 1021.990778 | S62: 1040.060135 | T62: 1052.672996 | U62: 1068.357823 | V62: 1084.276355 | W62: 1103.446955 | X62: 1116.82851 | Y62: 1133.469255 | Z62: 1150.357947 | AA62: 1170.696906 | AB62: 1184.894005 | AC62: 1202.548926 | AD62: 1220.466905 | AE62: 1242.045428
B64: Land Lease | E64: =SUM(F64:AE64) -> -1393.318038 | F64: =-$F$7*$F$25/1000*F49 -> 0 | G64: =-$F$7*$F$25/1000*G49 -> -43.5 | H64: -44.37 | I64: -45.2574 | J64: -46.162548 | K64: -47.08579896 | L64: -48.02751494 | M64: -48.98806524 | N64: -49.96782654 | O64: -50.96718307 | P64: -51.98652674 | Q64: -53.02625727 | R64: -54.08678242 | S64: -55.16851806 | T64: -56.27188842 | U64: -57.39732619 | V64: -58.54527272 | W64: -59.71617817 | X64: -60.91050173 | Y64: -62.12871177 | Z64: -63.371286 | AA64: -64.63871173 | AB64: -65.93148596 | AC64: -67.25011568 | AD64: -68.59511799 | AE64: -69.96702035
B65: Other Annual Operating Expenses | E65: 0 | F65: =-$F$11*$F$25*F46 -> 0 | G65: 0 | H65: 0 | I65: 0 | J65: 0 | K65: 0 | L65: 0 | M65: 0 | N65: 0 | O65: 0 | P65: 0 | Q65: 0 | R65: 0 | S65: 0 | T65: 0 | U65: 0 | V65: 0 | W65: 0 | X65: 0 | Y65: 0 | Z65: 0 | AA65: 0 | AB65: 0 | AC65: 0 | AD65: 0 | AE65: 0
B66: Real Property Taxes | E66: -1.143710158 | F66: =F103/1000 -> 0 | G66: =G103/1000 -> -0.02241663277 | H66: =H103/1000 -> -0.02069450721 | I66: -0.01901439129 | J66: -0.0179306895 | K66: -0.01686507479 | L66: -0.0158129847 | M66: -0.01478276822 | N66: -0.01376986781 | O66: -0.0127740314 | P66: -0.01179099243 | Q66: -0.01188163256 | R66: -0.01093550103 | S66: -0.01000545055 | T66: -0.009087491761 | U66: -0.008188887977 | V66: -0.1753357198 | W66: -0.1545014695 | X66: -0.1339410458 | Y66: -0.1138170549 | Z66: -0.09404010706 | AA66: -0.07460489431 | AB66: -0.07320594346 | AC66: -0.05443852726 | AD66: -0.03599729713 | AE66: -0.0178771945
B67: Annual O&M | E67: -5108.832806 | F67: 0 | G67: =-F8*F25 -> -159.5 | H67: =G67*(1+$G$8) -> -162.69 | I67: =H67*(1+$G$8) -> -165.9438 | J67: -169.262676 | K67: -172.6479295 | L67: -176.1008881 | M67: -179.6229059 | N67: -183.215364 | O67: -186.8796713 | P67: -190.6172647 | Q67: -194.42961 | R67: -198.3182022 | S67: -202.2845662 | T67: -206.3302576 | U67: -210.4568627 | V67: -214.666 | W67: -218.95932 | X67: -223.3385064 | Y67: -227.8052765 | Z67: -232.361382 | AA67: -237.0086097 | AB67: -241.7487819 | AC67: -246.5837575 | AD67: -251.5154326 | AE67: -256.5457413
B68: Insurance | E68: -362.5 | F68: =IF(F41=1,#REF!*-$F$25,0) -> 0 | G68: =IF(G41=1,-$F$9*$F$25,0) -> -14.5 | H68: -14.5 | I68: -14.5 | J68: -14.5 | K68: -14.5 | L68: -14.5 | M68: -14.5 | N68: -14.5 | O68: -14.5 | P68: -14.5 | Q68: -14.5 | R68: -14.5 | S68: -14.5 | T68: -14.5 | U68: -14.5 | V68: -14.5 | W68: -14.5 | X68: -14.5 | Y68: -14.5 | Z68: -14.5 | AA68: -14.5 | AB68: -14.5 | AC68: -14.5 | AD68: -14.5 | AE68: -14.5
B69: CDG Annual Administrative and Subscriber Management Costs | E69: =SUM(F69:AE69) -> -1812.5 | F69: =IF(F41=1,$F$25*-#REF!,0) -> 0 | G69: =IF(G41=1,-$F$10*$F$25,0) -> -72.5 | H69: =IF(H41=1,-$F$10*$F$25,0) -> -72.5 | I69: -72.5 | J69: -72.5 | K69: -72.5 | L69: -72.5 | M69: -72.5 | N69: -72.5 | O69: -72.5 | P69: -72.5 | Q69: -72.5 | R69: -72.5 | S69: -72.5 | T69: -72.5 | U69: -72.5 | V69: -72.5 | W69: -72.5 | X69: -72.5 | Y69: -72.5 | Z69: -72.5 | AA69: -72.5 | AB69: -72.5 | AC69: -72.5 | AD69: -72.5 | AE69: -72.5
B70: Inverter Replacement | E70: =SUM(F70:AE70) -> -1450 | F70: 0 | G70: 0 | H70: 0 | I70: 0 | J70: 0 | K70: 0 | L70: 0 | M70: 0 | N70: 0 | O70: 0 | P70: =-0.1*F25*1000 -> -725 | Q70: 0 | R70: 0 | S70: 0 | T70: 0 | U70: 0 | V70: 0 | W70: 0 | X70: 0 | Y70: 0 | Z70: 0 | AA70: =IF(AA41=1,(-0.1*1000*F25),0) -> -725
B71: Total OpEx | E71: =SUM(F71:AE71) -> -10128.29455 | F71: =SUM(F64:F70) -> 0 | G71: -290.0224166 | H71: -294.0806945 | I71: -298.2202144 | J71: -302.4431547 | K71: -306.7505936 | L71: -311.144216 | M71: -315.6257539 | N71: -320.1969604 | O71: -324.8596284 | P71: -1054.615582 | Q71: -334.4677489 | R71: -339.4159201 | S71: -344.4630897 | T71: -349.6112335 | U71: -354.8623778 | V71: -360.3866084 | W71: -365.8299996 | X71: -371.3829491 | Y71: -377.0478053 | Z71: -382.8267081 | AA71: -1113.721926 | AB71: -394.7534738 | AC71: -400.8883117 | AD71: -407.1465479 | AE71: -413.5306388
B73: EBITDA | E73: =SUM(F73:AE73) -> 17202.42637 | F73: =+F71+F62 -> 616.25 | G73: =+G71+G62 -> 889.0249025 | H73: 895.5283425 | I73: 596.3979347 | J73: 605.5048049 | K73: 617.2503834 | L73: 624.0621662 | M73: 633.5152035 | N73: 643.0861972 | O73: 655.4549033 | P73: -62.4127282 | Q73: 672.5189279 | R73: 682.5748581 | S73: 695.5970454 | T73: 703.0617621 | U73: 713.4954454 | V73: 723.8897464 | W73: 737.6169553 | X73: 745.4455612 | Y73: 756.4214499 | Z73: 767.5312389 | AA73: 56.97497963 | AB73: 790.1405311 | AC73: 801.6606138 | AD73: 813.3203566 | AE73: 828.5147893
B74: EBITDA Margin | F74: =IFERROR(F73/F62*100,0) -> 100 | G74: 75.40196972 | H74: 75.27921482 | I74: 66.66508335 | J74: 66.68937338 | K74: 66.80191892 | L74: 66.72988744 | M74: 66.74616648 | N74: 66.75982987 | O74: 66.86169409 | P74: -6.290319357 | Q74: 66.78528558 | R74: 66.78874924 | S74: 66.88046411 | T74: 66.78823956 | U74: 66.7843142 | V74: 66.76247648 | W74: 66.8466166 | X74: 66.74664501 | Y74: 66.7350655 | Z74: 66.72107937 | AA74: 4.866757514 | AB74: 66.68449058 | AC74: 66.66345101 | AD74: 66.64009926 | AE74: 66.70567521
B77: All-in Cost Basis | E77: =SUM(F77:AE77) -> -11600 | F77: =-$F$6*F35*$F$25*1000 -> -11600 | G77: 0 | H77: 0 | I77: 0 | J77: 0 | K77: 0 | L77: 0 | M77: 0 | N77: 0 | O77: 0 | P77: 0 | Q77: 0 | R77: 0 | S77: 0 | T77: 0 | U77: 0 | V77: 0 | W77: 0 | X77: 0 | Y77: 0 | Z77: 0 | AA77: 0 | AB77: 0 | AC77: 0 | AD77: 0 | AE77: 0
B78: Pre-Tax Investor Cash Flow (Pre-PILOT) | E78: =SUM(F78:AE78) -> 5602.426371 | F78: =SUM(F77:F77,F73) -> -10983.75 | G78: =SUM(G77:G77,G73) -> 889.0249025 | H78: =SUM(H77:H77,H73) -> 895.5283425 | I78: 596.3979347 | J78: 605.5048049 | K78: 617.2503834 | L78: 624.0621662 | M78: 633.5152035 | N78: 643.0861972 | O78: 655.4549033 | P78: -62.4127282 | Q78: 672.5189279 | R78: 682.5748581 | S78: 695.5970454 | T78: 703.0617621 | U78: 713.4954454 | V78: 723.8897464 | W78: 737.6169553 | X78: 745.4455612 | Y78: 756.4214499 | Z78: 767.5312389 | AA78: 56.97497963 | AB78: 790.1405311 | AC78: 801.6606138 | AD78: 813.3203566 | AE78: 828.5147893
B79: PILOT Payments | E79: =SUM(F79:AE79) -> -286.4212209 | F79: =-$N$10/1000*F96 -> 0 | G79: =-$N$10/1000*G96 -> -19.09474806 | H79: -19.09474806 | I79: -19.09474806 | J79: -19.09474806 | K79: -19.09474806 | L79: -19.09474806 | M79: -19.09474806 | N79: -19.09474806 | O79: -19.09474806 | P79: -19.09474806 | Q79: -19.09474806 | R79: -19.09474806 | S79: -19.09474806 | T79: -19.09474806 | U79: -19.09474806 | V79: 0 | W79: 0 | X79: 0 | Y79: 0 | Z79: 0 | AA79: 0 | AB79: 0 | AC79: 0 | AD79: 0 | AE79: 0
B80: Pre-Tax Investor Cash Flow (Post-PILOT) | E80: =SUM(F80:AE80) -> 5316.00515 | F80: =SUM(F78:F79) -> -10983.75 | G80: =SUM(G78:G79) -> 869.9301545 | H80: 876.4335944 | I80: 577.3031867 | J80: 586.4100568 | K80: 598.1556354 | L80: 604.9674182 | M80: 614.4204554 | N80: 623.9914492 | O80: 636.3601552 | P80: -81.50747626 | Q80: 653.4241798 | R80: 663.4801101 | S80: 676.5022974 | T80: 683.9670141 | U80: 694.4006974 | V80: 723.8897464 | W80: 737.6169553 | X80: 745.4455612 | Y80: 756.4214499 | Z80: 767.5312389 | AA80: 56.97497963 | AB80: 790.1405311 | AC80: 801.6606138 | AD80: 813.3203566 | AE80: 828.5147893
B82: Property Taxes
B84: Property Tax Assumptions | F84: User Input
B85: Assumed Equalization Rate | E85: [%] | F85: 1
B86: PILOT Period | E86: [Years] | F86: 15
B87: Assumed All-in County+Town+School Tax Rate | E87: [%] | F87: 0.046
B88: Assumed Special District Tax Rate | E88: [%] | F88: 0.002
B91: Year | F91: =+'4. Calculator Two'!F38 -> 2023 | G91: =+'4. Calculator Two'!G38 -> 2024 | H91: =+'4. Calculator Two'!H38 -> 2025 | I91: =+'4. Calculator Two'!I38 -> 2026 | J91: =+'4. Calculator Two'!J38 -> 2027 | K91: =+'4. Calculator Two'!K38 -> 2028 | L91: =+'4. Calculator Two'!L38 -> 2029 | M91: =+'4. Calculator Two'!M38 -> 2030 | N91: =+'4. Calculator Two'!N38 -> 2031 | O91: =+'4. Calculator Two'!O38 -> 2032 | P91: =+'4. Calculator Two'!P38 -> 2033 | Q91: =+'4. Calculator Two'!Q38 -> 2034 | R91: =+'4. Calculator Two'!R38 -> 2035 | S91: =+'4. Calculator Two'!S38 -> 2036 | T91: =+'4. Calculator Two'!T38 -> 2037 | U91: =+'4. Calculator Two'!U38 -> 2038 | V91: =+'4. Calculator Two'!V38 -> 2039 | W91: =+'4. Calculator Two'!W38 -> 2040 | X91: =+'4. Calculator Two'!X38 -> 2041 | Y91: =+'4. Calculator Two'!Y38 -> 2042 | Z91: =+'4. Calculator Two'!Z38 -> 2043 | AA91: =+'4. Calculator Two'!AA38 -> 2044 | AB91: =+'4. Calculator Two'!AB38 -> 2045 | AC91: =+'4. Calculator Two'!AC38 -> 2046 | AD91: =+'4. Calculator Two'!AD38 -> 2047 | AE91: =+'4. Calculator Two'!AE38 -> 2048
B92: Project Year | F92: =+'4. Calculator Two'!F36 -> 0 | G92: =+'4. Calculator Two'!G36 -> 1 | H92: =+'4. Calculator Two'!H36 -> 2 | I92: =+'4. Calculator Two'!I36 -> 3 | J92: =+'4. Calculator Two'!J36 -> 4 | K92: =+'4. Calculator Two'!K36 -> 5 | L92: =+'4. Calculator Two'!L36 -> 6 | M92: =+'4. Calculator Two'!M36 -> 7 | N92: =+'4. Calculator Two'!N36 -> 8 | O92: =+'4. Calculator Two'!O36 -> 9 | P92: =+'4. Calculator Two'!P36 -> 10 | Q92: =+'4. Calculator Two'!Q36 -> 11 | R92: =+'4. Calculator Two'!R36 -> 12 | S92: =+'4. Calculator Two'!S36 -> 13 | T92: =+'4. Calculator Two'!T36 -> 14 | U92: =+'4. Calculator Two'!U36 -> 15 | V92: =+'4. Calculator Two'!V36 -> 16 | W92: =+'4. Calculator Two'!W36 -> 17 | X92: =+'4. Calculator Two'!X36 -> 18 | Y92: =+'4. Calculator Two'!Y36 -> 19 | Z92: =+'4. Calculator Two'!Z36 -> 20 | AA92: =+'4. Calculator Two'!AA36 -> 21 | AB92: =+'4. Calculator Two'!AB36 -> 22 | AC92: =+'4. Calculator Two'!AC36 -> 23 | AD92: =+'4. Calculator Two'!AD36 -> 24 | AE92: =+'4. Calculator Two'!AE36 -> 25
B93: Project Operational | F93: =+'4. Calculator Two'!F41 -> 0 | G93: =+'4. Calculator Two'!G41 -> 1 | H93: =+'4. Calculator Two'!H41 -> 1 | I93: =+'4. Calculator Two'!I41 -> 1 | J93: =+'4. Calculator Two'!J41 -> 1 | K93: =+'4. Calculator Two'!K41 -> 1 | L93: =+'4. Calculator Two'!L41 -> 1 | M93: =+'4. Calculator Two'!M41 -> 1 | N93: =+'4. Calculator Two'!N41 -> 1 | O93: =+'4. Calculator Two'!O41 -> 1 | P93: =+'4. Calculator Two'!P41 -> 1 | Q93: =+'4. Calculator Two'!Q41 -> 1 | R93: =+'4. Calculator Two'!R41 -> 1 | S93: =+'4. Calculator Two'!S41 -> 1 | T93: =+'4. Calculator Two'!T41 -> 1 | U93: =+'4. Calculator Two'!U41 -> 1 | V93: =+'4. Calculator Two'!V41 -> 1 | W93: =+'4. Calculator Two'!W41 -> 1 | X93: =+'4. Calculator Two'!X41 -> 1 | Y93: =+'4. Calculator Two'!Y41 -> 1 | Z93: =+'4. Calculator Two'!Z41 -> 1 | AA93: =+'4. Calculator Two'!AA41 -> 1 | AB93: =+'4. Calculator Two'!AB41 -> 1 | AC93: =+'4. Calculator Two'!AC41 -> 1 | AD93: =+'4. Calculator Two'!AD41 -> 1 | AE93: =+'4. Calculator Two'!AE41 -> 1
B94: Asset Value Based on Remaining Cashflows Until End of Project Term | F94: 0 | G94: =G107 -> 11208.31638 | H94: =H107 -> 10347.2536 | I94: 9507.195646 | J94: 8965.34475 | K94: 8432.537393 | L94: 7906.49235 | M94: 7391.384111 | N94: 6884.933903 | O94: 6387.015699 | P94: 5895.496216 | Q94: 5940.816279 | R94: 5467.750513 | S94: 5002.725277 | T94: 4543.74588 | U94: 4094.443988 | V94: 3652.827495 | W94: 3218.780615 | X94: 2790.438454 | Y94: 2371.188645 | Z94: 1959.168897 | AA94: 1554.268631 | AB94: 1525.123822 | AC94: 1134.135985 | AD94: 749.9436902 | AE94: 372.441552
B96: PILOT Active | F96: =IF(F92<=$F$86,1,0)*F93 -> 0 | G96: 1 | H96: 1 | I96: 1 | J96: 1 | K96: 1 | L96: 1 | M96: 1 | N96: 1 | O96: 1 | P96: 1 | Q96: 1 | R96: 1 | S96: 1 | T96: 1 | U96: 1 | V96: 0 | W96: 0 | X96: 0 | Y96: 0 | Z96: 0 | AA96: 0 | AB96: 0 | AC96: 0 | AD96: 0 | AE96: 0
B98: Tax Schedule | F98: =+F91 -> 2023 | G98: 2024 | H98: 2025 | I98: 2026 | J98: 2027 | K98: 2028 | L98: 2029 | M98: 2030 | N98: 2031 | O98: 2032 | P98: 2033 | Q98: 2034 | R98: 2035 | S98: 2036 | T98: 2037 | U98: 2038 | V98: 2039 | W98: 2040 | X98: 2041 | Y98: 2042 | Z98: 2043 | AA98: 2044 | AB98: 2045 | AC98: 2046 | AD98: 2047 | AE98: 2048
B100: Real Property Taxes
B101: Assessed Value | F101: =F94 -> 0 | G101: =G94 -> 11208.31638 | H101: =H94 -> 10347.2536 | I101: 9507.195646 | J101: 8965.34475 | K101: 8432.537393 | L101: 7906.49235 | M101: 7391.384111 | N101: 6884.933903 | O101: 6387.015699 | P101: 5895.496216 | Q101: 5940.816279 | R101: 5467.750513 | S101: 5002.725277 | T101: 4543.74588 | U101: 4094.443988 | V101: 3652.827495 | W101: 3218.780615 | X101: 2790.438454 | Y101: 2371.188645 | Z101: 1959.168897 | AA101: 1554.268631 | AB101: 1525.123822 | AC101: 1134.135985 | AD101: 749.9436902 | AE101: 372.441552
B102: Tax Rate | F102: =($F$87*(1-F96)+$F$88)*F93 -> 0 | G102: =($F$87*(1-G96)+$F$88)*G93 -> 0.002 | H102: 0.002 | I102: 0.002 | J102: 0.002 | K102: 0.002 | L102: 0.002 | M102: 0.002 | N102: 0.002 | O102: 0.002 | P102: 0.002 | Q102: 0.002 | R102: 0.002 | S102: 0.002 | T102: 0.002 | U102: 0.002 | V102: =($F$87*(1-V96)+$F$88)*V93 -> 0.048 | W102: 0.048 | X102: 0.048 | Y102: 0.048 | Z102: 0.048 | AA102: 0.048 | AB102: 0.048 | AC102: 0.048 | AD102: 0.048 | AE102: 0.048
B103: Real Property Taxes | F103: =F101*-F102/1000 -> 0 | G103: =G101*-G102*$F$85 -> -22.41663277 | H103: =H101*-H102*$F$85 -> -20.69450721 | I103: =I101*-I102*$F$85 -> -19.01439129 | J103: -17.9306895 | K103: -16.86507479 | L103: -15.8129847 | M103: -14.78276822 | N103: -13.76986781 | O103: -12.7740314 | P103: -11.79099243 | Q103: -11.88163256 | R103: -10.93550103 | S103: -10.00545055 | T103: -9.087491761 | U103: -8.188887977 | V103: -175.3357198 | W103: -154.5014695 | X103: -133.9410458 | Y103: -113.8170549 | Z103: -94.04010706 | AA103: -74.60489431 | AB103: -73.20594346 | AC103: -54.43852726 | AD103: -35.99729713 | AE103: -17.8771945
F105: EBITA without RPS | G105: =G62+G64+G65+G67+G68+G69+G70 -> 889.0473192 | H105: =H62+H64+H65+H67+H68+H69+H70 -> 895.549037 | I105: 596.4169491 | J105: 605.5227355 | K105: 617.2672485 | L105: 624.0779792 | M105: 633.5299863 | N105: 643.0999671 | O105: 655.4676773 | P105: -62.40093721 | Q105: 672.5308095 | R105: 682.5857936 | S105: 695.6070509 | T105: 703.0708496 | U105: 713.5036343 | V105: 724.0650821 | W105: 737.7714567 | X105: 745.5795023 | Y105: 756.5352669 | Z105: 767.625279 | AA105: 57.04958452 | AB105: 790.213737 | AC105: 801.7150524 | AD105: 813.3563539 | AE105: 828.5326665
F106: in NPV | G106: =G105/((1+Pre_Tax_IRR)^G36) -> 861.0627789 | H106: 840.0579585 | I106: 541.850896 | J106: 532.807357 | K106: 526.0450433 | L106: 515.1082394 | M106: 506.4502075 | N106: 497.9182043 | O106: 491.5194833 | P106: -45.32006345 | Q106: 473.0657662 | R106: 465.0252354 | S106: 458.9793972 | T106: 449.3018918 | U106: 441.6164931 | V106: 434.0468802 | W106: 428.3421611 | X106: 419.2498094 | Y106: 412.0197477 | Z106: 404.9002656 | AA106: 29.14480937 | AB106: 390.9878375 | AC106: 384.1922944 | AD106: 377.5021382 | AE106: 372.441552
F107: Asset value on remaining cashflows | G107: =SUM(G106:$AE$106) -> 11208.31638 | H107: =SUM(H106:$AE$106) -> 10347.2536 | I107: =SUM(I106:$AE$106) -> 9507.195646 | J107: =SUM(J106:$AE$106) -> 8965.34475 | K107: =SUM(K106:$AE$106) -> 8432.537393 | L107: =SUM(L106:$AE$106) -> 7906.49235 | M107: =SUM(M106:$AE$106) -> 7391.384111 | N107: =SUM(N106:$AE$106) -> 6884.933903 | O107: =SUM(O106:$AE$106) -> 6387.015699 | P107: =SUM(P106:$AE$106) -> 5895.496216 | Q107: =SUM(Q106:$AE$106) -> 5940.816279 | R107: =SUM(R106:$AE$106) -> 5467.750513 | S107: =SUM(S106:$AE$106) -> 5002.725277 | T107: =SUM(T106:$AE$106) -> 4543.74588 | U107: =SUM(U106:$AE$106) -> 4094.443988 | V107: =SUM(V106:$AE$106) -> 3652.827495 | W107: =SUM(W106:$AE$106) -> 3218.780615 | X107: =SUM(X106:$AE$106) -> 2790.438454 | Y107: =SUM(Y106:$AE$106) -> 2371.188645 | Z107: =SUM(Z106:$AE$106) -> 1959.168897 | AA107: =SUM(AA106:$AE$106) -> 1554.268631 | AB107: =SUM(AB106:$AE$106) -> 1525.123822 | AC107: =SUM(AC106:$AE$106) -> 1134.135985 | AD107: =SUM(AD106:$AE$106) -> 749.9436902 | AE107: =SUM(AE106:$AE$106) -> 372.441552

Sheet 4. Calculator Two (Old) (hidden)
A2: x | B2: Project Assumptions - YELLOW REQUIRES INPUT | J2: Model Output - PILOT Estimates
B4: Region Specific Assumptions | F4: Default Value | J4: PILOT Calculation | T4: PILOT Sensitivity Analysis | Y4: MW Block Assumption
B5: Active Utility Region | F5: CHG&E | Y5: Block | Z5: PBI Rate | AB5: Locational Adder Logic Table | AE5: Pilot Rate
B6: CDG? | F6: Yes | T6: PILOT Sensitivity ($/MWh) / (% of Retail Rate) | Y6: Block 1 ConEd | Z6: 0.179 | AB6: Yes | AC6: 1.2 | AE6: 0.01
B7: Current Retail Rate | E7: [$/kWh] | F7: =VLOOKUP($F$5,$K$35:$O$42,COLUMNS($K$36:$L$36),0) -> 0.134 | Y7: Block 2 ConEd | Z7: 0.173 | AB7: No | AC7: 1 | AE7: 0.015
B8: System Build Cost | E8: [$/WDC] | F8: =VLOOKUP($F$5,$K$35:$O$42,COLUMNS($K$36:$O$36),0)+AD23 -> 1.9 | J8: Investor NPV Pre-PILOT | M8: [$] | N8: =(F99+NPV($F$13,$G$99:$AE$99))*1000 -> 105562.5949 | T8: Build Cost | U8: Customer Energy Discount | Y8: Block 3 ConEd | Z8: 0.168 | AE8: 0.02
B9: Site Lease Payment | E9: [$/MWDC] | F9: =VLOOKUP($F$5,$K$35:$O$42,COLUMNS($K$36:$M$36),0) -> 10000 | J9: Investor Target Pre-tax IRR | M9: [%] | N9: =F13 -> 0.04 | T9: ($/W) Delta | U9: (%) | Y9: Block 4 ConEd | Z9: 0.162 | AE9: 0.025
B10: Year 1 Specific Yield Forecast | E10: [kWh/kW] | F10: =VLOOKUP($F$5,$K$35:$O$42,COLUMNS($K$36:$N$36),0) -> 1280 | J10: Annual PILOT Budget @ Target IRR | M10: [$] | N10: =IF(G115=0,"N/A",-PMT($N$9,$F$107,$N$8)) -> N/A | T10: =N12 ->  | U10: 0.2 | V10: 0.15 | W10: 0.1 | Y10: Block 5 ConEd | Z10: 0.156 | AE10: 0.03
J11: Implied Annual PILOT ($/MW AC) | M11: [$/MW] | N11: =$N$10/$F$27 ->  | T11: 0.1 | Y11: Block 6 ConEd | Z11: 0.145
B12: Key Non-Regional Variables | F12: Default Value | J12: Implied Annual PILOT ($/MWh) | M12: [$/MWh] | N12: =$N$10/G73 ->  | T12: 0 | Y12: Block 7 ConEd | Z12: 0.131
B13: Target Pre-Tax Investor IRR | E13: [%] | F13: 0.04 | J13: Post-PILOT Pre-Tax IRR | M13: [%] | N13: =IRR(F101:AE101) ->  | T13: -0.1 | Y13: Block 8 ConEd | Z13: 0.111 | AB13: VDER Status
Y14: Block 9 ConEd | Z14: 0.094 | AB14: Tranche | AC14: Rate Credit
B15: Energy Discount Required to Incentivize Customer | E15: [%] | F15: 0.1 | Y15: Block 10 ConEd | Z15: 0.074 | AB15: Tranche 0 | AC15: 1
B16: VDER Tranche | F16: Tranche 0 | S16: PILOT Results | Y16: Block 11 ConEd | Z16: 0.057 | AB16: Tranche 1 | AC16: 1
B17: Implied Year 1 PPA Rate | E17: [$/kWh] | F17: =F7*(1-F15)*AC21 -> 0.1206 | T17: IRR Based | U17: IRR Based | V17: PILOT as % | W17: PILOT as % | Y17: Block 12 ConEd | Z17: 0.037 | AB17: Tranche 2 | AC17: 0.95
B18: PPA Term | E18: [years] | F18: =IF(F16="Tranche 0",20,25) -> 20 | T18: PILOT Rate | U18: PILOT Rate | V18: of Retail Rate | W18: of PPA Rate | Y18: Block 13 ConEd | Z18: 0.02 | AB18: Tranche 3 | AC18: 0.9
B19: PPA or Utility Rate Annual Escalator | E19: [%] | F19: 0.01 | S19: Utility | T19: ($/MW) | U19: ($/MWh) | V19: (%) | W19: (%) | Y19: Block 1 ROS | Z19: 0.114
B20: NYSERDA Volumetric MW Block | F20: Block 3 ROS | S20: CHG&E | T20: =IF($S20=$F$5,IF($N$11<0,"n/a",$N$11),T20) ->  | U20: =IF($S20=$F$5,IF($N$12<0,"n/a",$N$12),U20) ->  | V20: =IFERROR(U20/(L37*1000),"n/a") -> n/a | W20: =IFERROR(U20/(L37*$AC$21*(1-$F$15)*1000),"n/a") -> n/a | Y20: Block 2 ROS | Z20: 0.114
B21: NYSERDA MW Block Rate | E21: [$/kWh] | F21: =VLOOKUP(F20,Y6:Z29,2,0) -> 0.111 | S21: O&R | V21: n/a | W21: n/a | Y21: Block 3 ROS | Z21: 0.111 | AB21: =F16 -> Tranche 0 | AC21: =VLOOKUP(AB21,$AB$14:$AC$19,COLUMNS($AB$14:$AC$14),0) -> 1
B22: NY-Sun Locatioal Adder? | F22: No | S22: NGRID | V22: n/a | W22: n/a | Y22: Block 4 ROS | Z22: 0.111
B23: Multiplier for Locational Adder | F23: =IF(F22="Yes",1.2,1) -> 1 | S23: NYSEG | V23: n/a | W23: n/a | Y23: Block 5 ROS | Z23: 0.105 | AB23: Active EPC Cost Adder | AD23: =IF(F6="No",-0.2,0) -> 0
B24: Total NYSERDA Grant | E24: [$] | F24: =+F21*F28*0.134*8.76*3*1000000*F23 -> 1133577.288 | K24: Regional Inputs-Default Values | S24: ConEd | V24: n/a | W24: n/a | Y24: Block 6 ROS | Z24: 0.099 | AB24: (EPC $0.20/Watt lower for non-CDG)
L25: Current Retail Rate | M25: Lease Cost | N25: Average yield | O25: All-in Cost | P25: O&M Cost | Q25: Insurance | R25: CDG Annual Administrative and Subscriber Management Costs | S25: RG&E | T25: =IF($S25=$F$5,IF($N$11<0,"n/a",$N$11),T25) ->  | U25: =IF($S25=$F$5,IF($N$12<0,"n/a",$N$12),U25) ->  | V25: =IFERROR(U25/(L42*1000),"n/a") -> n/a | W25: =IFERROR(U25/(L42*$AC$21*(1-$F$15)*1000),"n/a") -> n/a | Y25: Block 7 ROS | Z25: 0.094
B26: General Project Assumptions | F26: Default Value | K26: Utility | L26: ($/kWh) | M26: ($/MW) | N26: (kWh/kWdc) | O26: ($/W) | P26: ($/kW), 2% escalator | Q26: ($/kW) | R26: ($/kW) | Y26: Block 8 ROS | Z26: 0.08
B27: AC System Size (Alternating Current) | E27: [MWAC] | F27: 2 | K27: CHG&E | L27: 0.134 | M27: 10000 | N27: 1280 | O27: 1.9 | P27: 10 | Q27: 2 | R27: 15 | Y27: Block 9 ROS | Z27: 0.062
B28: DC System Size (Direct Current) | E28: [MWDC] | F28: =F27*1.45 -> 2.9 | K28: O&R | L28: 0.167 | M28: 12500 | N28: 1300 | O28: 2.2 | P28: =P27 -> 10 | Q28: 2 | R28: 15 | Y28: Block 10 ROS | Z28: 0.045
K29: NGRID | L29: 0.0937 | M29: 5000 | N29: 1250 | O29: 1.5 | P29: 10 | Q29: 2 | R29: 15 | Y29: Block 11 ROS | Z29: 0.026
B30: Production Degradation | E30: [%] | F30: 0.005 | K30: NYSEG | L30: 0.094 | M30: 3000 | N30: 1225 | O30: 1.5 | P30: 10 | Q30: 2 | R30: 15
B31: Inflation | E31: [%] | F31: 0.02 | K31: ConEd | L31: 0.203 | M31: 20000 | N31: 1250 | O31: 2.4 | P31: 10 | Q31: 2 | R31: 15
B32: Site Lease Pmt Escalator | E32: [%] | F32: 0.02 | K32: RG&E | L32: 0.095 | M32: 3000 | N32: 1200 | O32: 1.5 | P32: 10 | Q32: 2 | R32: 15
B33: Other Annual Operating Expense | E33: [$/MWDC] | F33: 0
K34: Regional Inputs-Model Input | U34: 0.01 | V34: 0.02 | W34: 0.03 | X34: 0.04 | Y34: 0.05
B35: Regional Inputs | F35: Default Value | G35: Adjustment | H35: Current Value | L35: Current Retail Rate | M35: Lease Cost | N35: Average yield | O35: All-in Cost | P35: O&M Cost | Q35: Insurance | R35: CDG Annual Administrative and Subscriber Management Costs | T35: =N13 ->  | U35: CHG&E | V35: O&R | W35: NGRID | X35: NYSEG | Y35: ConEd | Z35: RG&E
B36: Current Retail Rate | E36: [$/kWh] | F36: =INDEX($L$27:$R$32,MATCH($F$5,$K$27:$K$32,0),MATCH($B36,$L$25:$R$25,0)) -> 0.134 | G36: 0 | H36: =F36+G36 -> 0.134 | K36: Utility | L36: ($/kWh) | M36: ($/MW) | N36: (kWh/kWdc) | O36: ($/W) | P36: ($/kW), 2% escalator | Q36: ($/kW) | R36: ($/kW) | S36: 0 | T36: =-$F$39*S36 -> 0
B37: Lease Cost | E37: [$/MWDC] | F37: 10000 | G37: 0 | H37: =F37+G37 -> 10000 | K37: CHG&E | L37: =IF(AND($K37=$F$5,$G$36<>0),$H$36,L27) -> 0.134 | M37: =IF(AND($K37=$F$5,$G$37<>0),$H$37,M27) -> 10000 | N37: =IF(AND($K37=$F$5,$G$38<>0),$H$38,N27) -> 1280 | O37: =IF(AND($K37=$F$5,$G$39<>0),$H$39,O27) -> 1.9 | P37: =IF(AND($K37=$F$5,$G$40<>0),$H$40,P27) -> 10 | Q37: =IF(AND($K37=$F$5,$G$41<>0),$H$41,Q27) -> 2 | R37: =IF(AND($K37=$F$5,$G$42<>0),$H$42,R27) -> 15 | S37: 0.05 | T37: =-$F$39*S37 -> -0.095
B38: Average yield | E38: [kWh/kW] | F38: 1280 | G38: 0 | H38: =F38+G38 -> 1280 | K38: O&R | L38: 0.167 | M38: =IF(AND($K38=$F$5,$G$37<>0),$H$37,M28) -> 12500 | N38: 1300 | O38: 2.2 | P38: 10 | Q38: 2 | R38: 15 | S38: 0.1 | T38: -0.19
B39: All-in Cost | E39: [$/WDC] | F39: 1.9 | G39: 0 | H39: 1.9 | K39: NGRID | L39: 0.0937 | M39: 5000 | N39: 1250 | O39: 1.5 | P39: 10 | Q39: 2 | R39: 15 | S39: 0.15 | T39: -0.285
B40: O&M Cost | E40: [$/kW DC], 2% escalator | F40: 10 | G40: 0 | H40: 10 | K40: NYSEG | L40: 0.094 | M40: 3000 | N40: 1225 | O40: 1.5 | P40: 10 | Q40: 2 | R40: 15 | S40: 0.2 | T40: -0.38
B41: Insurance | E41: [$/kW] | F41: 2 | G41: 0 | H41: 2 | K41: ConEd | L41: 0.203 | M41: 20000 | N41: 1250 | O41: 2.4 | P41: 10 | Q41: 2 | R41: 15 | S41: 0.25 | T41: -0.475
B42: CDG Annual Administrative and Subscriber Management Costs | E42: [$/kW] | F42: 15 | G42: 0 | H42: 15 | K42: RG&E | L42: 0.095 | M42: 3000 | N42: 1200 | O42: 1.5 | P42: 10 | Q42: 2 | R42: 15
B45: Generation Profile & Flags
B46: Date | F46: 2016-12-31 | G46: =EOMONTH(F46,12) -> 2017-12-31 | H46: =EOMONTH(G46,12) -> 2018-12-31 | I46: =EOMONTH(H46,12) -> 2019-12-31 | J46: =EOMONTH(I46,12) -> 2020-12-31 | K46: =EOMONTH(J46,12) -> 2021-12-31 | L46: 2022-12-31 | M46: =EOMONTH(L46,12) -> 2023-12-31 | N46: =EOMONTH(M46,12) -> 2024-12-31 | O46: =EOMONTH(N46,12) -> 2025-12-31 | P46: =EOMONTH(O46,12) -> 2026-12-31 | Q46: 2027-12-31 | R46: =EOMONTH(Q46,12) -> 2028-12-31 | S46: 2029-12-31 | T46: 2030-12-31 | U46: 2031-12-31 | V46: =EOMONTH(U46,12) -> 2032-12-31 | W46: 2033-12-31 | X46: =EOMONTH(W46,12) -> 2034-12-31 | Y46: 2035-12-31 | Z46: 2036-12-31 | AA46: 2037-12-31 | AB46: =EOMONTH(AA46,12) -> 2038-12-31 | AC46: 2039-12-31 | AD46: 2040-12-31 | AE46: 2041-12-31
A47: x
B48: Flags
B49: Construction Active | F49: =-(0-G50) -> 0 | G49: =-(0-H50) -> 0 | H49: =-(0-I50) -> 0 | I49: =-(0-J50) -> 0 | J49: =-(0-K50) -> 0 | K49: 0 | L49: =-(0-M50) -> 0 | M49: =-(0-N50) -> 0 | N49: =-(0-O50) -> 0 | O49: =-(0-P50) -> 0 | P49: 0 | Q49: =-(0-R50) -> 0 | R49: 0 | S49: 0 | T49: 0 | U49: =-(0-V50) -> 0 | V49: 0 | W49: =-(0-X50) -> 0 | X49: 0 | Y49: 0 | Z49: 0 | AA49: =-(0-AB50) -> 0 | AB49: 0 | AC49: 0 | AD49: 0 | AE49: =-(0-#REF!) -> 
B50: COD Year | F50: 1 | G50: 0 | H50: 0 | I50: 0 | J50: 0 | K50: 0 | L50: 0 | M50: 0 | N50: 0 | O50: 0 | P50: 0 | Q50: 0 | R50: 0 | S50: 0 | T50: 0 | U50: 0 | V50: 0 | W50: 0 | X50: 0 | Y50: 0 | Z50: 0 | AA50: 0 | AB50: 0 | AC50: 0 | AD50: 0 | AE50: 0
B51: Project Year | F51: =IF(F53<=YEAR($F$46),0,E51+1) -> 0 | G51: 1 | H51: 2 | I51: 3 | J51: 4 | K51: 5 | L51: 6 | M51: 7 | N51: 8 | O51: 9 | P51: 10 | Q51: 11 | R51: 12 | S51: 13 | T51: 14 | U51: 15 | V51: 16 | W51: 17 | X51: 18 | Y51: 19 | Z51: 20 | AA51: 21 | AB51: 22 | AC51: 23 | AD51: 24 | AE51: 25
B52: Days in Year | F52: =(F46-E46)*F56 -> 0 | G52: =(G46-F46)*G56 -> 365 | H52: =(H46-G46)*H56 -> 365 | I52: =(I46-H46)*I56 -> 365 | J52: =(J46-I46)*J56 -> 366 | K52: =(K46-J46)*K56 -> 365 | L52: 365 | M52: =(M46-L46)*M56 -> 365 | N52: =(N46-M46)*N56 -> 366 | O52: =(O46-N46)*O56 -> 365 | P52: =(P46-O46)*P56 -> 365 | Q52: 365 | R52: =(R46-Q46)*R56 -> 366 | S52: 365 | T52: 365 | U52: 365 | V52: =(V46-U46)*V56 -> 366 | W52: 365 | X52: =(X46-W46)*X56 -> 365 | Y52: 365 | Z52: 366 | AA52: 0 | AB52: =(AB46-AA46)*AB56 -> 0 | AC52: 0 | AD52: 0 | AE52: 0
B53: Year | F53: =+YEAR(F46) -> 2016 | G53: 2017 | H53: 2018 | I53: 2019 | J53: 2020 | K53: 2021 | L53: 2022 | M53: 2023 | N53: 2024 | O53: 2025 | P53: 2026 | Q53: 2027 | R53: 2028 | S53: 2029 | T53: 2030 | U53: 2031 | V53: 2032 | W53: 2033 | X53: 2034 | Y53: 2035 | Z53: 2036 | AA53: 2037 | AB53: 2038 | AC53: 2039 | AD53: 2040 | AE53: 2041
B54: Hours in Year | F54: =+F52*24 -> 0 | G54: 8760 | H54: 8760 | I54: 8760 | J54: 8784 | K54: 8760 | L54: 8760 | M54: 8760 | N54: 8784 | O54: 8760 | P54: 8760 | Q54: 8760 | R54: 8784 | S54: 8760 | T54: 8760 | U54: 8760 | V54: 8784 | W54: 8760 | X54: 8760 | Y54: 8760 | Z54: 8784 | AA54: 0 | AB54: 0 | AC54: 0 | AD54: 0 | AE54: 0
B56: Operational | E56: =SUM(F56:AE56) -> 20 | F56: =IF(AND(F51<=$F$18,F51>0),1,0) -> 0 | G56: 1 | H56: 1 | I56: 1 | J56: 1 | K56: 1 | L56: 1 | M56: 1 | N56: 1 | O56: 1 | P56: 1 | Q56: 1 | R56: 1 | S56: 1 | T56: 1 | U56: 1 | V56: 1 | W56: 1 | X56: 1 | Y56: 1 | Z56: 1 | AA56: 0 | AB56: 0 | AC56: 0 | AD56: 0 | AE56: 0
B57: Total Production (MWh) | E57: =SUM(F57:AE57) -> 70865.32027 | F57: =+$F$10/8760*F54*F64*$F$28 -> 0 | G57: 3712 | H57: 3693.44 | I57: 3674.9728 | J57: 3666.616013 | K57: 3638.314946 | L57: 3620.123372 | M57: 3602.022755 | N57: 3593.831854 | O57: 3566.092578 | P57: 3548.262115 | Q57: 3530.520804 | R57: 3522.492497 | S57: 3495.303859 | T57: 3477.82734 | U57: 3460.438203 | V57: 3452.569262 | W57: 3425.920332 | X57: 3408.790731 | Y57: 3391.746777 | Z57: 3384.034038 | AA57: 0 | AB57: 0 | AC57: 0 | AD57: 0 | AE57: 0
B59: NYSERDA Payment Period | E59: =SUM(F59:AE59) -> 3 | F59: =IF(F51<=3,1,0)*F56 -> 0 | G59: 1 | H59: 1 | I59: 1 | J59: 0 | K59: 0 | L59: 0 | M59: 0 | N59: 0 | O59: 0 | P59: 0 | Q59: 0 | R59: 0 | S59: 0 | T59: 0 | U59: 0 | V59: 0 | W59: 0 | X59: 0 | Y59: 0 | Z59: 0 | AA59: 0 | AB59: 0 | AC59: 0 | AD59: 0 | AE59: 0
B60: NYSERDA Eligible Production | E60: =SUM(F60:AE60) -> 11080.4128 | F60: =+F57*F59 -> 0 | G60: 3712 | H60: 3693.44 | I60: 3674.9728 | J60: 0 | K60: 0 | L60: 0 | M60: 0 | N60: 0 | O60: 0 | P60: 0 | Q60: 0 | R60: 0 | S60: 0 | T60: 0 | U60: 0 | V60: 0 | W60: 0 | X60: 0 | Y60: 0 | Z60: 0 | AA60: 0 | AB60: 0 | AC60: 0 | AD60: 0 | AE60: 0
B62: Inflation Index | F62: =(1+$F$31)^(F$51-1)*F$56 -> 0 | G62: 1 | H62: 1.02 | I62: 1.0404 | J62: 1.061208 | K62: 1.08243216 | L62: 1.104080803 | M62: 1.126162419 | N62: 1.148685668 | O62: 1.171659381 | P62: 1.195092569 | Q62: 1.21899442 | R62: 1.243374308 | S62: 1.268241795 | T62: 1.29360663 | U62: 1.319478763 | V62: 1.345868338 | W62: 1.372785705 | X62: 1.400241419 | Y62: 1.428246248 | Z62: 1.456811173 | AA62: 0 | AB62: 0 | AC62: 0 | AD62: 0 | AE62: 0
B63: PPA Index | F63: =(1+$F$19)^(F51-1) -> 0.9900990099 | G63: 1 | H63: 1.01 | I63: 1.0201 | J63: 1.030301 | K63: 1.04060401 | L63: 1.05101005 | M63: 1.061520151 | N63: 1.072135352 | O63: 1.082856706 | P63: 1.093685273 | Q63: 1.104622125 | R63: 1.115668347 | S63: 1.12682503 | T63: 1.13809328 | U63: 1.149474213 | V63: 1.160968955 | W63: 1.172578645 | X63: 1.184304431 | Y63: 1.196147476 | Z63: 1.20810895 | AA63: 1.22019004 | AB63: 1.23239194 | AC63: 1.24471586 | AD63: 1.257163018 | AE63: 1.269734649
B64: Degradation Index | F64: =(1-$F$30)^(F51-1)*F56 -> 0 | G64: 1 | H64: 0.995 | I64: 0.990025 | J64: 0.985074875 | K64: 0.9801495006 | L64: 0.9752487531 | M64: 0.9703725094 | N64: 0.9655206468 | O64: 0.9606930436 | P64: 0.9558895784 | Q64: 0.9511101305 | R64: 0.9463545798 | S64: 0.9416228069 | T64: 0.9369146929 | U64: 0.9322301194 | V64: 0.9275689688 | W64: 0.922931124 | X64: 0.9183164684 | Y64: 0.913724886 | Z64: 0.9091562616 | AA64: 0 | AB64: 0 | AC64: 0 | AD64: 0 | AE64: 0
B65: Land Lease Index | F65: =(1+$F$32)^(F$51-1)*F$56 -> 0 | G65: 1 | H65: 1.02 | I65: 1.0404 | J65: 1.061208 | K65: 1.08243216 | L65: 1.104080803 | M65: 1.126162419 | N65: 1.148685668 | O65: 1.171659381 | P65: 1.195092569 | Q65: 1.21899442 | R65: 1.243374308 | S65: 1.268241795 | T65: 1.29360663 | U65: 1.319478763 | V65: 1.345868338 | W65: 1.372785705 | X65: 1.400241419 | Y65: 1.428246248 | Z65: 1.456811173 | AA65: 0 | AB65: 0 | AC65: 0 | AD65: 0 | AE65: 0
B67: State Incentive Collected | F67: 0 | G67: =SUM($F81:F$81,$F79:F$79) -> 283.394322 | H67: =SUM($F81:G$81,$F79:G$79) -> 592.418322 | I67: =SUM($F81:H$81,$F79:H$79) -> 899.897202 | J67: =SUM($F81:I$81,$F79:I$79) -> 1133.577288 | K67: =SUM($F81:J$81,$F79:J$79) -> 1133.577288 | L67: =SUM($F81:K$81,$F79:K$79) -> 1133.577288 | M67: =SUM($F81:L$81,$F79:L$79) -> 1133.577288 | N67: =SUM($F81:M$81,$F79:M$79) -> 1133.577288 | O67: =SUM($F81:N$81,$F79:N$79) -> 1133.577288 | P67: =SUM($F81:O$81,$F79:O$79) -> 1133.577288 | Q67: =SUM($F81:P$81,$F79:P$79) -> 1133.577288 | R67: =SUM($F81:Q$81,$F79:Q$79) -> 1133.577288 | S67: =SUM($F81:R$81,$F79:R$79) -> 1133.577288 | T67: =SUM($F81:S$81,$F79:S$79) -> 1133.577288 | U67: =SUM($F81:T$81,$F79:T$79) -> 1133.577288 | V67: =SUM($F81:U$81,$F79:U$79) -> 1133.577288 | W67: =SUM($F81:V$81,$F79:V$79) -> 1133.577288 | X67: =SUM($F81:W$81,$F79:W$79) -> 1133.577288 | Y67: =SUM($F81:X$81,$F79:X$79) -> 1133.577288 | Z67: =SUM($F81:Y$81,$F79:Y$79) -> 1133.577288 | AA67: =SUM($F81:Z$81,$F79:Z$79) -> 1133.577288 | AB67: =SUM($F81:AA$81,$F79:AA$79) -> 1133.577288 | AC67: =SUM($F81:AB$81,$F79:AB$79) -> 1133.577288 | AD67: =SUM($F81:AC$81,$F79:AC$79) -> 1133.577288 | AE67: =SUM($F81:AD$81,$F79:AD$79) -> 1133.577288
B68: State Incentive Remaining | F68: 0 | G68: =($F$24/1000-G67) -> 850.182966 | H68: 541.158966 | I68: 233.680086 | J68: 0 | K68: 0 | L68: 0 | M68: 0 | N68: 0 | O68: 0 | P68: 0 | Q68: 0 | R68: 0 | S68: 0 | T68: 0 | U68: 0 | V68: 0 | W68: 0 | X68: 0 | Y68: 0 | Z68: 0 | AA68: 0 | AB68: 0 | AC68: 0 | AD68: 0 | AE68: 0
B70: Unlevered Operating Cash Flow Build
B71: ($000s) | E71: Total | F71: =F$46 -> 2016-12-31 | G71: =G$46 -> 2017-12-31 | H71: =H$46 -> 2018-12-31 | I71: =I$46 -> 2019-12-31 | J71: 2020-12-31 | K71: 2021-12-31 | L71: 2022-12-31 | M71: 2023-12-31 | N71: 2024-12-31 | O71: 2025-12-31 | P71: 2026-12-31 | Q71: 2027-12-31 | R71: 2028-12-31 | S71: 2029-12-31 | T71: 2030-12-31 | U71: 2031-12-31 | V71: 2032-12-31 | W71: 2033-12-31 | X71: 2034-12-31 | Y71: 2035-12-31 | Z71: 2036-12-31 | AA71: 2037-12-31 | AB71: 2038-12-31 | AC71: 2039-12-31 | AD71: 2040-12-31 | AE71: 2041-12-31
A72: x
B73: Contracted Production (MWh) | E73: =SUM(F73:AE73) -> 70865.32027 | F73: =+F$57 -> 0 | G73: =+G$57 -> 3712 | H73: =+H$57 -> 3693.44 | I73: =+I$57 -> 3674.9728 | J73: 3666.616013 | K73: 3638.314946 | L73: 3620.123372 | M73: 3602.022755 | N73: 3593.831854 | O73: 3566.092578 | P73: 3548.262115 | Q73: 3530.520804 | R73: 3522.492497 | S73: 3495.303859 | T73: 3477.82734 | U73: 3460.438203 | V73: 3452.569262 | W73: 3425.920332 | X73: 3408.790731 | Y73: 3391.746777 | Z73: 3384.034038 | AA73: 0 | AB73: 0 | AC73: 0 | AD73: 0 | AE73: 0
B74: PPA Price ($/kWh) | F74: =+$F$17*F63*(F73>0) -> 0 | G74: 0.1206 | H74: 0.121806 | I74: 0.12302406 | J74: 0.1242543006 | K74: 0.1254968436 | L74: 0.126751812 | M74: 0.1280193302 | N74: 0.1292995235 | O74: 0.1305925187 | P74: 0.1318984439 | Q74: 0.1332174283 | R74: 0.1345496026 | S74: 0.1358950986 | T74: 0.1372540496 | U74: 0.1386265901 | V74: 0.140012856 | W74: 0.1414129846 | X74: 0.1428271144 | Y74: 0.1442553856 | Z74: 0.1456979394 | AA74: 0 | AB74: 0 | AC74: 0 | AD74: 0 | AE74: 0
B75: Contracted Energy Revenues (PPA) | E75: =SUM(F75:AE75) -> 9393.62416 | F75: =+F74*F73 -> 0 | G75: 447.6672 | H75: 449.8831526 | I75: 452.1100742 | J75: 455.5928082 | K75: 456.5970418 | L75: 458.8571972 | M75: 461.1285403 | N75: 464.6807461 | O75: 465.7050116 | P75: 468.0102514 | Q75: 470.3269022 | R75: 473.9499656 | S75: 474.9946627 | T75: 477.3458863 | U75: 479.7087484 | V75: 483.4040829 | W75: 484.4696191 | X75: 486.8677437 | Y75: 489.277739 | Z75: 493.0467862 | AA75: 0 | AB75: 0 | AC75: 0 | AD75: 0 | AE75: 0
F76: `
B77: NYSERDA Contracted Production (MWh) | E77: =SUM(F77:AE77) -> 8310.3096 | F77: =+F60*0.75 -> 0 | G77: 2784 | H77: 2770.08 | I77: 2756.2296 | J77: 0 | K77: 0 | L77: 0 | M77: 0 | N77: 0 | O77: 0 | P77: 0 | Q77: 0 | R77: 0 | S77: 0 | T77: 0 | U77: 0 | V77: 0 | W77: 0 | X77: 0 | Y77: 0 | Z77: 0 | AA77: 0 | AB77: 0 | AC77: 0 | AD77: 0 | AE77: 0
B78: NYSERDA Grants Rate ($/MWh) | F78: =$F$21*(F77>0)*1000 -> 0 | G78: 111 | H78: 111 | I78: 111 | J78: 0 | K78: 0 | L78: 0 | M78: 0 | N78: 0 | O78: 0 | P78: 0 | Q78: 0 | R78: 0 | S78: 0 | T78: 0 | U78: 0 | V78: 0 | W78: 0 | X78: 0 | Y78: 0 | Z78: 0 | AA78: 0 | AB78: 0 | AC78: 0 | AD78: 0 | AE78: 0
B79: NYSERDA Grants ($) | E79: =SUM(F79:AE79) -> 850.182966 | F79: =MIN(F77*F78/1000,F68) -> 0 | G79: =MIN(G77*G78/1000,G68) -> 309.024 | H79: 307.47888 | I79: 233.680086 | J79: 0 | K79: 0 | L79: 0 | M79: 0 | N79: 0 | O79: 0 | P79: 0 | Q79: 0 | R79: 0 | S79: 0 | T79: 0 | U79: 0 | V79: 0 | W79: 0 | X79: 0 | Y79: 0 | Z79: 0 | AA79: 0 | AB79: 0 | AC79: 0 | AD79: 0 | AE79: 0
B81: Upfront NYSERDA Grant | E81: =SUM(F81:AE81) -> 283.394322 | F81: =+$F$24/1000/4*F50 -> 283.394322 | G81: 0 | H81: 0 | I81: 0 | J81: 0 | K81: 0 | L81: 0 | M81: 0 | N81: 0 | O81: 0 | P81: 0 | Q81: 0 | R81: 0 | S81: 0 | T81: 0 | U81: 0 | V81: 0 | W81: 0 | X81: 0 | Y81: 0 | Z81: 0 | AA81: 0 | AB81: 0 | AC81: 0 | AD81: 0 | AE81: 0
B83: Total Revenues | E83: =SUM(F83:AE83) -> 10527.20145 | F83: =+F75+F79+F81 -> 283.394322 | G83: 756.6912 | H83: 757.3620326 | I83: 685.7901602 | J83: 455.5928082 | K83: 456.5970418 | L83: 458.8571972 | M83: 461.1285403 | N83: 464.6807461 | O83: 465.7050116 | P83: 468.0102514 | Q83: 470.3269022 | R83: 473.9499656 | S83: 474.9946627 | T83: 477.3458863 | U83: 479.7087484 | V83: 483.4040829 | W83: 484.4696191 | X83: 486.8677437 | Y83: 489.277739 | Z83: 493.0467862 | AA83: 0 | AB83: 0 | AC83: 0 | AD83: 0 | AE83: 0
B85: Land Lease | E85: =SUM(F85:AE85) -> -704.6237242 | F85: =-$F$9*$F$28/1000*F65 -> 0 | G85: =-$H$37*$F$28/1000*G65 -> -29 | H85: =-$H$37*$F$28/1000*H65 -> -29.58 | I85: -30.1716 | J85: -30.775032 | K85: -31.39053264 | L85: -32.01834329 | M85: -32.65871016 | N85: -33.31188436 | O85: -33.97812205 | P85: -34.65768449 | Q85: -35.35083818 | R85: -36.05785494 | S85: -36.77901204 | T85: -37.51459228 | U85: -38.26488413 | V85: -39.03018181 | W85: -39.81078545 | X85: -40.60700116 | Y85: -41.41914118 | Z85: -42.247524 | AA85: 0 | AB85: 0 | AC85: 0 | AD85: 0 | AE85: 0
B86: Other Annual Operating Expenses | E86: 0 | F86: =-$F$33*$F$28*F62 -> 0 | G86: =-$F$33*$F$28*G62 -> 0 | H86: 0 | I86: 0 | J86: 0 | K86: 0 | L86: 0 | M86: 0 | N86: 0 | O86: 0 | P86: 0 | Q86: 0 | R86: 0 | S86: 0 | T86: 0 | U86: 0 | V86: 0 | W86: 0 | X86: 0 | Y86: 0 | Z86: 0 | AA86: 0 | AB86: 0 | AC86: 0 | AD86: 0 | AE86: 0
B87: Real Property Taxes | E87: 0 | F87: =F124/1000 -> 0 | G87: =G124/1000 -> 0 | H87: 0 | I87: 0 | J87: 0 | K87: 0 | L87: 0 | M87: 0 | N87: 0 | O87: 0 | P87: 0 | Q87: 0 | R87: 0 | S87: 0 | T87: 0 | U87: 0 | V87: 0 | W87: 0 | X87: 0 | Y87: 0 | Z87: 0 | AA87: 0 | AB87: 0 | AC87: 0 | AD87: 0 | AE87: 0
B88: Annual O&M | E88: -704.6237242 | F88: 0 | G88: =-H40*F28 -> -29 | H88: =G88*1.02 -> -29.58 | I88: =H88*1.02 -> -30.1716 | J88: =I88*1.02 -> -30.775032 | K88: =J88*1.02 -> -31.39053264 | L88: -32.01834329 | M88: =L88*1.02 -> -32.65871016 | N88: =M88*1.02 -> -33.31188436 | O88: =N88*1.02 -> -33.97812205 | P88: =O88*1.02 -> -34.65768449 | Q88: -35.35083818 | R88: -36.05785494 | S88: -36.77901204 | T88: -37.51459228 | U88: -38.26488413 | V88: -39.03018181 | W88: -39.81078545 | X88: -40.60700116 | Y88: -41.41914118 | Z88: -42.247524 | AA88: =IF(AA56=1,Z88*1.02,0) -> 0 | AB88: 0 | AC88: 0 | AD88: 0 | AE88: 0
B89: Insurance | E89: -116 | F89: =IF(F56=1,$Q$37*-$F$28,0) -> 0 | G89: =IF(G56=1,-$H$41*$F$28,0) -> -5.8 | H89: =IF(H56=1,-$H$41*$F$28,0) -> -5.8 | I89: -5.8 | J89: -5.8 | K89: -5.8 | L89: -5.8 | M89: -5.8 | N89: -5.8 | O89: -5.8 | P89: -5.8 | Q89: -5.8 | R89: -5.8 | S89: -5.8 | T89: -5.8 | U89: -5.8 | V89: -5.8 | W89: -5.8 | X89: -5.8 | Y89: -5.8 | Z89: -5.8 | AA89: 0 | AB89: 0 | AC89: 0 | AD89: 0 | AE89: 0
B90: CDG Annual Administrative and Subscriber Management Costs | E90: -870 | F90: =IF(F56=1,$F$28*-$R$37,0) -> 0 | G90: =IF(G56=1,-$H$42*$F$28,0) -> -43.5 | H90: =IF(H56=1,-$H$42*$F$28,0) -> -43.5 | I90: -43.5 | J90: -43.5 | K90: -43.5 | L90: -43.5 | M90: -43.5 | N90: -43.5 | O90: -43.5 | P90: -43.5 | Q90: -43.5 | R90: -43.5 | S90: -43.5 | T90: -43.5 | U90: -43.5 | V90: -43.5 | W90: -43.5 | X90: -43.5 | Y90: -43.5 | Z90: -43.5 | AA90: 0 | AB90: 0 | AC90: 0 | AD90: 0 | AE90: 0
B91: Inverter Replacement | E91: =SUM(G91:AE91) -> -290 | F91: 0 | G91: 0 | H91: 0 | I91: 0 | J91: 0 | K91: 0 | L91: 0 | M91: 0 | N91: 0 | O91: 0 | P91: =-0.1*F28*1000 -> -290 | Q91: 0 | R91: 0 | S91: 0 | T91: 0 | U91: 0 | V91: 0 | W91: 0 | X91: 0 | Y91: 0 | Z91: 0 | AA91: =IF(AA56=1,(-0.1*1000*F28),0) -> 0
B92: Total OpEx | E92: =SUM(F92:AE92) -> -2685.247448 | F92: =SUM(F85:F91) -> 0 | G92: -107.3 | H92: -108.46 | I92: -109.6432 | J92: -110.850064 | K92: -112.0810653 | L92: -113.3366866 | M92: -114.6174203 | N92: -115.9237687 | O92: -117.2562441 | P92: -408.615369 | Q92: -120.0016764 | R92: -121.4157099 | S92: -122.8580241 | T92: -124.3291846 | U92: -125.8297683 | V92: -127.3603636 | W92: -128.9215709 | X92: -130.5140023 | Y92: -132.1382824 | Z92: -133.795048 | AA92: 0 | AB92: 0 | AC92: 0 | AD92: 0 | AE92: 0
B94: EBITDA | E94: =SUM(F94:AE94) -> 7841.953999 | F94: =+F92+F83 -> 283.394322 | G94: 649.3912 | H94: 648.9020326 | I94: 576.1469602 | J94: 344.7427442 | K94: 344.5159765 | L94: 345.5205106 | M94: 346.51112 | N94: 348.7569774 | O94: 348.4487675 | P94: 59.39488247 | Q94: 350.3252258 | R94: 352.5342557 | S94: 352.1366386 | T94: 353.0167017 | U94: 353.8789802 | V94: 356.0437193 | W94: 355.5480482 | X94: 356.3537414 | Y94: 357.1394567 | Z94: 359.2517382 | AA94: 0 | AB94: 0 | AC94: 0 | AD94: 0 | AE94: 0
B95: EBITDA Margin | F95: =IFERROR(F94/F83*100,0) -> 100 | G95: 85.81984302 | H95: 85.67923987 | I95: 84.01213573 | J95: 75.66904876 | K95: 75.45295851 | L95: 75.30022689 | M95: 75.14414956 | N95: 75.05302948 | O95: 74.82177748 | P95: 12.69093621 | Q95: 74.48547472 | R95: 74.38216717 | S95: 74.13486219 | T95: 73.95406808 | U95: 73.76954899 | V95: 73.65343651 | W95: 73.38913199 | X95: 73.19313017 | Y95: 72.99319552 | Z95: 72.8636203 | AA95: 0 | AB95: 0 | AC95: 0 | AD95: 0 | AE95: 0
B98: All-in Cost Basis | E98: =SUM(F98:AE98) -> -5510 | F98: =-$F$8*F50*$F$28*1000 -> -5510 | G98: 0 | H98: 0 | I98: 0 | J98: 0 | K98: 0 | L98: 0 | M98: 0 | N98: 0 | O98: 0 | P98: 0 | Q98: 0 | R98: 0 | S98: 0 | T98: 0 | U98: 0 | V98: 0 | W98: 0 | X98: 0 | Y98: 0 | Z98: 0 | AA98: 0 | AB98: 0 | AC98: 0 | AD98: 0 | AE98: 0
B99: Pre-Tax Investor Cash Flow (Pre-PILOT) | E99: =SUM(F99:AE99) -> 2331.953999 | F99: =SUM(F98:F98,F94) -> -5226.605678 | G99: 649.3912 | H99: 648.9020326 | I99: 576.1469602 | J99: 344.7427442 | K99: 344.5159765 | L99: 345.5205106 | M99: 346.51112 | N99: 348.7569774 | O99: 348.4487675 | P99: 59.39488247 | Q99: 350.3252258 | R99: 352.5342557 | S99: 352.1366386 | T99: 353.0167017 | U99: 353.8789802 | V99: 356.0437193 | W99: 355.5480482 | X99: 356.3537414 | Y99: 357.1394567 | Z99: 359.2517382 | AA99: 0 | AB99: 0 | AC99: 0 | AD99: 0 | AE99: 0
B100: PILOT Payments | E100: =SUM(F100:AE100) ->  | F100: =-$N$10/1000*F117 -> 
B101: Pre-Tax Investor Cash Flow (Post-PILOT) | E101: =SUM(F101:AE101) ->  | F101: =SUM(F99:F100) ->  | G101: =SUM(G99:G100) -> 
B103: Property Taxes
B105: Property Tax Assumptions | F105: Default Value
B106: Assumed Equalization Rate | E106: [%] | F106: 1
B107: PILOT Period | E107: [Years] | F107: 15
B108: Assumed All-in County+Town+School Tax Rate | E108: [%] | F108: 0.046
B109: Assumed Special District Tax Rate | E109: [%] | F109: 0.002
B112: Year | F112: =+'4. Calculator Two (Old)'!F53 -> 2016 | G112: =+'4. Calculator Two (Old)'!G53 -> 2017 | H112: =+'4. Calculator Two (Old)'!H53 -> 2018 | I112: =+'4. Calculator Two (Old)'!I53 -> 2019 | J112: =+'4. Calculator Two (Old)'!J53 -> 2020 | K112: =+'4. Calculator Two (Old)'!K53 -> 2021 | L112: =+'4. Calculator Two (Old)'!L53 -> 2022 | M112: =+'4. Calculator Two (Old)'!M53 -> 2023 | N112: =+'4. Calculator Two (Old)'!N53 -> 2024 | O112: =+'4. Calculator Two (Old)'!O53 -> 2025 | P112: =+'4. Calculator Two (Old)'!P53 -> 2026 | Q112: =+'4. Calculator Two (Old)'!Q53 -> 2027 | R112: =+'4. Calculator Two (Old)'!R53 -> 2028 | S112: =+'4. Calculator Two (Old)'!S53 -> 2029 | T112: =+'4. Calculator Two (Old)'!T53 -> 2030 | U112: =+'4. Calculator Two (Old)'!U53 -> 2031 | V112: =+'4. Calculator Two (Old)'!V53 -> 2032 | W112: =+'4. Calculator Two (Old)'!W53 -> 2033 | X112: =+'4. Calculator Two (Old)'!X53 -> 2034 | Y112: =+'4. Calculator Two (Old)'!Y53 -> 2035 | Z112: =+'4. Calculator Two (Old)'!Z53 -> 2036 | AA112: =+'4. Calculator Two (Old)'!AA53 -> 2037 | AB112: =+'4. Calculator Two (Old)'!AB53 -> 2038 | AC112: =+'4. Calculator Two (Old)'!AC53 -> 2039 | AD112: =+'4. Calculator Two (Old)'!AD53 -> 2040 | AE112: =+'4. Calculator Two (Old)'!AE53 -> 2041
B113: Project Year | F113: =+'4. Calculator Two (Old)'!F51 -> 0 | G113: =+'4. Calculator Two (Old)'!G51 -> 1 | H113: =+'4. Calculator Two (Old)'!H51 -> 2 | I113: =+'4. Calculator Two (Old)'!I51 -> 3 | J113: =+'4. Calculator Two (Old)'!J51 -> 4 | K113: =+'4. Calculator Two (Old)'!K51 -> 5 | L113: =+'4. Calculator Two (Old)'!L51 -> 6 | M113: =+'4. Calculator Two (Old)'!M51 -> 7 | N113: =+'4. Calculator Two (Old)'!N51 -> 8 | O113: =+'4. Calculator Two (Old)'!O51 -> 9 | P113: =+'4. Calculator Two (Old)'!P51 -> 10 | Q113: =+'4. Calculator Two (Old)'!Q51 -> 11 | R113: =+'4. Calculator Two (Old)'!R51 -> 12 | S113: =+'4. Calculator Two (Old)'!S51 -> 13 | T113: =+'4. Calculator Two (Old)'!T51 -> 14 | U113: =+'4. Calculator Two (Old)'!U51 -> 15 | V113: =+'4. Calculator Two (Old)'!V51 -> 16 | W113: =+'4. Calculator Two (Old)'!W51 -> 17 | X113: =+'4. Calculator Two (Old)'!X51 -> 18 | Y113: =+'4. Calculator Two (Old)'!Y51 -> 19 | Z113: =+'4. Calculator Two (Old)'!Z51 -> 20 | AA113: =+'4. Calculator Two (Old)'!AA51 -> 21 | AB113: =+'4. Calculator Two (Old)'!AB51 -> 22 | AC113: =+'4. Calculator Two (Old)'!AC51 -> 23 | AD113: =+'4. Calculator Two (Old)'!AD51 -> 24 | AE113: =+'4. Calculator Two (Old)'!AE51 -> 25
B114: Project Operational | F114: =+'4. Calculator Two (Old)'!F56 -> 0 | G114: =+'4. Calculator Two (Old)'!G56 -> 1 | H114: =+'4. Calculator Two (Old)'!H56 -> 1 | I114: =+'4. Calculator Two (Old)'!I56 -> 1 | J114: =+'4. Calculator Two (Old)'!J56 -> 1 | K114: =+'4. Calculator Two (Old)'!K56 -> 1 | L114: =+'4. Calculator Two (Old)'!L56 -> 1 | M114: =+'4. Calculator Two (Old)'!M56 -> 1 | N114: =+'4. Calculator Two (Old)'!N56 -> 1 | O114: =+'4. Calculator Two (Old)'!O56 -> 1 | P114: =+'4. Calculator Two (Old)'!P56 -> 1 | Q114: =+'4. Calculator Two (Old)'!Q56 -> 1 | R114: =+'4. Calculator Two (Old)'!R56 -> 1 | S114: =+'4. Calculator Two (Old)'!S56 -> 1 | T114: =+'4. Calculator Two (Old)'!T56 -> 1 | U114: =+'4. Calculator Two (Old)'!U56 -> 1 | V114: =+'4. Calculator Two (Old)'!V56 -> 1 | W114: =+'4. Calculator Two (Old)'!W56 -> 1 | X114: =+'4. Calculator Two (Old)'!X56 -> 1 | Y114: =+'4. Calculator Two (Old)'!Y56 -> 1 | Z114: =+'4. Calculator Two (Old)'!Z56 -> 1 | AA114: =+'4. Calculator Two (Old)'!AA56 -> 0 | AB114: =+'4. Calculator Two (Old)'!AB56 -> 0 | AC114: =+'4. Calculator Two (Old)'!AC56 -> 0 | AD114: =+'4. Calculator Two (Old)'!AD56 -> 0 | AE114: =+'4. Calculator Two (Old)'!AE56 -> 0
B115: Asset Value Based on Remaining Cashflows Until End of Project Term | F115: 0 | G115: 0 | H115: 0 | I115: 0 | J115: 0 | K115: 0 | L115: 0 | M115: 0 | N115: 0 | O115: 0 | P115: 0 | Q115: 0 | R115: 0 | S115: 0 | T115: 0 | U115: 0 | V115: 0 | W115: 0 | X115: 0 | Y115: 0 | Z115: 0 | AA115: 0 | AB115: 0 | AC115: 0 | AD115: 0 | AE115: 0
B117: PILOT Active | F117: =IF(F113<=$F$107,1,0)*F114 -> 0 | G117: 1 | H117: 1 | I117: 1 | J117: 1 | K117: 1 | L117: 1 | M117: 1 | N117: 1 | O117: 1 | P117: 1 | Q117: 1 | R117: 1 | S117: 1 | T117: 1 | U117: 1 | V117: 0 | W117: 0 | X117: 0 | Y117: 0 | Z117: 0 | AA117: 0 | AB117: 0 | AC117: 0 | AD117: 0 | AE117: 0
B119: Tax Schedule | F119: =+F112 -> 2016 | G119: 2017 | H119: 2018 | I119: 2019 | J119: 2020 | K119: 2021 | L119: 2022 | M119: 2023 | N119: 2024 | O119: 2025 | P119: 2026 | Q119: 2027 | R119: 2028 | S119: 2029 | T119: 2030 | U119: 2031 | V119: 2032 | W119: 2033 | X119: 2034 | Y119: 2035 | Z119: 2036 | AA119: 2037 | AB119: 2038 | AC119: 2039 | AD119: 2040 | AE119: 2041
B121: Real Property Taxes
B122: Assessed Value | F122: =F115 -> 0 | G122: =G115 -> 0 | H122: =H115 -> 0 | I122: 0 | J122: 0 | K122: 0 | L122: 0 | M122: 0 | N122: 0 | O122: 0 | P122: 0 | Q122: 0 | R122: 0 | S122: 0 | T122: 0 | U122: 0 | V122: 0 | W122: 0 | X122: 0 | Y122: 0 | Z122: 0 | AA122: 0 | AB122: 0 | AC122: 0 | AD122: 0 | AE122: 0
B123: Tax Rate | F123: =($F$108*(1-F117)+$F$109)*F114 -> 0 | G123: 0.002 | H123: 0.002 | I123: 0.002 | J123: 0.002 | K123: 0.002 | L123: 0.002 | M123: 0.002 | N123: 0.002 | O123: 0.002 | P123: 0.002 | Q123: 0.002 | R123: 0.002 | S123: 0.002 | T123: 0.002 | U123: 0.002 | V123: 0.048 | W123: 0.048 | X123: 0.048 | Y123: 0.048 | Z123: 0.048 | AA123: 0 | AB123: 0 | AC123: 0 | AD123: 0 | AE123: 0
B124: Real Property Taxes | F124: =F122*-F123/1000 -> 0 | G124: =G122*-G123*$F$106 -> 0 | H124: 0 | I124: 0 | J124: 0 | K124: 0 | L124: 0 | M124: 0 | N124: 0 | O124: 0 | P124: 0 | Q124: 0 | R124: 0 | S124: 0 | T124: 0 | U124: 0 | V124: 0 | W124: 0 | X124: 0 | Y124: 0 | Z124: 0 | AA124: 0 | AB124: 0 | AC124: 0 | AD124: 0 | AE124: 0

Sheet Sheet2 (hidden)
A1: Project Year | B1: Year | C1: Days in Year | D1: Hours in Year | E1: Operational | F1: Degradation Index | G1: Total Production (MWh) | H1: Retail Utility Rate | I1: % of Retail Rate | J1: PILOT
A2: 0 | B2: 2016 | C2: =IF(MONTH(DATE(B2,2,29))=2,366,365) -> 366 | D2: =C2*24 -> 8784 | E2: =IF(AND(A2>0,A2<='3. Calculator One'!$F$38),1,0) -> 0 | F2: =(1-'3. Calculator One'!$F$34)^($A2-1)*$E2 -> 0 | G2: ='3. Calculator One'!$F$28*'3. Calculator One'!#REF!*$F2*$E2 ->  | H2: ='3. Calculator One'!#REF! ->  | I2: =+'3. Calculator One'!$F$30 -> 0.03 | J2: =I2*G2*H2*1000 -> 
A3: 1 | B3: 2017 | C3: =IF(MONTH(DATE(B3,2,29))=2,366,365) -> 365 | D3: =C3*24 -> 8760 | E3: =IF(AND(A3>0,A3<='3. Calculator One'!$F$38),1,0) -> 1 | F3: =(1-'3. Calculator One'!$F$34)^($A3-1)*$E3 -> 1 | G3: ='3. Calculator One'!$F$28*'3. Calculator One'!#REF!*$F3*$E3 ->  | H3: ='3. Calculator One'!#REF! ->  | I3: =I2 -> 0.03 | J3: =I3*G3*H3*1000 -> 
A4: 2 | B4: 2018 | C4: 365 | D4: 8760 | E4: =IF(AND(A4>0,A4<='3. Calculator One'!$F$38),1,0) -> 1 | F4: =(1-'3. Calculator One'!$F$34)^($A4-1)*$E4 -> 0.995 | G4: ='3. Calculator One'!$F$28*'3. Calculator One'!#REF!*$F4*$E4 ->  | H4: ='3. Calculator One'!#REF! ->  | I4: =I3 -> 0.03
A5: 3 | B5: 2019 | C5: 365 | D5: 8760 | E5: =IF(AND(A5>0,A5<='3. Calculator One'!$F$38),1,0) -> 1 | F5: =(1-'3. Calculator One'!$F$34)^($A5-1)*$E5 -> 0.990025 | G5: ='3. Calculator One'!$F$28*'3. Calculator One'!#REF!*$F5*$E5 ->  | H5: ='3. Calculator One'!#REF! ->  | I5: 0.03
A6: 4 | B6: 2020 | C6: 366 | D6: 8784 | E6: =IF(AND(A6>0,A6<='3. Calculator One'!$F$38),1,0) -> 1 | F6: =(1-'3. Calculator One'!$F$34)^($A6-1)*$E6 -> 0.985074875 | G6: ='3. Calculator One'!$F$28*'3. Calculator One'!#REF!*$F6*$E6 ->  | H6: ='3. Calculator One'!#REF! ->  | I6: 0.03
A7: 5 | B7: 2021 | C7: 365 | D7: 8760 | E7: =IF(AND(A7>0,A7<='3. Calculator One'!$F$38),1,0) -> 1 | F7: =(1-'3. Calculator One'!$F$34)^($A7-1)*$E7 -> 0.9801495006 | G7: ='3. Calculator One'!$F$28*'3. Calculator One'!#REF!*$F7*$E7 ->  | H7: ='3. Calculator One'!#REF! ->  | I7: 0.03
A8: 6 | B8: 2022 | C8: 365 | D8: 8760 | E8: =IF(AND(A8>0,A8<='3. Calculator One'!$F$38),1,0) -> 1 | F8: =(1-'3. Calculator One'!$F$34)^($A8-1)*$E8 -> 0.9752487531 | G8: ='3. Calculator One'!$F$28*'3. Calculator One'!#REF!*$F8*$E8 ->  | H8: ='3. Calculator One'!#REF! ->  | I8: 0.03
A9: 7 | B9: 2023 | C9: 365 | D9: 8760 | E9: =IF(AND(A9>0,A9<='3. Calculator One'!$F$38),1,0) -> 1 | F9: =(1-'3. Calculator One'!$F$34)^($A9-1)*$E9 -> 0.9703725094 | G9: ='3. Calculator One'!$F$28*'3. Calculator One'!#REF!*$F9*$E9 ->  | H9: ='3. Calculator One'!#REF! ->  | I9: 0.03
A10: 8 | B10: 2024 | C10: 366 | D10: 8784 | E10: =IF(AND(A10>0,A10<='3. Calculator One'!$F$38),1,0) -> 1 | F10: =(1-'3. Calculator One'!$F$34)^($A10-1)*$E10 -> 0.9655206468 | G10: ='3. Calculator One'!$F$28*'3. Calculator One'!#REF!*$F10*$E10 ->  | H10: ='3. Calculator One'!#REF! ->  | I10: 0.03
A11: 9 | B11: 2025 | C11: 365 | D11: 8760 | E11: =IF(AND(A11>0,A11<='3. Calculator One'!$F$38),1,0) -> 1 | F11: =(1-'3. Calculator One'!$F$34)^($A11-1)*$E11 -> 0.9606930436 | G11: ='3. Calculator One'!$F$28*'3. Calculator One'!#REF!*$F11*$E11 ->  | H11: ='3. Calculator One'!#REF! ->  | I11: 0.03
A12: 10 | B12: 2026 | C12: 365 | D12: 8760 | E12: =IF(AND(A12>0,A12<='3. Calculator One'!$F$38),1,0) -> 1 | F12: =(1-'3. Calculator One'!$F$34)^($A12-1)*$E12 -> 0.9558895784 | G12: ='3. Calculator One'!$F$28*'3. Calculator One'!#REF!*$F12*$E12 ->  | H12: ='3. Calculator One'!#REF! ->  | I12: 0.03
A13: 11 | B13: 2027 | C13: 365 | D13: 8760 | E13: =IF(AND(A13>0,A13<='3. Calculator One'!$F$38),1,0) -> 1 | F13: =(1-'3. Calculator One'!$F$34)^($A13-1)*$E13 -> 0.9511101305 | G13: ='3. Calculator One'!$F$28*'3. Calculator One'!#REF!*$F13*$E13 ->  | H13: ='3. Calculator One'!#REF! ->  | I13: 0.03
A14: 12 | B14: 2028 | C14: 366 | D14: 8784 | E14: =IF(AND(A14>0,A14<='3. Calculator One'!$F$38),1,0) -> 1 | F14: =(1-'3. Calculator One'!$F$34)^($A14-1)*$E14 -> 0.9463545798 | G14: ='3. Calculator One'!$F$28*'3. Calculator One'!#REF!*$F14*$E14 ->  | H14: ='3. Calculator One'!#REF! ->  | I14: 0.03
A15: 13 | B15: 2029 | C15: 365 | D15: 8760 | E15: =IF(AND(A15>0,A15<='3. Calculator One'!$F$38),1,0) -> 1 | F15: =(1-'3. Calculator One'!$F$34)^($A15-1)*$E15 -> 0.9416228069 | G15: ='3. Calculator One'!$F$28*'3. Calculator One'!#REF!*$F15*$E15 ->  | H15: ='3. Calculator One'!#REF! ->  | I15: 0.03
A16: 14 | B16: 2030 | C16: 365 | D16: 8760 | E16: =IF(AND(A16>0,A16<='3. Calculator One'!$F$38),1,0) -> 1 | F16: =(1-'3. Calculator One'!$F$34)^($A16-1)*$E16 -> 0.9369146929 | G16: ='3. Calculator One'!$F$28*'3. Calculator One'!#REF!*$F16*$E16 ->  | H16: ='3. Calculator One'!#REF! ->  | I16: 0.03
A17: 15 | B17: 2031 | C17: 365 | D17: 8760 | E17: =IF(AND(A17>0,A17<='3. Calculator One'!$F$38),1,0) -> 1 | F17: =(1-'3. Calculator One'!$F$34)^($A17-1)*$E17 -> 0.9322301194 | G17: ='3. Calculator One'!$F$28*'3. Calculator One'!#REF!*$F17*$E17 ->  | H17: ='3. Calculator One'!#REF! ->  | I17: 0.03
A18: 16 | B18: 2032 | C18: 366 | D18: 8784 | E18: =IF(AND(A18>0,A18<='3. Calculator One'!$F$38),1,0) -> 1 | F18: =(1-'3. Calculator One'!$F$34)^($A18-1)*$E18 -> 0.9275689688 | G18: ='3. Calculator One'!$F$28*'3. Calculator One'!#REF!*$F18*$E18 ->  | H18: ='3. Calculator One'!#REF! ->  | I18: 0.03
A19: 17 | B19: 2033 | C19: 365 | D19: 8760 | E19: =IF(AND(A19>0,A19<='3. Calculator One'!$F$38),1,0) -> 1 | F19: =(1-'3. Calculator One'!$F$34)^($A19-1)*$E19 -> 0.922931124 | G19: ='3. Calculator One'!$F$28*'3. Calculator One'!#REF!*$F19*$E19 ->  | H19: ='3. Calculator One'!#REF! ->  | I19: 0.03
A20: 18 | B20: 2034 | C20: 365 | D20: 8760 | E20: =IF(AND(A20>0,A20<='3. Calculator One'!$F$38),1,0) -> 1 | F20: =(1-'3. Calculator One'!$F$34)^($A20-1)*$E20 -> 0.9183164684 | G20: ='3. Calculator One'!$F$28*'3. Calculator One'!#REF!*$F20*$E20 ->  | H20: ='3. Calculator One'!#REF! ->  | I20: 0.03
A21: 19 | B21: 2035 | C21: 365 | D21: 8760 | E21: =IF(AND(A21>0,A21<='3. Calculator One'!$F$38),1,0) -> 1 | F21: =(1-'3. Calculator One'!$F$34)^($A21-1)*$E21 -> 0.913724886 | G21: ='3. Calculator One'!$F$28*'3. Calculator One'!#REF!*$F21*$E21 ->  | H21: ='3. Calculator One'!#REF! ->  | I21: 0.03
A22: 20 | B22: 2036 | C22: 366 | D22: 8784 | E22: =IF(AND(A22>0,A22<='3. Calculator One'!$F$38),1,0) -> 1 | F22: =(1-'3. Calculator One'!$F$34)^($A22-1)*$E22 -> 0.9091562616 | G22: ='3. Calculator One'!$F$28*'3. Calculator One'!#REF!*$F22*$E22 ->  | H22: ='3. Calculator One'!#REF! ->  | I22: 0.03
A23: 21 | B23: 2037 | C23: 365 | D23: 8760 | E23: =IF(AND(A23>0,A23<='3. Calculator One'!$F$38),1,0) -> 0 | F23: =(1-'3. Calculator One'!$F$34)^($A23-1)*$E23 -> 0 | G23: ='3. Calculator One'!$F$28*'3. Calculator One'!#REF!*$F23*$E23 ->  | H23: ='3. Calculator One'!#REF! ->  | I23: 0.03
A24: 22 | B24: 2038 | C24: 365 | D24: 8760 | E24: =IF(AND(A24>0,A24<='3. Calculator One'!$F$38),1,0) -> 0 | F24: =(1-'3. Calculator One'!$F$34)^($A24-1)*$E24 -> 0 | G24: ='3. Calculator One'!$F$28*'3. Calculator One'!#REF!*$F24*$E24 ->  | H24: ='3. Calculator One'!#REF! ->  | I24: 0.03
A25: 23 | B25: 2039 | C25: 365 | D25: 8760 | E25: =IF(AND(A25>0,A25<='3. Calculator One'!$F$38),1,0) -> 0 | F25: =(1-'3. Calculator One'!$F$34)^($A25-1)*$E25 -> 0 | G25: ='3. Calculator One'!$F$28*'3. Calculator One'!#REF!*$F25*$E25 ->  | H25: ='3. Calculator One'!#REF! ->  | I25: 0.03
A26: 24 | B26: 2040 | C26: 366 | D26: 8784 | E26: =IF(AND(A26>0,A26<='3. Calculator One'!$F$38),1,0) -> 0 | F26: =(1-'3. Calculator One'!$F$34)^($A26-1)*$E26 -> 0 | G26: ='3. Calculator One'!$F$28*'3. Calculator One'!#REF!*$F26*$E26 ->  | H26: ='3. Calculator One'!#REF! ->  | I26: 0.03
A27: 25 | B27: 2041 | C27: 365 | D27: 8760 | E27: =IF(AND(A27>0,A27<='3. Calculator One'!$F$38),1,0) -> 0 | F27: =(1-'3. Calculator One'!$F$34)^($A27-1)*$E27 -> 0 | G27: ='3. Calculator One'!$F$28*'3. Calculator One'!#REF!*$F27*$E27 ->  | H27: ='3. Calculator One'!#REF! ->  | I27: 0.03
I28: Total | J28: =SUM(J2:J27) -> 
I29: Average | J29: =J28/'3. Calculator One'!$F$38 -> 
I30: $/MW | J30: =J29/'3. Calculator One'!$F$5 -> 

Sheet 4. Heat Map - IRR (hidden)
A1: Heat Map of IRRs based on PILOT as % of Retail Rate
A4: Utility | B4: Tranche | C4: 0 | D4: 0.005 | E4: =D4+0.005 -> 0.01 | F4: =E4+0.005 -> 0.015 | G4: 0.02 | H4: 0.025 | I4: 0.03 | J4: 0.035 | K4: 0.04 | L4: 0.045 | M4: 0.05
A5: CHG&E | B5: Tranche 0 | C5: 0.05010125148 | D5: 0.0494260929 | E5: 0.04875046568 | F5: 0.04807437172 | G5: 0.04739781298 | H5: 0.04672079147 | I5: 0.04604330929 | J5: 0.04536536856 | K5: 0.04468697151 | L5: 0.0440081204 | M5: 0.04332881757
A6: O&R | B6: Tranche 0 | C6: 0.05951919263 | D6: 0.05883073793 | E6: 0.05814187027 | F6: 0.05745259168 | G6: 0.05676290423 | H6: 0.05607281007 | I6: 0.05538231138 | J6: 0.05469141043 | K6: 0.05400010953 | L6: 0.05330841107 | M6: 0.05261631747
A7: NGRID | B7: Tranche 0 | C7: 0.02448236173 | D7: 0.02382486968 | E7: 0.02316673858 | F7: 0.02250797008 | G7: 0.02184856591 | H7: 0.02118852786 | I7: 0.02052785782 | J7: 0.01986655772 | K7: 0.01920462961 | L7: 0.01854207557 | M7: 0.0178788978
A8: NYSEG | B8: Tranche 0 | C8: 0.02276189591 | D8: 0.02211976247 | E8: 0.02147700495 | F8: 0.02083362487 | G8: 0.02018962379 | H8: 0.01954500335 | I8: 0.01889976526 | J8: 0.01825391129 | K8: 0.0176074433 | L8: 0.01696036319 | M8: 0.01631267297
A9: ConEd | B9: Tranche 0 | C9: 0.05785755009 | D9: 0.0571619167 | E9: 0.05646587163 | F9: 0.05576941699 | G9: 0.05507255496 | H9: 0.05437528778 | I9: 0.05367761774 | J9: 0.05297954721 | K9: 0.05228107861 | L9: 0.05158221442 | M9: 0.0508829572
A10: RG&E | B10: Tranche 0 | C10: 0.02437910663 | D10: 0.02373409944 | E10: 0.0230884725 | F10: 0.02244222736 | G10: 0.0217953656 | H10: 0.02114788888 | I10: 0.02049979896 | J10: 0.01985109762 | K10: 0.01920178674 | L10: 0.01855186828 | M10: 0.01790134424
A11: CHG&E | B11: Tranche 1 | C11: 0.06057807248 | D11: 0.06000343783 | E11: 0.05942920345 | F11: 0.05885537595 | G11: 0.05828196193 | H11: 0.05770896804 | I11: 0.05713640093 | J11: 0.05656426726 | K11: 0.05599257375 | L11: 0.0554213271 | M11: 0.05485053405
A12: O&R | B12: Tranche 1 | C12: 0.06972859876 | D12: 0.06913894881 | E12: 0.06854974365 | F12: 0.06796098992 | G12: 0.06737269432 | H12: 0.06678486355 | I12: 0.06619750434 | J12: 0.06561062344 | K12: 0.0650242276 | L12: 0.0644383236 | M12: 0.06385291824
A13: NGRID | B13: Tranche 1 | C13: 0.03539850726 | D13: 0.03484705896 | E13: 0.03429591184 | F13: 0.03374507284 | G13: 0.03319454892 | H13: 0.0326443471 | I13: 0.03209447439 | J13: 0.03154493784 | K13: 0.03099574453 | L13: 0.03044690155 | M13: 0.02989841605
A14: NYSEG | B14: Tranche 1 | C14: 0.03371970754 | D14: 0.03318176365 | E14: 0.03264410111 | F14: 0.03210672644 | G14: 0.03156964615 | H14: 0.03103286683 | I14: 0.03049639505 | J14: 0.02996023743 | K14: 0.0294244006 | L14: 0.02888889122 | M14: 0.02835371597
A15: ConEd | B15: Tranche 1 | C15: 0.06843141032 | D15: 0.06783832662 | E15: 0.06724571828 | F15: 0.06665359208 | G15: 0.06606195483 | H15: 0.06547081336 | I15: 0.06488017452 | J15: 0.06429004515 | K15: 0.06370043215 | L15: 0.06311134238 | M15: 0.06252278277
A16: RG&E | B16: Tranche 1 | C16: 0.03527196951 | D16: 0.03473087018 | E16: 0.03419005688 | F16: 0.03364953617 | G16: 0.03310931463 | H16: 0.03256939888 | I16: 0.03202979556 | J16: 0.03149051132 | K16: 0.03095155287 | L16: 0.0304129269 | M16: 0.02987464016
A17: CHG&E | B17: Tranche 2 | C17: 0.0533238031 | D17: 0.05274042245 | E17: 0.05215745811 | F17: 0.05157491727 | G17: 0.05099280719 | H17: 0.05041113514 | I17: 0.04982990839 | J17: 0.04924913426 | K17: 0.04866882006 | L17: 0.04808897316 | M17: 0.04750960091
A18: O&R | B18: Tranche 2 | C18: 0.06250500541 | D18: 0.06190788854 | E18: 0.06131123525 | F18: 0.06071505279 | G18: 0.06011934843 | H18: 0.05952412944 | I18: 0.05892940313 | J18: 0.05833517682 | K18: 0.05774145785 | L18: 0.05714825357 | M18: 0.05655557136
A19: NGRID | B19: Tranche 2 | C19: 0.02772183504 | D19: 0.02715690872 | E19: 0.0265922906 | F19: 0.0260279885 | G19: 0.02546401029 | H19: 0.02490036388 | I19: 0.02433705719 | J19: 0.02377409818 | K19: 0.02321149485 | L19: 0.02264925521 | M19: 0.02208738732
A20: NYSEG | B20: Tranche 2 | C20: 0.02618068298 | D20: 0.02562951871 | E20: 0.02507864149 | F20: 0.02452805866 | G20: 0.02397777759 | H20: 0.02342780569 | I20: 0.02287815038 | J20: 0.02232881914 | K20: 0.02177981945 | L20: 0.02123115883 | M20: 0.02068284482
A21: ConEd | B21: Tranche 2 | C21: 0.06113665331 | D21: 0.06053613826 | E21: 0.05993611877 | F21: 0.05933660222 | G21: 0.058737596 | H21: 0.05813910752 | I21: 0.05754114421 | J21: 0.05694371351 | K21: 0.05634682289 | L21: 0.05575047981 | M21: 0.05515469176
A22: RG&E | B22: Tranche 2 | C22: 0.02773895516 | D22: 0.02718481758 | E22: 0.02663097221 | F22: 0.02607742645 | G22: 0.02552418772 | H22: 0.02497126347 | I22: 0.02441866118 | J22: 0.02386638836 | K22: 0.02331445254 | L22: 0.0227628613 | M22: 0.02221162222
A23: CHG&E | B23: Tranche 3 | C23: 0.04576313811 | D23: 0.04516950937 | E23: 0.04457631335 | F23: 0.04398355801 | G23: 0.04339125137 | H23: 0.04279940145 | I23: 0.04220801629 | J23: 0.04161710396 | K23: 0.04102667256 | L23: 0.04043673021 | M23: 0.03984728502
A24: O&R | B24: Tranche 3 | C24: 0.05501300684 | D24: 0.05440715677 | E24: 0.05380178988 | F24: 0.05319691412 | G24: 0.05259253742 | H24: 0.05198866775 | I24: 0.05138531309 | J24: 0.05078248147 | K24: 0.05018018089 | L24: 0.0495784194 | M24: 0.04897720507
A25: NGRID | B25: Tranche 3 | C25: 0.01957356706 | D25: 0.01899250486 | E25: 0.01841175599 | F25: 0.01783132943 | G25: 0.01725123419 | H25: 0.01667147933 | I25: 0.01609207394 | J25: 0.01551302714 | K25: 0.01493434811 | L25: 0.01435604604 | M25: 0.01377813017
A26: NYSEG | B26: Tranche 3 | C26: 0.01817909386 | D26: 0.01761213724 | E26: 0.0170454714 | F26: 0.01647910474 | G26: 0.0159130457 | H26: 0.01534730277 | I26: 0.01478188445 | J26: 0.01421679931 | K26: 0.01365205592 | L26: 0.0130876629 | M26: 0.0125236289
A27: ConEd | B27: Tranche 3 | C27: 0.05356772861 | D27: 0.05295849109 | E27: 0.05234977034 | F27: 0.05174157441 | G27: 0.0511339114 | H27: 0.05052678941 | I27: 0.04992021658 | J27: 0.04931420102 | K27: 0.04870875092 | L27: 0.04810387442 | M27: 0.04749957971
A28: RG&E | B28: Tranche 3 | C28: 0.01975159415 | D28: 0.01918189937 | E28: 0.01861250116 | F28: 0.01804340796 | G28: 0.01747462825 | H28: 0.01690617055 | I28: 0.01633804342 | J28: 0.01577025544 | K28: 0.01520281524 | L28: 0.01463573147 | M28: 0.01406901282

Sheet 5. Heat Map - PILOT (hidden)
A1: Heat Map of PILOTs based on PILOT as % of Retail Rate
A4: Utility | B4: Tranche | C4: 0 | D4: 0.005 | E4: =D4+0.005 -> 0.01 | F4: =E4+0.005 -> 0.015 | G4: 0.02 | H4: 0.025 | I4: 0.03 | J4: 0.035 | K4: 0.04 | L4: 0.045 | M4: 0.05
A5: CHG&E | B5: Tranche 0 | C5: 0 | D5: 2525.9 | E5: 5051.8 | F5: 7577.7 | G5: 10103.6 | H5: 12629.5 | I5: 15155.4 | J5: 17681.3 | K5: 20207.2 | L5: 22733.1 | M5: 25259
A6: O&R | B6: Tranche 0 | C6: 0 | D6: 3147.95 | E6: 6295.9 | F6: 9443.85 | G6: 12591.8 | H6: 15739.75 | I6: 18887.7 | J6: 22035.65 | K6: 25183.6 | L6: 28331.55 | M6: 31479.5
A7: NGRID | B7: Tranche 0 | C7: 0 | D7: 1684.73 | E7: 3369.45 | F7: 5054.18 | G7: 6738.9 | H7: 8423.63 | I7: 10108.36 | J7: 11793.08 | K7: 13477.81 | L7: 15162.53 | M7: 16847.26
A8: NYSEG | B8: Tranche 0 | C8: 0 | D8: 1635.6 | E8: 3271.2 | F8: 4906.8 | G8: 6542.4 | H8: 8178 | I8: 9813.6 | J8: 11449.2 | K8: 13084.8 | L8: 14720.4 | M8: 16356
A9: ConEd | B9: Tranche 0 | C9: 0 | D9: 3679.38 | E9: 7358.75 | F9: 11038.13 | G9: 14717.5 | H9: 18396.88 | I9: 22076.25 | J9: 25755.63 | K9: 29435 | L9: 33114.38 | M9: 36793.75
A10: RG&E | B10: Tranche 0 | C10: 0 | D10: 1653 | E10: 3306 | F10: 4959 | G10: 6612 | H10: 8265 | I10: 9918 | J10: 11571 | K10: 13224 | L10: 14877 | M10: 16530
A11: CHG&E | B11: Tranche 1 | C11: 0 | D11: 2525.9 | E11: 5051.8 | F11: 7577.7 | G11: 10103.6 | H11: 12629.5 | I11: 15155.4 | J11: 17681.3 | K11: 20207.2 | L11: 22733.1 | M11: 25259
A12: O&R | B12: Tranche 1 | C12: 0 | D12: 3147.95 | E12: 6295.9 | F12: 9443.85 | G12: 12591.8 | H12: 15739.75 | I12: 18887.7 | J12: 22035.65 | K12: 25183.6 | L12: 28331.55 | M12: 31479.5
A13: NGRID | B13: Tranche 1 | C13: 0 | D13: 1684.73 | E13: 3369.45 | F13: 5054.18 | G13: 6738.9 | H13: 8423.63 | I13: 10108.36 | J13: 11793.08 | K13: 13477.81 | L13: 15162.53 | M13: 16847.26
A14: NYSEG | B14: Tranche 1 | C14: 0 | D14: 1635.6 | E14: 3271.2 | F14: 4906.8 | G14: 6542.4 | H14: 8178 | I14: 9813.6 | J14: 11449.2 | K14: 13084.8 | L14: 14720.4 | M14: 16356
A15: ConEd | B15: Tranche 1 | C15: 0 | D15: 3679.38 | E15: 7358.75 | F15: 11038.13 | G15: 14717.5 | H15: 18396.88 | I15: 22076.25 | J15: 25755.63 | K15: 29435 | L15: 33114.38 | M15: 36793.75
A16: RG&E | B16: Tranche 1 | C16: 0 | D16: 1653 | E16: 3306 | F16: 4959 | G16: 6612 | H16: 8265 | I16: 9918 | J16: 11571 | K16: 13224 | L16: 14877 | M16: 16530
A17: CHG&E | B17: Tranche 2 | C17: 0 | D17: 2525.9 | E17: 5051.8 | F17: 7577.7 | G17: 10103.6 | H17: 12629.5 | I17: 15155.4 | J17: 17681.3 | K17: 20207.2 | L17: 22733.1 | M17: 25259
A18: O&R | B18: Tranche 2 | C18: 0 | D18: 3147.95 | E18: 6295.9 | F18: 9443.85 | G18: 12591.8 | H18: 15739.75 | I18: 18887.7 | J18: 22035.65 | K18: 25183.6 | L18: 28331.55 | M18: 31479.5
A19: NGRID | B19: Tranche 2 | C19: 0 | D19: 1684.73 | E19: 3369.45 | F19: 5054.18 | G19: 6738.9 | H19: 8423.63 | I19: 10108.36 | J19: 11793.08 | K19: 13477.81 | L19: 15162.53 | M19: 16847.26
A20: NYSEG | B20: Tranche 2 | C20: 0 | D20: 1635.6 | E20: 3271.2 | F20: 4906.8 | G20: 6542.4 | H20: 8178 | I20: 9813.6 | J20: 11449.2 | K20: 13084.8 | L20: 14720.4 | M20: 16356
A21: ConEd | B21: Tranche 2 | C21: 0 | D21: 3679.38 | E21: 7358.75 | F21: 11038.13 | G21: 14717.5 | H21: 18396.88 | I21: 22076.25 | J21: 25755.63 | K21: 29435 | L21: 33114.38 | M21: 36793.75
A22: RG&E | B22: Tranche 2 | C22: 0 | D22: 1653 | E22: 3306 | F22: 4959 | G22: 6612 | H22: 8265 | I22: 9918 | J22: 11571 | K22: 13224 | L22: 14877 | M22: 16530
A23: CHG&E | B23: Tranche 3 | C23: 0 | D23: 2525.9 | E23: 5051.8 | F23: 7577.7 | G23: 10103.6 | H23: 12629.5 | I23: 15155.4 | J23: 17681.3 | K23: 20207.2 | L23: 22733.1 | M23: 25259
A24: O&R | B24: Tranche 3 | C24: 0 | D24: 3147.95 | E24: 6295.9 | F24: 9443.85 | G24: 12591.8 | H24: 15739.75 | I24: 18887.7 | J24: 22035.65 | K24: 25183.6 | L24: 28331.55 | M24: 31479.5
A25: NGRID | B25: Tranche 3 | C25: 0 | D25: 1684.73 | E25: 3369.45 | F25: 5054.18 | G25: 6738.9 | H25: 8423.63 | I25: 10108.36 | J25: 11793.08 | K25: 13477.81 | L25: 15162.53 | M25: 16847.26
A26: NYSEG | B26: Tranche 3 | C26: 0 | D26: 1635.6 | E26: 3271.2 | F26: 4906.8 | G26: 6542.4 | H26: 8178 | I26: 9813.6 | J26: 11449.2 | K26: 13084.8 | L26: 14720.4 | M26: 16356
A27: ConEd | B27: Tranche 3 | C27: 0 | D27: 3679.38 | E27: 7358.75 | F27: 11038.13 | G27: 14717.5 | H27: 18396.88 | I27: 22076.25 | J27: 25755.63 | K27: 29435 | L27: 33114.38 | M27: 36793.75
A28: RG&E | B28: Tranche 3 | C28: 0 | D28: 1653 | E28: 3306 | F28: 4959 | G28: 6612 | H28: 8265 | I28: 9918 | J28: 11571 | K28: 13224 | L28: 14877 | M28: 16530
